Transaction Number,Service - Fund ,Service  - Function ,Service - Cost Centre,Expense Type ,Expense Description,Supplier Name,Supplier Post Code (first 4 digits),Payment Date,Amount �
88310233,Social Care,"Children, Families and Community Health Services",Children's Resource and Home Finding Team,3rd Party Payments,Semi Independent,16PLUS CARE SUPPORT SOLUTIONS LTD,GL1 ,26/05/2023,"19,821.60"
88308233,Social Care,"Children, Families and Community Health Services",Children's Resource and Home Finding Team,3rd Party Payments,Semi Independent,16PLUS CARE SUPPORT SOLUTIONS LTD,GL1 ,26/05/2023,"5,257.20"
88312233,Social Care,"Children, Families and Community Health Services",Children's Resource and Home Finding Team,3rd Party Payments,Semi Independent,16PLUS CARE SUPPORT SOLUTIONS LTD,GL1 ,26/05/2023,"16,518.00"
87982233,Physical Support,Adults,Physical Support 65 and over,3rd Party Payments,Personal Budget - Domiciliary care,247 HOME CARE LTD,SN5 ,26/05/2023,897.87
85971233,Physical Support,Adults,Physical Support 18 - 64,3rd Party Payments,Personal Budget - Domiciliary care,247 HOME CARE LTD,SN5 ,24/05/2023,"1,221.38"
85519239,Physical Support,Adults,Physical Support 18 - 64,3rd Party Payments,Personal Budget - Domiciliary care,247 HOME CARE LTD,SN5 ,10/05/2023,"1,140.18"
88412233,Physical Support,Adults,Physical Support 65 and over,3rd Party Payments,Personal Budget - Domiciliary care,247 HOME CARE LTD,SN5 ,31/05/2023,642.87
84500233,Physical Support,Adults,Physical Support 65 and over,3rd Party Payments,Personal Budget - Domiciliary care,247 HOME CARE LTD,SN5 ,05/05/2023,"1,099.98"
85971233,Physical Support,Adults,Physical Support 18 - 64,3rd Party Payments,Personal Budget - Domiciliary care,247 HOME CARE LTD,SN5 ,24/05/2023,-3.8
85519239,Physical Support,Adults,Physical Support 18 - 64,3rd Party Payments,Personal Budget - Domiciliary care,247 HOME CARE LTD,SN5 ,10/05/2023,-3.8
84499233,Physical Support,Adults,Physical Support 18 - 64,3rd Party Payments,Personal Budget - Domiciliary care,247 HOME CARE LTD,SN5 ,05/05/2023,966.94
87981233,Physical Support,Adults,Physical Support 65 and over,3rd Party Payments,Personal Budget - Domiciliary care,247 HOME CARE LTD,SN5 ,26/05/2023,"1,099.98"
87147263,Physical Support,Adults,Physical Support 65 and over,3rd Party Payments,Personal Budget - Domiciliary care,247 HOME CARE LTD,SN5 ,19/05/2023,"1,099.98"
84501233,Physical Support,Adults,Physical Support 65 and over,3rd Party Payments,Personal Budget - Domiciliary care,247 HOME CARE LTD,SN5 ,05/05/2023,-162.87
87980233,Physical Support,Adults,Physical Support 18 - 64,3rd Party Payments,Personal Budget - Domiciliary care,247 HOME CARE LTD,SN5 ,26/05/2023,"1,103.68"
84499233,Physical Support,Adults,Physical Support 18 - 64,3rd Party Payments,Personal Budget - Domiciliary care,247 HOME CARE LTD,SN5 ,05/05/2023,-3.8
88597233,Physical Support,Adults,Physical Support 65 and over,3rd Party Payments,Personal Budget - Domiciliary care,247 HOME CARE LTD,SN5 ,31/05/2023,-162.87
88597233,Physical Support,Adults,Physical Support 65 and over,3rd Party Payments,Personal Budget - Domiciliary care,247 HOME CARE LTD,SN5 ,31/05/2023,949.57
86350239,Physical Support,Adults,Physical Support 65 and over,3rd Party Payments,Personal Budget - Domiciliary care,247 HOME CARE LTD,SN5 ,15/05/2023,"1,099.98"
85519240,Physical Support,Adults,Physical Support 65 and over,3rd Party Payments,Personal Budget - Domiciliary care,247 HOME CARE LTD,SN5 ,10/05/2023,"1,099.98"
87982233,Physical Support,Adults,Physical Support 65 and over,3rd Party Payments,Personal Budget - Domiciliary care,247 HOME CARE LTD,SN5 ,26/05/2023,-162.87
87147262,Physical Support,Adults,Physical Support 18 - 64,3rd Party Payments,Carers,247 HOME CARE LTD,SN5 ,19/05/2023,114.88
84501233,Physical Support,Adults,Physical Support 65 and over,3rd Party Payments,Personal Budget - Domiciliary care,247 HOME CARE LTD,SN5 ,05/05/2023,894.23
87980233,Physical Support,Adults,Physical Support 18 - 64,3rd Party Payments,Carers,247 HOME CARE LTD,SN5 ,26/05/2023,151.44
85971233,Physical Support,Adults,Physical Support 18 - 64,3rd Party Payments,Carers,247 HOME CARE LTD,SN5 ,24/05/2023,114.88
88598233,Physical Support,Adults,Physical Support 65 and over,3rd Party Payments,Personal Budget - Domiciliary care,247 HOME CARE LTD,SN5 ,31/05/2023,-162.87
85519241,Physical Support,Adults,Physical Support 65 and over,3rd Party Payments,Personal Budget - Domiciliary care,247 HOME CARE LTD,SN5 ,10/05/2023,894.23
87980233,Physical Support,Adults,Physical Support 18 - 64,3rd Party Payments,Personal Budget - Domiciliary care,247 HOME CARE LTD,SN5 ,26/05/2023,-3.8
87147262,Physical Support,Adults,Physical Support 18 - 64,3rd Party Payments,Personal Budget - Domiciliary care,247 HOME CARE LTD,SN5 ,19/05/2023,-3.8
87147262,Physical Support,Adults,Physical Support 18 - 64,3rd Party Payments,Personal Budget - Domiciliary care,247 HOME CARE LTD,SN5 ,19/05/2023,"1,221.38"
88598233,Physical Support,Adults,Physical Support 65 and over,3rd Party Payments,Personal Budget - Domiciliary care,247 HOME CARE LTD,SN5 ,31/05/2023,949.57
85519241,Physical Support,Adults,Physical Support 65 and over,3rd Party Payments,Personal Budget - Domiciliary care,247 HOME CARE LTD,SN5 ,10/05/2023,-162.87
85469233,Physical Support,Adults,Physical Support 65 and over,3rd Party Payments,Personal Budget - Domiciliary care,247 HOME CARE LTD,SN5 ,10/05/2023,"1,414.26"
85519239,Physical Support,Adults,Physical Support 18 - 64,3rd Party Payments,Carers,247 HOME CARE LTD,SN5 ,10/05/2023,111.82
87152237,Highways Schemes,Strategic Planning and Highways,Car Parks Major Maintenance,Capital,Contractor Payments,4 ACRE ECOLOGY LTD,OX29,19/05/2023,436.2
87720251,Social Care,"Children, Families and Community Health Services",Children's Resource and Home Finding Team,3rd Party Payments,Residential Care,4D CARE LTD,PE14,24/05/2023,"18,821.03"
87082233,Social Care,"Children, Families and Community Health Services",Children's Resource and Home Finding Team,3rd Party Payments,Residential Care,4D CARE LTD,PE14,19/05/2023,"18,213.90"
84417235,School Transport,"Education, Inclusion and Skills",Special Educational Needs Transport,Transport Costs,Home to School Transport,4K TRAVEL LTD,SN2 ,03/05/2023,"2,362.50"
84767233,School Transport,"Education, Inclusion and Skills",Mainstream School Transport,Transport Costs,Home to School Transport,4K TRAVEL LTD,SN2 ,10/05/2023,"2,838.00"
84934233,Property Service Charged Properties,Property,Service Charged - Carriageworks,Premises Costs,Waste,707 LTD T/A CLICK WASTE,NG24,05/05/2023,"2,892.90"
86415233,Human Resources and Organisational Development,"People, Culture and Organisational Resilience",Organisational Development,Employees,Training,A PLUS SAFETY & TRAINING SERVICES LTD,SN3 ,17/05/2023,549
85345233,Human Resources and Organisational Development,"People, Culture and Organisational Resilience",Organisational Development,Employees,Training,A PLUS SAFETY & TRAINING SERVICES LTD,SN3 ,10/05/2023,698
86437233,Human Resources and Organisational Development,"People, Culture and Organisational Resilience",Organisational Development,Employees,Training,A PLUS SAFETY & TRAINING SERVICES LTD,SN3 ,17/05/2023,549
86430235,Human Resources and Organisational Development,"People, Culture and Organisational Resilience",Organisational Development,Employees,Training,A PLUS SAFETY & TRAINING SERVICES LTD,SN3 ,17/05/2023,549
87139343,Homelessness and Travellers,Housing Services,Leased Private Managed Accommodation,Transfer Payments,Payment of Costs,REDACTED PERSONAL DATA,SN3 ,24/05/2023,800
85128234,Responsive Repairs,Repairs,Responsive Repairs,3rd Party Payments,Contract Payments,ABBEY ELECTRICAL (SWINDON) LTD T/A ABBEY ELECTRICAL UK,SN6 ,05/05/2023,"1,654.80"
83864233,Other Repairs,Repairs,Cyclical Maintenance,Supplies and Services,Testing / Inspection,ABBEY ELECTRICAL (SWINDON) LTD T/A ABBEY ELECTRICAL UK,SN6 ,03/05/2023,966.07
83870233,Other Repairs,Repairs,Cyclical Maintenance,Supplies and Services,Testing / Inspection,ABBEY ELECTRICAL (SWINDON) LTD T/A ABBEY ELECTRICAL UK,SN6 ,03/05/2023,558.42
85127233,Responsive Repairs,Repairs,Responsive Repairs,3rd Party Payments,Contract Payments,ABBEY ELECTRICAL (SWINDON) LTD T/A ABBEY ELECTRICAL UK,SN6 ,05/05/2023,555.72
88082233,Planned Maintenance Programme,HRA Capital Financing,Electrics,Capital,Contractor Payments,ABBEY ELECTRICAL (SWINDON) LTD T/A ABBEY ELECTRICAL UK,SN6 ,26/05/2023,"1,414.97"
83967234,Other Repairs,Repairs,Cyclical Maintenance,Supplies and Services,Testing / Inspection,ABBEY ELECTRICAL (SWINDON) LTD T/A ABBEY ELECTRICAL UK,SN6 ,03/05/2023,593.93
85685233,Other Repairs,Repairs,Cyclical Maintenance,Supplies and Services,Testing / Inspection,ABBEY ELECTRICAL (SWINDON) LTD T/A ABBEY ELECTRICAL UK,SN6 ,10/05/2023,844.22
83866233,Other Repairs,Repairs,Cyclical Maintenance,Supplies and Services,Testing / Inspection,ABBEY ELECTRICAL (SWINDON) LTD T/A ABBEY ELECTRICAL UK,SN6 ,03/05/2023,933.55
83868233,Other Repairs,Repairs,Cyclical Maintenance,Supplies and Services,Testing / Inspection,ABBEY ELECTRICAL (SWINDON) LTD T/A ABBEY ELECTRICAL UK,SN6 ,03/05/2023,"1,107.16"
86467233,Early Years Block,DSG Skills and Attainment,Free Nursery Education Commissioning - three & four  year olds,3rd Party Payments,Contracts - Child Care,ABBEY FARM EDUCATE TOGETHER PRIMARY,SN25,17/05/2023,"7,013.71"
86849233,High Needs Block,DSG Skills and Attainment,SEN Resourcing Assessment Panel,3rd Party Payments,Top up funding - Academies and Free Schools Pre 16,ABBEY MEADS COMMUNITY PRIMARY SCHOOL,SN25,17/05/2023,"6,215.42"
84657233,Physical Support,Adults,Physical Support 18 - 64,3rd Party Payments,Personal Budget - Domiciliary care,ABICARE SERVICES LTD,BS32,05/05/2023,576.84
86652241,Physical Support,Adults,Physical Support 18 - 64,3rd Party Payments,Personal Budget - Domiciliary care,ABICARE SERVICES LTD,BS32,17/05/2023,571.78
87096246,Physical Support,Adults,Physical Support 18 - 64,3rd Party Payments,Personal Budget - Domiciliary care,ABICARE SERVICES LTD,BS32,17/05/2023,605.32
86126233,Physical Support,Adults,Physical Support 18 - 64,3rd Party Payments,Personal Budget - Domiciliary care,ABICARE SERVICES LTD,BS32,12/05/2023,615.44
84663233,Mental Health,Adults,Mental Health 65 and over,3rd Party Payments,Personal Budget - Domiciliary care,ABICARE SERVICES LTD (LIVE IN),SP2 ,05/05/2023,"1,106.00"
86134233,Physical Support,Adults,Physical Support 18 - 64,3rd Party Payments,Personal Budget - Domiciliary care,ABICARE SERVICES LTD (LIVE IN),SP2 ,12/05/2023,"1,200.00"
87096249,Physical Support,Adults,Physical Support 18 - 64,3rd Party Payments,Personal Budget - Domiciliary care,ABICARE SERVICES LTD (LIVE IN),SP2 ,17/05/2023,"1,200.00"
86137233,Mental Health,Adults,Mental Health 65 and over,3rd Party Payments,Personal Budget - Domiciliary care,ABICARE SERVICES LTD (LIVE IN),SP2 ,12/05/2023,"1,106.00"
84660233,Physical Support,Adults,Physical Support 18 - 64,3rd Party Payments,Personal Budget - Domiciliary care,ABICARE SERVICES LTD (LIVE IN),SP2 ,05/05/2023,"1,200.00"
86135233,Physical Support,Adults,Physical Support 18 - 64,3rd Party Payments,Personal Budget - Domiciliary care,ABICARE SERVICES LTD (LIVE IN),SP2 ,12/05/2023,"1,106.00"
84662233,Mental Health,Adults,Mental Health 65 and over,3rd Party Payments,Personal Budget - Domiciliary care,ABICARE SERVICES LTD (LIVE IN),SP2 ,05/05/2023,"1,106.00"
87096252,Mental Health,Adults,Mental Health 65 and over,3rd Party Payments,Personal Budget - Domiciliary care,ABICARE SERVICES LTD (LIVE IN),SP2 ,17/05/2023,"1,106.00"
86652251,Mental Health,Adults,Mental Health 65 and over,3rd Party Payments,Personal Budget - Domiciliary care,ABICARE SERVICES LTD (LIVE IN),SP2 ,17/05/2023,"1,106.00"
87096251,Mental Health,Adults,Mental Health 65 and over,3rd Party Payments,Personal Budget - Domiciliary care,ABICARE SERVICES LTD (LIVE IN),SP2 ,17/05/2023,"1,106.00"
86652248,Mental Health,Adults,Mental Health 65 and over,3rd Party Payments,Personal Budget - Domiciliary care,ABICARE SERVICES LTD (LIVE IN),SP2 ,17/05/2023,988.68
86652249,Physical Support,Adults,Physical Support 18 - 64,3rd Party Payments,Personal Budget - Domiciliary care,ABICARE SERVICES LTD (LIVE IN),SP2 ,17/05/2023,988.68
84661233,Physical Support,Adults,Physical Support 18 - 64,3rd Party Payments,Personal Budget - Domiciliary care,ABICARE SERVICES LTD (LIVE IN),SP2 ,05/05/2023,"1,106.00"
86136233,Mental Health,Adults,Mental Health 65 and over,3rd Party Payments,Personal Budget - Domiciliary care,ABICARE SERVICES LTD (LIVE IN),SP2 ,12/05/2023,"1,106.00"
87096250,Physical Support,Adults,Physical Support 18 - 64,3rd Party Payments,Personal Budget - Domiciliary care,ABICARE SERVICES LTD (LIVE IN),SP2 ,17/05/2023,"1,106.00"
86652250,Memory & Cognition,Adults,Support for Memory and Cognition 65 and over,3rd Party Payments,Personal Budget - Domiciliary care,ABICARE SERVICES LTD (LIVE IN),SP2 ,17/05/2023,"1,106.00"
86553233,Early Years Block,DSG Skills and Attainment,Free Nursery Education Commissioning - three & four  year olds,3rd Party Payments,Contracts - Child Care,REDACTED PERSONAL DATA,SN2 ,17/05/2023,"1,050.80"
87806233,Care Management & Safeguarding,Adults,Swindon Safeguarding Partnershiph,Supplies and Services,Fees,ABLE TRAINING AND CONSULTANCY (LINDA COBB),TN25,24/05/2023,550
87153233,DSG Other Funding,DSG Skills and Attainment,LAC pupil premium,3rd Party Payments,Education / Training,AC EDUCATION,AL2 ,19/05/2023,"1,400.00"
84976233,Property & Assets,Property & Assets,Health Hydro Improvements,Capital,Professional Fees,ACA ACOUSTICS LIMITED,SN6 ,05/05/2023,"1,100.00"
84742233,Lydiard Park,Culture & Heritage,Lydiard:Education & Curatorial,Supplies and Services,Materials,ACCESS DISPLAYS LTD,SN4 ,05/05/2023,500
85342234,Streetsmart,Streetsmart,Waterside Fleet Hires,Transport Costs,Vehicle Hire / Contract,ACCESS HIRE NATIONWIDE,WF6 ,10/05/2023,"1,615.71"
85341233,Streetsmart,Streetsmart,Waterside Fleet Hires,Transport Costs,Vehicle Hire / Contract,ACCESS HIRE NATIONWIDE,WF6 ,10/05/2023,"1,680.00"
85898234,Streetsmart,Streetsmart,Waterside Fleet Hires,Transport Costs,Vehicle Hire / Contract,ACCESS HIRE NATIONWIDE,WF6 ,12/05/2023,"1,617.86"
87139402,Homelessness and Travellers,Housing Services,Leased Private Managed Accommodation,Transfer Payments,Payment of Costs,REDACTED PERSONAL DATA,SN8 ,24/05/2023,650
87139364,Homelessness and Travellers,Housing Services,Leased Private Managed Accommodation,Transfer Payments,Payment of Costs,REDACTED PERSONAL DATA,SN8 ,24/05/2023,700
86900233,High Needs Block,DSG Skills and Attainment,SEN Resourcing Assessment Panel,3rd Party Payments,Top up funding - Academies and Free Schools Post 16,ACTIVATE LEARNING EDUCATION TRUST,OX1 ,17/05/2023,660.83
87781242,Social Care,"Children, Families and Community Health Services",Children's Resource and Home Finding Team,3rd Party Payments,Independent Fostering Agency Placements,ACTIVE CARE SOLUTIONS LTD,B60 ,24/05/2023,"3,277.01"
87781243,Social Care,"Children, Families and Community Health Services",Children's Resource and Home Finding Team,3rd Party Payments,Independent Fostering Agency Placements,ACTIVE CARE SOLUTIONS LTD,B60 ,24/05/2023,"3,365.36"
87781241,Social Care,"Children, Families and Community Health Services",Unaccompanied Asylum Seeking Children (UASC),3rd Party Payments,Independent Fostering Agency Placements,ACTIVE CARE SOLUTIONS LTD,B60 ,24/05/2023,"4,345.58"
87781240,Social Care,"Children, Families and Community Health Services",Children's Resource and Home Finding Team,3rd Party Payments,Independent Fostering Agency Placements,ACTIVE CARE SOLUTIONS LTD,B60 ,24/05/2023,"6,394.68"
84063324,Learning Disabilities,Adults,Learning Disability 18 - 64,Transfer Payments,Personal Budget - Direct Payments - Domiciliary Care,REDACTED PERSONAL DATA,SN4 ,03/05/2023,"1,290.77"
88485303,Learning Disabilities,Adults,Learning Disability 18 - 64,Transfer Payments,Personal Budget - Direct Payments - Domiciliary Care,REDACTED PERSONAL DATA,SN4 ,31/05/2023,"1,290.77"
87093233,Town Centre,"Economy, Growth and Place",Heritage Action Zone (HAZ),Supplies and Services,Publicity,ADAM DAYBELL,GL6 ,17/05/2023,"2,298.00"
88485573,Learning Disabilities,Adults,Learning Disability 18 - 64,Transfer Payments,Personal Budget - Direct Payments - Domiciliary Care,REDACTED PERSONAL DATA,SN3 ,31/05/2023,"2,219.29"
84063609,Learning Disabilities,Adults,Learning Disability 18 - 64,Transfer Payments,Personal Budget - Direct Payments - Domiciliary Care,REDACTED PERSONAL DATA,SN3 ,03/05/2023,"2,219.29"
87139363,Homelessness and Travellers,Housing Services,Leased Private Managed Accommodation,Transfer Payments,Payment of Costs,ADVANCE HOUSING & SUPPORT LTD,OX28,31/05/2023,"1,074.00"
85906233,Streetsmart,Streetsmart,Waterside Fleet Workshops,Supplies and Services,Equipment,ADVANCED PRINTING SERVICES UK LTD,SN2 ,12/05/2023,575
86666233,Streetsmart,Streetsmart,Waste - Disposal,Supplies and Services,Materials,ADVANTIV LIMITED,RG14,17/05/2023,674.01
88439233,Streetsmart,Streetsmart,Waterside Fleet Workshops,Transport Costs,Repairs & Maintenance - Vehicles,AEBI SCHMIDT UK LTD,PE2 ,31/05/2023,"1,471.70"
87163235,Social Care,"Children, Families and Community Health Services",Children's Resource and Home Finding Team,3rd Party Payments,Independent Fostering Agency Placements,AFFINITY FOSTERING SERVICES LTD,CM4 ,19/05/2023,"3,690.00"
84210233,Social Care,"Children, Families and Community Health Services",Children's Resource and Home Finding Team,3rd Party Payments,Independent Fostering Agency Placements,AFFINITY FOSTERING SERVICES LTD,CM4 ,03/05/2023,"3,013.68"
84212233,Social Care,"Children, Families and Community Health Services",Children's Resource and Home Finding Team,3rd Party Payments,Independent Fostering Agency Placements,AFFINITY FOSTERING SERVICES LTD,CM4 ,03/05/2023,"2,952.00"
87163238,Social Care,"Children, Families and Community Health Services",Children's Resource and Home Finding Team,3rd Party Payments,Independent Fostering Agency Placements,AFFINITY FOSTERING SERVICES LTD,CM4 ,19/05/2023,"3,690.00"
87163236,Social Care,"Children, Families and Community Health Services",Children's Resource and Home Finding Team,3rd Party Payments,Independent Fostering Agency Placements,AFFINITY FOSTERING SERVICES LTD,CM4 ,19/05/2023,"3,690.00"
84211233,Social Care,"Children, Families and Community Health Services",Children's Resource and Home Finding Team,3rd Party Payments,Independent Fostering Agency Placements,AFFINITY FOSTERING SERVICES LTD,CM4 ,03/05/2023,"2,952.00"
84214233,Social Care,"Children, Families and Community Health Services",Children's Resource and Home Finding Team,3rd Party Payments,Independent Fostering Agency Placements,AFFINITY FOSTERING SERVICES LTD,CM4 ,03/05/2023,"2,091.00"
87163234,Social Care,"Children, Families and Community Health Services",Children's Resource and Home Finding Team,3rd Party Payments,Independent Fostering Agency Placements,AFFINITY FOSTERING SERVICES LTD,CM4 ,19/05/2023,"5,237.92"
87163237,Social Care,"Children, Families and Community Health Services",Children's Resource and Home Finding Team,3rd Party Payments,Independent Fostering Agency Placements,AFFINITY FOSTERING SERVICES LTD,CM4 ,19/05/2023,"5,524.20"
84213233,Social Care,"Children, Families and Community Health Services",Children's Resource and Home Finding Team,3rd Party Payments,Independent Fostering Agency Placements,AFFINITY FOSTERING SERVICES LTD,CM4 ,03/05/2023,"3,130.38"
87329314,Learning Disabilities,Adults,Learning Disability 65 and over,3rd Party Payments,Supported Lodgings (Childrens)/Supported Living (Adults),AGINCARE ENABLE LTD,DT5 ,19/05/2023,"5,835.00"
87329314,Learning Disabilities,Adults,Learning Disability 65 and over,Income,Client Contribution - Supported Living,AGINCARE ENABLE LTD,DT5 ,19/05/2023,-476.6
87329314,Learning Disabilities,Adults,Learning Disability 65 and over,3rd Party Payments,Supported Lodgings (Childrens)/Supported Living (Adults),AGINCARE ENABLE LTD,DT5 ,19/05/2023,"2,462.60"
87329245,Physical Support,Adults,Physical Support 65 and over,3rd Party Payments,Residential Care,AGINCARE LTD,DT5 ,19/05/2023,"3,600.00"
87329245,Physical Support,Adults,Physical Support 65 and over,Income,Client Contribution - Residential,AGINCARE LTD,DT5 ,19/05/2023,"-1,231.12"
84423234,School Transport,"Education, Inclusion and Skills",Special Educational Needs Transport,Transport Costs,Home to School Transport,AKCESS CIC,SN2 ,03/05/2023,"2,165.63"
84764233,School Transport,"Education, Inclusion and Skills",Special Educational Needs Transport,Employees,Temporary / Agency - by Accounts Payable,AKCESS CIC,SN2 ,10/05/2023,"13,566.00"
84423235,Physical Support,Adults,Physical Support 65 and over,Transport Costs,Home to Centre Transport,AKCESS CIC,SN2 ,03/05/2023,"5,934.71"
84424233,Physical Support,Adults,Physical Support 65 and over,Transport Costs,Home to Centre Transport,AKCESS CIC,SN2 ,03/05/2023,"2,968.29"
87137233,Travel,Highways & Transport,Concessionary Travel,3rd Party Payments,Concessionary Travel Subsidy,AKCESS CIC,SN2 ,19/05/2023,614.39
84425233,Learning Disabilities,Adults,Learning Disability 18 - 64,Transport Costs,Home to Centre Transport,AKCESS CIC,SN2 ,03/05/2023,"5,934.71"
84424234,Learning Disabilities,Adults,Learning Disability 18 - 64,Transport Costs,Home to Centre Transport,AKCESS CIC,SN2 ,03/05/2023,"20,778.01"
84765233,School Transport,"Education, Inclusion and Skills",Special Educational Needs Transport,Transport Costs,Home to School Transport,AKCESS CIC,SN2 ,10/05/2023,"64,598.21"
84766233,School Transport,"Education, Inclusion and Skills",Special Educational Needs Transport,Transport Costs,Home to School Transport,AKCESS CIC,SN2 ,10/05/2023,"1,425.00"
85143233,Travel,Highways & Transport,Public Transport,3rd Party Payments,Contract Payments,AKCESS CIC,SN2 ,05/05/2023,"15,023.18"
84415234,School Transport,"Education, Inclusion and Skills",Special Educational Needs Transport,Transport Costs,Home to School Transport,AKCESS CIC,SN2 ,03/05/2023,"6,323.63"
85991233,Learning Disabilities,Adults,Learning Disability 18 - 64,3rd Party Payments,Supported Accommodation Scheme,REDACTED PERSONAL DATA,SN2 ,22/05/2023,"2,058.96"
88485591,Learning Disabilities,Adults,Learning Disability 18 - 64,Transfer Payments,Personal Budget - Direct Payments - Domiciliary Care,REDACTED PERSONAL DATA,SN25,31/05/2023,"1,135.30"
84063628,Learning Disabilities,Adults,Learning Disability 18 - 64,Transfer Payments,Personal Budget - Direct Payments - Domiciliary Care,REDACTED PERSONAL DATA,SN25,03/05/2023,"1,135.30"
86467234,Early Years Block,DSG Skills and Attainment,Free Nursery Education Commissioning - three & four  year olds,3rd Party Payments,Contracts - Child Care,ALFRESCO CHILDCARE,SN6 ,17/05/2023,"7,495.21"
86033233,Learning Disabilities,Adults,Learning Disability 18 - 64,3rd Party Payments,Supported Accommodation Scheme,REDACTED PERSONAL DATA,SN1 ,22/05/2023,"2,444.96"
84063732,Learning Disabilities,Adults,Learning Disability 18 - 64,Transfer Payments,Personal Budget - Direct Payments - Domiciliary Care,REDACTED PERSONAL DATA,SN4 ,03/05/2023,"7,944.44"
88485688,Learning Disabilities,Adults,Learning Disability 18 - 64,Transfer Payments,Personal Budget - Direct Payments - Domiciliary Care,REDACTED PERSONAL DATA,SN4 ,31/05/2023,"7,944.44"
86034233,Learning Disabilities,Adults,Learning Disability 18 - 64,3rd Party Payments,Supported Accommodation Scheme,REDACTED PERSONAL DATA,SN2 ,22/05/2023,"1,707.36"
86034233,Learning Disabilities,Adults,Learning Disability 18 - 64,3rd Party Payments,Supported Accommodation Scheme,REDACTED PERSONAL DATA,SN2 ,22/05/2023,"1,671.04"
86034233,Learning Disabilities,Adults,Learning Disability 18 - 64,3rd Party Payments,Supported Accommodation Scheme,REDACTED PERSONAL DATA,SN2 ,22/05/2023,"1,985.40"
88485305,Learning Disabilities,Adults,Learning Disability 18 - 64,Transfer Payments,Personal Budget - Direct Payments - Domiciliary Care,REDACTED PERSONAL DATA,SN5 ,31/05/2023,"9,929.70"
84063327,Learning Disabilities,Adults,Learning Disability 18 - 64,Transfer Payments,Personal Budget - Direct Payments - Domiciliary Care,REDACTED PERSONAL DATA,SN5 ,03/05/2023,"9,929.70"
86562233,Early Years Block,DSG Skills and Attainment,Free Nursery Education Commissioning - three & four  year olds,3rd Party Payments,Contracts - Child Care,REDACTED PERSONAL DATA,SN1 ,17/05/2023,"1,623.96"
84063505,Learning Disabilities,Adults,Learning Disability 18 - 64,Transfer Payments,Personal Budget - Direct Payments - Domiciliary Care,REDACTED PERSONAL DATA,SN5 ,03/05/2023,"3,844.76"
88485477,Learning Disabilities,Adults,Learning Disability 18 - 64,Transfer Payments,Personal Budget - Direct Payments - Domiciliary Care,REDACTED PERSONAL DATA,SN5 ,31/05/2023,"3,844.76"
87382233,Schools Maintenance,Skills & Attainment,Condition Works,Capital,Contractor Payments,ALL PUMP SOLUTIONS LLP,SY1 ,19/05/2023,"3,310.53"
87939233,Highways Schemes,Strategic Planning and Highways,Car Parks Major Maintenance,Capital,Contractor Payments,ALLBUILD BUILDING & LANDSCAPING SERVICES,SN25,24/05/2023,"1,960.00"
84977237,Streetsmart,Streetsmart,Waterside Fleet Workshops,Supplies and Services,Materials,ALLIANCE AUTOMOTIVE UK T/A BRAYMARC,BD4 ,05/05/2023,150
84977237,Streetsmart,Streetsmart,Waterside Fleet Workshops,Supplies and Services,Equipment,ALLIANCE AUTOMOTIVE UK T/A BRAYMARC,BD4 ,05/05/2023,695
86649233,Landlord Services,Supervision & Management,Estate Management Team,Supplies and Services,Contracts,ALLPAY-NET LIMITED,HR1 ,17/05/2023,"1,974.33"
85632233,Treasury,Corporate Finance,Treasury,Supplies and Services,Bank Charges,ALLPAY-NET LIMITED,HR1 ,10/05/2023,"1,340.07"
84190237,Social Care,"Children, Families and Community Health Services",Children's Resource and Home Finding Team,3rd Party Payments,Independent Fostering Agency Placements,ALPHA24 HEALTHCARE LTD,WC1V,03/05/2023,620
87889233,Disabled Children,"Children, Families and Community Health Services",DCT Daytime Short Breaks,3rd Party Payments,Respite Care,ALPHA24 HEALTHCARE LTD,EC1M,24/05/2023,720
88711233,Disabled Children,"Children, Families and Community Health Services",DCT Daytime Short Breaks,3rd Party Payments,Respite Care,ALPHA24 HEALTHCARE LTD,EC1M,31/05/2023,"1,800.00"
87882233,Disabled Children,"Children, Families and Community Health Services",DCT Daytime Short Breaks,3rd Party Payments,Respite Care,ALPHA24 HEALTHCARE LTD,EC1M,24/05/2023,"1,440.00"
87883233,Disabled Children,"Children, Families and Community Health Services",DCT Daytime Short Breaks,3rd Party Payments,Respite Care,ALPHA24 HEALTHCARE LTD,EC1M,24/05/2023,"1,440.00"
88824233,Disabled Children,"Children, Families and Community Health Services",DCT Daytime Short Breaks,3rd Party Payments,Respite Care,ALPHA24 HEALTHCARE LTD,EC1M,31/05/2023,720
88823233,Disabled Children,"Children, Families and Community Health Services",DCT Daytime Short Breaks,3rd Party Payments,Respite Care,ALPHA24 HEALTHCARE LTD,EC1M,31/05/2023,"1,800.00"
88708233,Disabled Children,"Children, Families and Community Health Services",DCT Daytime Short Breaks,3rd Party Payments,Respite Care,ALPHA24 HEALTHCARE LTD,EC1M,31/05/2023,"1,440.00"
87329318,Physical Support,Adults,Physical Support 65 and over,3rd Party Payments,Nursing Care,ALTOGETHER CARE WEYMOUTH CARE HOME,DT4 ,19/05/2023,"4,023.28"
87329318,Physical Support,Adults,Physical Support 65 and over,Income,Client Contribution - Nursing,ALTOGETHER CARE WEYMOUTH CARE HOME,DT4 ,19/05/2023,-627.8
85178233,Highways Schemes,Strategic Planning and Highways,"Rapid Transit - QBC Wichelstowe, North and UTMC",Capital,Contractor Payments,ALUN GRIFFITHS (CONTRACTORS ) LTD,NP7 ,05/05/2023,"67,580.08"
84390233,Social Care,"Children, Families and Community Health Services",CP & CIN Social Work - North,Employees,Temporary / Agency - by Accounts Payable,AMBE,W14 ,03/05/2023,750
88030233,DSG Other Funding,DSG Skills and Attainment,LAC pupil premium,Supplies and Services,Services,AMBERLEIGH CARE LTD,TF2 ,31/05/2023,600
87163233,Social Care,"Children, Families and Community Health Services",Children's Resource and Home Finding Team,3rd Party Payments,Residential Care,AMEGREEN CHILDREN'S SERVICES LTD,RG7 ,19/05/2023,"17,437.50"
83843233,Responsive Repairs,Repairs,Responsive Repairs,Premises Costs,Repairs - Buildings,AMELIO UTILITIES(GLOU) LTD T/A 3 COUNTIES DRAIN SERVICES,GL1 ,03/05/2023,127.35
83843233,Responsive Repairs,Repairs,Responsive Repairs,Premises Costs,Repairs - Buildings,AMELIO UTILITIES(GLOU) LTD T/A 3 COUNTIES DRAIN SERVICES,GL1 ,03/05/2023,159.94
86982235,Responsive Repairs,Repairs,Responsive Repairs,Premises Costs,Repairs - Buildings,AMELIO UTILITIES(GLOU) LTD T/A 3 COUNTIES DRAIN SERVICES,GL1 ,17/05/2023,210.89
83843233,Responsive Repairs,Repairs,Responsive Repairs,Premises Costs,Repairs - Buildings,AMELIO UTILITIES(GLOU) LTD T/A 3 COUNTIES DRAIN SERVICES,GL1 ,03/05/2023,319.88
83843233,Responsive Repairs,Repairs,Responsive Repairs,Premises Costs,Repairs - Buildings,AMELIO UTILITIES(GLOU) LTD T/A 3 COUNTIES DRAIN SERVICES,GL1 ,03/05/2023,191.02
86982235,Responsive Repairs,Repairs,Responsive Repairs,Premises Costs,Repairs - Buildings,AMELIO UTILITIES(GLOU) LTD T/A 3 COUNTIES DRAIN SERVICES,GL1 ,17/05/2023,140.6
83843233,Responsive Repairs,Repairs,Responsive Repairs,Premises Costs,Repairs - Buildings,AMELIO UTILITIES(GLOU) LTD T/A 3 COUNTIES DRAIN SERVICES,GL1 ,03/05/2023,353.14
86982235,Responsive Repairs,Repairs,Responsive Repairs,Premises Costs,Repairs - Buildings,AMELIO UTILITIES(GLOU) LTD T/A 3 COUNTIES DRAIN SERVICES,GL1 ,17/05/2023,176.57
88896233,Responsive Repairs,Repairs,Responsive Repairs,Premises Costs,Repairs - Buildings,AMELIO UTILITIES(GLOU) LTD T/A 3 COUNTIES DRAIN SERVICES,GL1 ,31/05/2023,140.6
83843233,Responsive Repairs,Repairs,Responsive Repairs,Premises Costs,Repairs - Buildings,AMELIO UTILITIES(GLOU) LTD T/A 3 COUNTIES DRAIN SERVICES,GL1 ,03/05/2023,350.96
88896233,Responsive Repairs,Repairs,Responsive Repairs,Premises Costs,Repairs - Buildings,AMELIO UTILITIES(GLOU) LTD T/A 3 COUNTIES DRAIN SERVICES,GL1 ,31/05/2023,210.89
86982235,Responsive Repairs,Repairs,Responsive Repairs,Premises Costs,Repairs - Buildings,AMELIO UTILITIES(GLOU) LTD T/A 3 COUNTIES DRAIN SERVICES,GL1 ,17/05/2023,387.46
88896233,Responsive Repairs,Repairs,Responsive Repairs,Premises Costs,Repairs - Buildings,AMELIO UTILITIES(GLOU) LTD T/A 3 COUNTIES DRAIN SERVICES,GL1 ,31/05/2023,176.57
86982235,Responsive Repairs,Repairs,Responsive Repairs,Premises Costs,Repairs - Buildings,AMELIO UTILITIES(GLOU) LTD T/A 3 COUNTIES DRAIN SERVICES,GL1 ,17/05/2023,127.35
83843233,Responsive Repairs,Repairs,Responsive Repairs,Premises Costs,Repairs - Buildings,AMELIO UTILITIES(GLOU) LTD T/A 3 COUNTIES DRAIN SERVICES,GL1 ,03/05/2023,176.57
83843233,Responsive Repairs,Repairs,Responsive Repairs,Premises Costs,Repairs - Buildings,AMELIO UTILITIES(GLOU) LTD T/A 3 COUNTIES DRAIN SERVICES,GL1 ,03/05/2023,387.46
83777233,Highways & Transport,Highways & Transport,Project Delivery,Supplies and Services,Services,AMEY OW LTD,L19 ,03/05/2023,"52,998.30"
83921233,Disabled Children,"Children, Families and Community Health Services",DCT Daytime Short Breaks,3rd Party Payments,Respite Care,AMICUS FOSTER CARE,BS2 ,03/05/2023,"4,600.00"
88485342,Mental Health,Adults,Mental Health 18-64,Transfer Payments,Personal Budget - Direct Payments - Domiciliary Care,REDACTED PERSONAL DATA,SN25,31/05/2023,619.34
84063366,Mental Health,Adults,Mental Health 18-64,Transfer Payments,Personal Budget - Direct Payments - Domiciliary Care,REDACTED PERSONAL DATA,SN25,03/05/2023,619.34
84063351,Learning Disabilities,Adults,Learning Disability 18 - 64,Transfer Payments,Personal Budget - Direct Payments - Domiciliary Care,REDACTED PERSONAL DATA,SP11,03/05/2023,502.46
88485329,Learning Disabilities,Adults,Learning Disability 18 - 64,Transfer Payments,Personal Budget - Direct Payments - Domiciliary Care,REDACTED PERSONAL DATA,SP11,31/05/2023,502.46
87139244,Homelessness and Travellers,Housing Services,Leased Private Managed Accommodation,Transfer Payments,Payment of Costs,REDACTED PERSONAL DATA,SN26,24/05/2023,675
87782265,High Needs Block,DSG Skills and Attainment,SEN Resourcing Assessment Panel,3rd Party Payments,Top up funding - Maintained providers Pre 16,REDACTED PERSONAL DATA,SN5 ,24/05/2023,936
87139355,Homelessness and Travellers,Housing Services,Leased Private Managed Accommodation,Transfer Payments,Payment of Costs,ANGELVIEW PROPERTIES LTD,ALBO,24/05/2023,590
84972282,Social Care,"Children, Families and Community Health Services",Placement Fostering Service,3rd Party Payments,Carers Skills Payments - Advanced,REDACTED PERSONAL DATA,SN5 ,05/05/2023,237.86
84972282,Social Care,"Children, Families and Community Health Services",Placement Fostering Service,3rd Party Payments,Carers Skills Payments - Qualified,REDACTED PERSONAL DATA,SN5 ,05/05/2023,-1
84972282,Social Care,"Children, Families and Community Health Services",Placement Fostering Service,3rd Party Payments,Foster Care Basic Payments,REDACTED PERSONAL DATA,SN5 ,05/05/2023,325.29
88485575,Physical Support,Adults,Physical Support 18 - 64,Transfer Payments,Personal Budget - Direct Payments - Domiciliary Care,REDACTED PERSONAL DATA,SN25,31/05/2023,"2,686.51"
84063611,Physical Support,Adults,Physical Support 18 - 64,Transfer Payments,Personal Budget - Direct Payments - Domiciliary Care,REDACTED PERSONAL DATA,SN25,03/05/2023,"2,686.51"
87156233,HRA Overheads,Supervision & Management,Admin / Management General,Premises Costs,Insurance - Premises,AON UK LIMITED,EC3V,19/05/2023,"3,080.58"
85128237,Supported Employment,Housing Services,EW - Timber,Supplies and Services,Materials,APETITO LIMITED,BA14,05/05/2023,"1,128.04"
85128235,Supported Employment,Housing Services,Community Meals,Supplies and Services,Food,APETITO LIMITED,BA14,05/05/2023,"1,209.32"
87252233,Supported Employment,Housing Services,Community Meals,Supplies and Services,Food,APETITO LIMITED,BA14,19/05/2023,"1,187.56"
87254233,Supported Employment,Housing Services,Community Meals,Supplies and Services,Food,APETITO LIMITED,BA14,19/05/2023,996.53
88878233,Responsive Repairs,Repairs,Responsive Repairs,3rd Party Payments,Contract Payments,APEX SCAFFOLDING SERVICES,SN2 ,31/05/2023,480
83872233,Responsive Repairs,Repairs,Responsive Repairs,3rd Party Payments,Contract Payments,APEX SCAFFOLDING SERVICES,SN2 ,03/05/2023,55
83730233,Responsive Repairs,Repairs,Responsive Repairs,3rd Party Payments,Contract Payments,APEX SCAFFOLDING SERVICES,SN2 ,03/05/2023,625
83728233,Responsive Repairs,Repairs,Responsive Repairs,3rd Party Payments,Contract Payments,APEX SCAFFOLDING SERVICES,SN2 ,03/05/2023,"1,682.41"
83727233,Responsive Repairs,Repairs,Responsive Repairs,3rd Party Payments,Contract Payments,APEX SCAFFOLDING SERVICES,SN2 ,03/05/2023,518.4
88879233,Responsive Repairs,Repairs,Responsive Repairs,3rd Party Payments,Contract Payments,APEX SCAFFOLDING SERVICES,SN2 ,31/05/2023,765
87384233,Communications & Engagement,Communications & Engagement,"Policy, Campaigns and Communications",Supplies and Services,Design & Printing Costs,APOGEE CORPORATION LIMITED,EC2A,19/05/2023,"1,240.00"
87028233,Digital & Business Change,Digital & Business Change,IT Operations,Supplies and Services,Services,APOGEE CORPORATION LIMITED,ME16,17/05/2023,"14,994.86"
87329255,Learning Disabilities,Adults,Learning Disability 18 - 64,Income,Client Contribution - Residential,APPLEFORD LTD T/A DANESWOOD,BS25,19/05/2023,-438.8
87329255,Learning Disabilities,Adults,Learning Disability 18 - 64,3rd Party Payments,Residential Care,APPLEFORD LTD T/A DANESWOOD,BS25,19/05/2023,"20,190.92"
86302233,Adults - Staffing and Supporting People,Adults,Blue Badges,Supplies and Services,Materials,APS GROUP,SK3 ,15/05/2023,"1,143.62"
85428233,Highways & Transport,Highways & Transport,Bridge Inspection and Maintenance,Supplies and Services,Repairs & Maintenance,ARBUS LTD,PO20,10/05/2023,"6,250.00"
87782233,High Needs Block,DSG Skills and Attainment,SEN Resourcing Assessment Panel,3rd Party Payments,Top up funding - Maintained providers Pre 16,REDACTED PERSONAL DATA,SN2 ,24/05/2023,"7,980.00"
87698233,Early Years Block,DSG Skills and Attainment,Free Nursery Education Commissioning - three & four  year olds,3rd Party Payments,Contracts - Child Care,REDACTED PERSONAL DATA,SN2 ,24/05/2023,"7,980.00"
88197235,Environmental & Regulatory,Highways & Transport,Shaw Farm Landfill Site,Supplies and Services,Testing / Inspection,ARCTIC SERVICES (SWINDON) LTD,SN4 ,26/05/2023,"1,680.00"
85974233,Social Care,"Children, Families and Community Health Services",Children's Resource and Home Finding Team,3rd Party Payments,Residential Care,AREA CAMDEN GROUP,N8 0,12/05/2023,"21,857.10"
87163253,Social Care,"Children, Families and Community Health Services",Children's Resource and Home Finding Team,3rd Party Payments,Residential Care,AREA CAMDEN GROUP,N8 0,19/05/2023,"22,585.67"
88740233,Lydiard Park,Culture & Heritage,Lydiard : Hotel Operations,Supplies and Services,Food,ARKELLS BREWERY LTD,SN2 ,31/05/2023,926
87748233,Lydiard Park,Culture & Heritage,Lydiard : Hotel Operations,Supplies and Services,Liquid,ARKELLS BREWERY LTD,SN2 ,24/05/2023,"5,703.35"
87759233,Lydiard Park,Culture & Heritage,Lydiard : Hotel Operations,Supplies and Services,Liquid,ARKELLS BREWERY LTD,SN2 ,24/05/2023,"2,091.71"
85898235,Streetsmart,Streetsmart,Waterside Fleet Hires,Transport Costs,Vehicle Hire / Contract,ARNOLD PLANT HIRE LIMITED,SK6 ,12/05/2023,"1,400.00"
85898237,Streetsmart,Streetsmart,Waterside Fleet Hires,Transport Costs,Vehicle Hire / Contract,ARNOLD PLANT HIRE LIMITED,SK6 ,12/05/2023,"1,060.00"
88050236,Streetsmart,Streetsmart,Waterside Fleet Workshops,Supplies and Services,Materials,ARNOLD PLANT HIRE LIMITED,SK6 ,26/05/2023,852.41
84348233,Town Centre,"Economy, Growth and Place",Kimmerfields enabling works,Capital,Contractor Payments,ARTSITE LIMITED,SN1 ,03/05/2023,"1,180.00"
Corporate Card Transaction,Community Health & Wellbeing,Public Health,Community Health and Wellbeing Management,Supplies and Services,Food,Asda Stores,,27/04/2023,600
87329256,Mental Health,Adults,Mental Health 18-64,3rd Party Payments,Residential Care,ASH VIEW HOUSE,BS15,19/05/2023,"7,476.36"
87329256,Mental Health,Adults,Mental Health 18-64,Income,Client Contribution - Residential,ASH VIEW HOUSE,BS15,19/05/2023,-418.8
87324233,Physical Support,Adults,Physical Support 65 and over,3rd Party Payments,Residential Care,ASHBURY LODGE,SN3 ,19/05/2023,"2,867.32"
87324233,Mental Health,Adults,Mental Health 65 and over,Income,Client Contribution - Residential,ASHBURY LODGE,SN3 ,19/05/2023,-691.2
87324233,Mental Health,Adults,Mental Health 65 and over,Income,Client Contribution - Residential,ASHBURY LODGE,SN3 ,19/05/2023,"1,210.76"
87324233,Mental Health,Adults,Mental Health 65 and over,3rd Party Payments,Residential Care,ASHBURY LODGE,SN3 ,19/05/2023,"-4,937.37"
87324233,Mental Health,Adults,Mental Health 65 and over,3rd Party Payments,Residential Care,ASHBURY LODGE,SN3 ,19/05/2023,559.54
87324233,Physical Support,Adults,Physical Support 65 and over,Income,Client Contribution - Residential,ASHBURY LODGE,SN3 ,19/05/2023,-627.8
87324233,Physical Support,Adults,Physical Support 65 and over,3rd Party Payments,Residential Care,ASHBURY LODGE,SN3 ,19/05/2023,"-4,937.37"
87324233,Physical Support,Adults,Physical Support 65 and over,3rd Party Payments,Residential Care,ASHBURY LODGE,SN3 ,19/05/2023,"5,529.83"
87324233,Physical Support,Adults,Physical Support 65 and over,3rd Party Payments,Residential Care,ASHBURY LODGE,SN3 ,19/05/2023,"-3,291.58"
87324233,Physical Support,Adults,Physical Support 65 and over,3rd Party Payments,Residential Care,ASHBURY LODGE,SN3 ,19/05/2023,"-1,638.47"
87324233,Mental Health,Adults,Mental Health 65 and over,Income,Client Contribution - Residential,ASHBURY LODGE,SN3 ,19/05/2023,-740.57
87324233,Mental Health,Adults,Mental Health 65 and over,3rd Party Payments,Residential Care,ASHBURY LODGE,SN3 ,19/05/2023,"2,867.32"
87324233,Mental Health,Adults,Mental Health 65 and over,3rd Party Payments,Residential Care,ASHBURY LODGE,SN3 ,19/05/2023,"3,072.13"
87324233,Mental Health,Adults,Mental Health 65 and over,3rd Party Payments,Residential Care,ASHBURY LODGE,SN3 ,19/05/2023,"5,529.83"
87324233,Physical Support,Adults,Physical Support 65 and over,Income,Client Contribution - Residential,ASHBURY LODGE,SN3 ,19/05/2023,"-1,308.16"
87324233,Physical Support,Adults,Physical Support 65 and over,Income,Client Contribution - Residential,ASHBURY LODGE,SN3 ,19/05/2023,"-1,020.32"
87324233,Physical Support,Adults,Physical Support 65 and over,3rd Party Payments,Residential Care,ASHBURY LODGE,SN3 ,19/05/2023,"2,668.72"
87324233,Mental Health,Adults,Mental Health 65 and over,Income,Client Contribution - Residential,ASHBURY LODGE,SN3 ,19/05/2023,-805.32
87324233,Physical Support,Adults,Physical Support 65 and over,Income,Client Contribution - Residential,ASHBURY LODGE,SN3 ,19/05/2023,-587.4
87324233,Physical Support,Adults,Physical Support 65 and over,Income,Client Contribution - Residential,ASHBURY LODGE,SN3 ,19/05/2023,-875.2
87324233,Physical Support,Adults,Physical Support 65 and over,Income,Client Contribution - Residential,ASHBURY LODGE,SN3 ,19/05/2023,-610
87324233,Physical Support,Adults,Physical Support 65 and over,3rd Party Payments,Residential Care,ASHBURY LODGE,SN3 ,19/05/2023,"2,560.12"
87324233,Physical Support,Adults,Physical Support 65 and over,3rd Party Payments,Residential Care,ASHBURY LODGE,SN3 ,19/05/2023,"7,776.00"
87324233,Physical Support,Adults,Physical Support 65 and over,Income,Client Contribution - Residential,ASHBURY LODGE,SN3 ,19/05/2023,-886.6
87324233,Physical Support,Adults,Physical Support 65 and over,3rd Party Payments,Residential Care,ASHBURY LODGE,SN3 ,19/05/2023,"-6,942.86"
87324233,Mental Health,Adults,Mental Health 65 and over,3rd Party Payments,Residential Care,ASHBURY LODGE,SN3 ,19/05/2023,"2,988.96"
87324233,Mental Health,Adults,Mental Health 65 and over,3rd Party Payments,Residential Care,ASHBURY LODGE,SN3 ,19/05/2023,"5,764.42"
87324233,Physical Support,Adults,Physical Support 65 and over,Income,Client Contribution - Residential,ASHBURY LODGE,SN3 ,19/05/2023,-691.2
87324233,Physical Support,Adults,Physical Support 65 and over,3rd Party Payments,Residential Care,ASHBURY LODGE,SN3 ,19/05/2023,"4,032.00"
87324233,Physical Support,Adults,Physical Support 65 and over,3rd Party Payments,Residential Care,ASHBURY LODGE,SN3 ,19/05/2023,"1,638.47"
87324233,Mental Health,Adults,Mental Health 65 and over,3rd Party Payments,Residential Care,ASHBURY LODGE,SN3 ,19/05/2023,"-5,146.82"
87324233,Physical Support,Adults,Physical Support 65 and over,Income,Client Contribution - Residential,ASHBURY LODGE,SN3 ,19/05/2023,-394.97
87324233,Physical Support,Adults,Physical Support 65 and over,Income,Client Contribution - Residential,ASHBURY LODGE,SN3 ,19/05/2023,-730.76
87324233,Physical Support,Adults,Physical Support 65 and over,Income,Client Contribution - Residential,ASHBURY LODGE,SN3 ,19/05/2023,-657.68
87322233,Physical Support,Adults,Physical Support 65 and over,3rd Party Payments,Nursing Care,ASHGROVE HOUSE NURSING HOME,SN5 ,19/05/2023,"6,080.00"
87322233,Physical Support,Adults,Physical Support 65 and over,Income,Client Contribution - Nursing,ASHGROVE HOUSE NURSING HOME,SN5 ,19/05/2023,-677.2
83041233,Public Health,Public Health,Health Checks,3rd Party Payments,Contract Payments,ASHINGTON HOUSE SURGERY,SN5 ,03/05/2023,"2,935.02"
86207233,Public Health,Public Health,Sexual Health & Health Protection Budget,3rd Party Payments,Contract Payments,ASHINGTON HOUSE SURGERY,SN5 ,15/05/2023,"1,208.00"
83737233,Public Health,Public Health,Smoking & Tobacco,3rd Party Payments,Contract Payments,ASHINGTON WAY PHARMACY,SN5 ,03/05/2023,613.68
83737233,Public Health,Public Health,Smoking & Tobacco,3rd Party Payments,Contract Payments,ASHINGTON WAY PHARMACY,SN5 ,03/05/2023,140
88485596,Physical Support,Adults,Physical Support 18 - 64,Transfer Payments,Personal Budget - Direct Payments - Domiciliary Care,REDACTED PERSONAL DATA,SN25,31/05/2023,"1,689.94"
84063634,Physical Support,Adults,Physical Support 18 - 64,Transfer Payments,Personal Budget - Direct Payments - Domiciliary Care,REDACTED PERSONAL DATA,SN25,03/05/2023,"1,689.94"
84969233,Libraries,"Education, Inclusion and Skills",Library Delivery,Supplies and Services,Materials,ASKEWS AND HOLTS LIBRARY SERVICES LIMITED,PR1 ,05/05/2023,"1,917.76"
83631233,Libraries,"Education, Inclusion and Skills",Library Delivery,Supplies and Services,Materials,ASKEWS AND HOLTS LIBRARY SERVICES LIMITED,PR1 ,03/05/2023,"1,437.92"
87457233,Libraries,"Education, Inclusion and Skills",Library Delivery,Supplies and Services,Materials,ASKEWS AND HOLTS LIBRARY SERVICES LIMITED,PR1 ,24/05/2023,"1,438.17"
84968233,Libraries,"Education, Inclusion and Skills",Library Delivery,Supplies and Services,Materials,ASKEWS AND HOLTS LIBRARY SERVICES LIMITED,PR1 ,05/05/2023,"2,289.45"
87458233,Libraries,"Education, Inclusion and Skills",Library Delivery,Supplies and Services,Materials,ASKEWS AND HOLTS LIBRARY SERVICES LIMITED,PR1 ,24/05/2023,612.32
85900233,Libraries,"Education, Inclusion and Skills",Library Delivery,Supplies and Services,Materials,ASKEWS AND HOLTS LIBRARY SERVICES LIMITED,PR1 ,12/05/2023,"1,291.75"
87328271,Learning Disabilities,Adults,Learning Disability 18 - 64,3rd Party Payments,Residential Care,ASPECTS & MILESTONES TRUST,BS16,19/05/2023,"6,426.36"
87328271,Learning Disabilities,Adults,Learning Disability 18 - 64,Income,Client Contribution - Residential,ASPECTS & MILESTONES TRUST,BS16,19/05/2023,-425.6
87329264,Mental Health,Adults,Mental Health 65 and over,3rd Party Payments,Supported Lodgings (Childrens)/Supported Living (Adults),ASPECTS 2 LTD,B70 ,19/05/2023,"-2,035.20"
87329264,Mental Health,Adults,Mental Health 65 and over,3rd Party Payments,Supported Lodgings (Childrens)/Supported Living (Adults),ASPECTS 2 LTD,B70 ,19/05/2023,"2,174.40"
87329264,Learning Disabilities,Adults,Learning Disability 18 - 64,3rd Party Payments,Residential Care,ASPECTS 2 LTD,B70 ,19/05/2023,"17,894.52"
87329264,Physical Support,Adults,Physical Support 18 - 64,3rd Party Payments,Supported Lodgings (Childrens)/Supported Living (Adults),ASPECTS 2 LTD,B70 ,19/05/2023,"4,200.00"
87329264,Learning Disabilities,Adults,Learning Disability 18 - 64,Income,Client Contribution - Residential,ASPECTS 2 LTD,B70 ,19/05/2023,-438.8
87329264,Physical Support,Adults,Physical Support 18 - 64,3rd Party Payments,Supported Lodgings (Childrens)/Supported Living (Adults),ASPECTS 2 LTD,B70 ,19/05/2023,"-5,896.80"
87329264,Learning Disabilities,Adults,Learning Disability 18 - 64,3rd Party Payments,Residential Care,ASPECTS 2 LTD,B70 ,19/05/2023,"-15,977.29"
87329264,Mental Health,Adults,Mental Health 65 and over,3rd Party Payments,Supported Lodgings (Childrens)/Supported Living (Adults),ASPECTS 2 LTD,B70 ,19/05/2023,"1,449.60"
87329264,Physical Support,Adults,Physical Support 18 - 64,3rd Party Payments,Supported Lodgings (Childrens)/Supported Living (Adults),ASPECTS 2 LTD,B70 ,19/05/2023,"6,300.00"
87329264,Learning Disabilities,Adults,Learning Disability 18 - 64,3rd Party Payments,Residential Care,ASPECTS 2 LTD,B70 ,19/05/2023,"9,278.64"
85643233,Streetsmart,Streetsmart,Lydiard House & Hotel Improvements,Capital,Contractor Payments,ASSA ABLOY GLOBAL SOLUTIONS UK LTD,RG2 ,10/05/2023,522.02
85538233,Streetsmart,Streetsmart,Lydiard House & Hotel Improvements,Capital,Contractor Payments,ASSA ABLOY GLOBAL SOLUTIONS UK LTD,RG2 ,10/05/2023,"14,430.59"
87329285,Learning Disabilities,Adults,Learning Disability 65 and over,3rd Party Payments,Residential Care,ASTON CARE LIMITED,RG30,19/05/2023,"-12,742.30"
87329285,Learning Disabilities,Adults,Learning Disability 18 - 64,3rd Party Payments,Residential Care,ASTON CARE LIMITED,RG30,19/05/2023,"14,924.29"
87329285,Learning Disabilities,Adults,Learning Disability 18 - 64,3rd Party Payments,Residential Care,ASTON CARE LIMITED,RG30,19/05/2023,"10,199.72"
87329286,Learning Disabilities,Adults,Learning Disability 18 - 64,Income,Client Contribution - Residential,ASTON CARE LIMITED,RG30,19/05/2023,-262.4
87329285,Learning Disabilities,Adults,Learning Disability 18 - 64,3rd Party Payments,Residential Care,ASTON CARE LIMITED,RG30,19/05/2023,"-12,246.89"
87329285,Learning Disabilities,Adults,Learning Disability 65 and over,3rd Party Payments,Residential Care,ASTON CARE LIMITED,RG30,19/05/2023,"14,271.35"
87329285,Learning Disabilities,Adults,Learning Disability 18 - 64,Income,Client Contribution - Residential,ASTON CARE LIMITED,RG30,19/05/2023,-594.36
87329286,Learning Disabilities,Adults,Learning Disability 18 - 64,3rd Party Payments,Residential Care,ASTON CARE LIMITED,RG30,19/05/2023,"9,182.84"
87329285,Learning Disabilities,Adults,Learning Disability 18 - 64,3rd Party Payments,Residential Care,ASTON CARE LIMITED,RG30,19/05/2023,"7,738.52"
87329285,Learning Disabilities,Adults,Learning Disability 18 - 64,Income,Client Contribution - Residential,ASTON CARE LIMITED,RG30,19/05/2023,-410.8
87329285,Learning Disabilities,Adults,Learning Disability 18 - 64,3rd Party Payments,Residential Care,ASTON CARE LIMITED,RG30,19/05/2023,"19,670.89"
87329285,Learning Disabilities,Adults,Learning Disability 65 and over,3rd Party Payments,Residential Care,ASTON CARE LIMITED,RG30,19/05/2023,"7,399.96"
87329285,Learning Disabilities,Adults,Learning Disability 18 - 64,3rd Party Payments,Residential Care,ASTON CARE LIMITED,RG30,19/05/2023,"13,716.54"
87329285,Learning Disabilities,Adults,Learning Disability 18 - 64,3rd Party Payments,Residential Care,ASTON CARE LIMITED,RG30,19/05/2023,"-17,559.26"
87329285,Learning Disabilities,Adults,Learning Disability 18 - 64,Income,Client Contribution - Residential,ASTON CARE LIMITED,RG30,19/05/2023,"-1,033.20"
87329285,Learning Disabilities,Adults,Learning Disability 18 - 64,3rd Party Payments,Residential Care,ASTON CARE LIMITED,RG30,19/05/2023,"-13,325.27"
87329285,Learning Disabilities,Adults,Learning Disability 18 - 64,3rd Party Payments,Residential Care,ASTON CARE LIMITED,RG30,19/05/2023,"7,112.28"
87924233,Housing & Supported Living,Adults,Disabled Facilities Grants,Capital,Grant Payments,ASTOR BANNERMAN (MEDICAL) LTD,GL54,24/05/2023,"10,033.00"
84093233,NEV,"Economy, Growth and Place",Package 2 - Nythe Road Junction and Piccadilly Roundabout,Capital,Professional Fees,ATKINS LTD,WR4 ,03/05/2023,"6,996.00"
84346233,NEV,"Economy, Growth and Place",Gablecross Junction,Capital,Professional Fees,ATKINS LTD,WR4 ,03/05/2023,"12,770.00"
87163239,Social Care,"Children, Families and Community Health Services",Children's Resource and Home Finding Team,3rd Party Payments,Residential Care,A-TRIANGLE CARE LIMITED,FY5 ,19/05/2023,"25,692.86"
87163240,Social Care,"Children, Families and Community Health Services",Children's Resource and Home Finding Team,3rd Party Payments,Residential Care,A-TRIANGLE CARE LIMITED,FY5 ,19/05/2023,"26,549.29"
87895233,Social Care,"Children, Families and Community Health Services",CP & CIN Social Work - South,Employees,Temporary / Agency - by Accounts Payable,ATTENTI LTD,EC2R,24/05/2023,472
87900263,Social Care,"Children, Families and Community Health Services",CP & CIN Social Work - South,Employees,Temporary / Agency - by Accounts Payable,ATTENTI LTD,EC2R,24/05/2023,"1,888.00"
85794233,Social Care,"Children, Families and Community Health Services",CP & CIN Social Work - South,Employees,Temporary / Agency - by Accounts Payable,ATTENTI LTD,EC2R,12/05/2023,"2,360.00"
84377233,Social Care,"Children, Families and Community Health Services",CP & CIN Social Work - South,Employees,Temporary / Agency - by Accounts Payable,ATTENTI LTD,EC2R,03/05/2023,"2,360.00"
84334233,Social Care,"Children, Families and Community Health Services",CP & CIN Social Work - South,Employees,Temporary / Agency - by Accounts Payable,ATTENTI LTD,EC2R,03/05/2023,708
84328233,Social Care,"Children, Families and Community Health Services",CP & CIN Social Work - South,Employees,Temporary / Agency - by Accounts Payable,ATTENTI LTD,EC2R,03/05/2023,"2,183.00"
88847233,Senior Management Team,"Children, Families and Community Health Services",Senior Management Team - Staffing,Employees,Temporary / Agency - by Accounts Payable,ATTENTI LTD,EC2R,31/05/2023,"3,245.00"
87893233,Senior Management Team,"Children, Families and Community Health Services",Senior Management Team - Staffing,Employees,Temporary / Agency - by Accounts Payable,ATTENTI LTD,EC2R,24/05/2023,"2,596.00"
86711233,Senior Management Team,"Children, Families and Community Health Services",Senior Management Team - Staffing,Employees,Temporary / Agency - by Accounts Payable,ATTENTI LTD,EC2R,17/05/2023,"2,832.00"
88091233,Senior Management Team,"Children, Families and Community Health Services",Senior Management Team - Staffing,Employees,Temporary / Agency - by Accounts Payable,ATTENTI LTD,EC2R,26/05/2023,"4,130.00"
87843233,Senior Management Team,"Children, Families and Community Health Services",Senior Management Team - Staffing,Employees,Temporary / Agency - by Accounts Payable,ATTENTI LTD,EC2R,24/05/2023,"4,130.00"
85269233,Senior Management Team,"Children, Families and Community Health Services",Senior Management Team - Staffing,Employees,Temporary / Agency - by Accounts Payable,ATTENTI LTD,EC2R,10/05/2023,"1,298.00"
84442233,Senior Management Team,"Children, Families and Community Health Services",Senior Management Team - Staffing,Employees,Temporary / Agency - by Accounts Payable,ATTENTI LTD,EC2R,03/05/2023,"3,540.00"
88842233,Social Care,"Children, Families and Community Health Services",CP & CIN Social Work - South,Employees,Temporary / Agency - by Accounts Payable,ATTENTI LTD,EC2R,31/05/2023,"1,770.00"
88111233,Social Care,"Children, Families and Community Health Services",CP & CIN Social Work - South,Employees,Temporary / Agency - by Accounts Payable,ATTENTI LTD,EC2R,26/05/2023,"2,360.00"
86912233,Social Care,"Children, Families and Community Health Services",CP & CIN Social Work - South,Employees,Temporary / Agency - by Accounts Payable,ATTENTI LTD,EC2R,17/05/2023,"2,360.00"
86602233,Social Care,"Children, Families and Community Health Services",CP & CIN Social Work - South,Employees,Temporary / Agency - by Accounts Payable,ATTENTI LTD,EC2R,17/05/2023,"2,360.00"
86779235,Social Care,"Children, Families and Community Health Services",CP & CIN Social Work - South,Employees,Temporary / Agency - by Accounts Payable,ATTENTI LTD,EC2R,17/05/2023,442.5
85811233,Social Care,"Children, Families and Community Health Services",CP & CIN Social Work - South,Employees,Temporary / Agency - by Accounts Payable,ATTENTI LTD,EC2R,12/05/2023,"2,183.00"
87896233,Senior Management Team,"Children, Families and Community Health Services",Senior Management Team - Staffing,Employees,Temporary / Agency - by Accounts Payable,ATTENTI LTD,EC2R,24/05/2023,"2,596.00"
86601233,Senior Management Team,"Children, Families and Community Health Services",Senior Management Team - Staffing,Employees,Temporary / Agency - by Accounts Payable,ATTENTI LTD,EC2R,17/05/2023,"3,245.00"
85792233,Senior Management Team,"Children, Families and Community Health Services",Senior Management Team - Staffing,Employees,Temporary / Agency - by Accounts Payable,ATTENTI LTD,EC2R,12/05/2023,"3,540.00"
84357233,Senior Management Team,"Children, Families and Community Health Services",Senior Management Team - Staffing,Employees,Temporary / Agency - by Accounts Payable,ATTENTI LTD,EC2R,03/05/2023,"3,540.00"
88845233,Social Care,"Children, Families and Community Health Services",CP & CIN Social Work - South,Employees,Temporary / Agency - by Accounts Payable,ATTENTI LTD,EC2R,31/05/2023,"2,183.00"
88841233,Social Care,"Children, Families and Community Health Services",CP & CIN Social Work - South,Employees,Temporary / Agency - by Accounts Payable,ATTENTI LTD,EC2R,31/05/2023,"2,183.00"
88753233,Social Care,"Children, Families and Community Health Services",CP & CIN Social Work - South,Employees,Temporary / Agency - by Accounts Payable,ATTENTI LTD,EC2R,31/05/2023,"1,888.00"
88752233,Social Care,"Children, Families and Community Health Services",CP & CIN Social Work - South,Employees,Temporary / Agency - by Accounts Payable,ATTENTI LTD,EC2R,31/05/2023,"2,360.00"
87931233,Social Care,"Children, Families and Community Health Services",CP & CIN Social Work - South,Employees,Temporary / Agency - by Accounts Payable,ATTENTI LTD,EC2R,24/05/2023,"1,888.00"
87934233,Senior Management Team,"Children, Families and Community Health Services",Senior Management Team - Staffing,Employees,Temporary / Agency - by Accounts Payable,ATTENTI LTD,EC2R,24/05/2023,973.5
87825233,Senior Management Team,"Children, Families and Community Health Services",Senior Management Team - Staffing,Employees,Temporary / Agency - by Accounts Payable,ATTENTI LTD,EC2R,24/05/2023,"4,130.00"
84332233,Senior Management Team,"Children, Families and Community Health Services",Senior Management Team - Staffing,Employees,Temporary / Agency - by Accounts Payable,ATTENTI LTD,EC2R,03/05/2023,"2,832.00"
87900264,Social Care,"Children, Families and Community Health Services",CP & CIN Social Work - South,Employees,Temporary / Agency - by Accounts Payable,ATTENTI LTD,EC2R,24/05/2023,"1,888.00"
86605234,Social Care,"Children, Families and Community Health Services",CP & CIN Social Work - South,Employees,Temporary / Agency - by Accounts Payable,ATTENTI LTD,EC2R,17/05/2023,"1,888.00"
85788233,Social Care,"Children, Families and Community Health Services",CP & CIN Social Work - South,Employees,Temporary / Agency - by Accounts Payable,ATTENTI LTD,EC2R,12/05/2023,"2,360.00"
85795233,Social Care,"Children, Families and Community Health Services",CP & CIN Social Work - South,Employees,Temporary / Agency - by Accounts Payable,ATTENTI LTD,EC2R,12/05/2023,"1,770.00"
85790233,Social Care,"Children, Families and Community Health Services",CP & CIN Social Work - South,Employees,Temporary / Agency - by Accounts Payable,ATTENTI LTD,EC2R,12/05/2023,"2,360.00"
85814233,Social Care,"Children, Families and Community Health Services",CP & CIN Social Work - South,Employees,Temporary / Agency - by Accounts Payable,ATTENTI LTD,EC2R,12/05/2023,"2,360.00"
84374233,Social Care,"Children, Families and Community Health Services",CP & CIN Social Work - South,Employees,Temporary / Agency - by Accounts Payable,ATTENTI LTD,EC2R,03/05/2023,597.75
84329233,Social Care,"Children, Families and Community Health Services",CP & CIN Social Work - South,Employees,Temporary / Agency - by Accounts Payable,ATTENTI LTD,EC2R,03/05/2023,"2,360.00"
88110233,Senior Management Team,"Children, Families and Community Health Services",Senior Management Team - Staffing,Employees,Temporary / Agency - by Accounts Payable,ATTENTI LTD,EC2R,26/05/2023,"4,130.00"
84445233,Senior Management Team,"Children, Families and Community Health Services",Senior Management Team - Staffing,Employees,Temporary / Agency - by Accounts Payable,ATTENTI LTD,EC2R,03/05/2023,"3,245.00"
83924233,Senior Management Team,"Children, Families and Community Health Services",Senior Management Team - Staffing,Employees,Temporary / Agency - by Accounts Payable,ATTENTI LTD,EC2R,03/05/2023,"4,130.00"
88754233,Senior Management Team,"Children, Families and Community Health Services",Senior Management Team - Staffing,Employees,Temporary / Agency - by Accounts Payable,ATTENTI LTD,EC2R,31/05/2023,"1,298.00"
87935233,Senior Management Team,"Children, Families and Community Health Services",Senior Management Team - Staffing,Employees,Temporary / Agency - by Accounts Payable,ATTENTI LTD,EC2R,24/05/2023,649
85300233,Senior Management Team,"Children, Families and Community Health Services",Senior Management Team - Staffing,Employees,Temporary / Agency - by Accounts Payable,ATTENTI LTD,EC2R,10/05/2023,"2,832.00"
84326233,Senior Management Team,"Children, Families and Community Health Services",Senior Management Team - Staffing,Employees,Temporary / Agency - by Accounts Payable,ATTENTI LTD,EC2R,03/05/2023,"2,596.00"
84333233,Senior Management Team,"Children, Families and Community Health Services",Senior Management Team - Staffing,Employees,Temporary / Agency - by Accounts Payable,ATTENTI LTD,EC2R,03/05/2023,"2,596.00"
83922233,Senior Management Team,"Children, Families and Community Health Services",Senior Management Team - Staffing,Employees,Temporary / Agency - by Accounts Payable,ATTENTI LTD,EC2R,03/05/2023,"4,130.00"
88844233,Social Care,"Children, Families and Community Health Services",CP & CIN Social Work - South,Employees,Temporary / Agency - by Accounts Payable,ATTENTI LTD,EC2R,31/05/2023,"2,950.00"
86935234,Social Care,"Children, Families and Community Health Services",CP & CIN Social Work - South,Employees,Temporary / Agency - by Accounts Payable,ATTENTI LTD,EC2R,17/05/2023,"1,888.00"
86715233,Social Care,"Children, Families and Community Health Services",CP & CIN Social Work - South,Employees,Temporary / Agency - by Accounts Payable,ATTENTI LTD,EC2R,17/05/2023,"2,183.00"
84376233,Social Care,"Children, Families and Community Health Services",CP & CIN Social Work - South,Employees,Temporary / Agency - by Accounts Payable,ATTENTI LTD,EC2R,03/05/2023,"2,832.00"
84327233,Social Care,"Children, Families and Community Health Services",CP & CIN Social Work - South,Employees,Temporary / Agency - by Accounts Payable,ATTENTI LTD,EC2R,03/05/2023,"1,888.00"
86719234,Senior Management Team,"Children, Families and Community Health Services",Senior Management Team - Staffing,Employees,Temporary / Agency - by Accounts Payable,ATTENTI LTD,EC2R,17/05/2023,"2,596.00"
84443233,Senior Management Team,"Children, Families and Community Health Services",Senior Management Team - Staffing,Employees,Temporary / Agency - by Accounts Payable,ATTENTI LTD,EC2R,03/05/2023,"3,245.00"
84359233,Senior Management Team,"Children, Families and Community Health Services",Senior Management Team - Staffing,Employees,Temporary / Agency - by Accounts Payable,ATTENTI LTD,EC2R,03/05/2023,"1,298.00"
84339233,Senior Management Team,"Children, Families and Community Health Services",Senior Management Team - Staffing,Employees,Temporary / Agency - by Accounts Payable,ATTENTI LTD,EC2R,03/05/2023,"2,596.00"
84461235,Social Care,"Children, Families and Community Health Services",CP & CIN Social Work - South,Employees,Temporary / Agency - by Accounts Payable,ATTENTI LTD,EC2R,03/05/2023,"1,416.00"
87927233,Social Care,"Children, Families and Community Health Services",CP & CIN Social Work - South,Employees,Temporary / Agency - by Accounts Payable,ATTENTI LTD,EC2R,24/05/2023,"2,360.00"
87901233,Social Care,"Children, Families and Community Health Services",CP & CIN Social Work - South,Employees,Temporary / Agency - by Accounts Payable,ATTENTI LTD,EC2R,24/05/2023,"1,888.00"
86604233,Social Care,"Children, Families and Community Health Services",CP & CIN Social Work - South,Employees,Temporary / Agency - by Accounts Payable,ATTENTI LTD,EC2R,17/05/2023,885
85812233,Social Care,"Children, Families and Community Health Services",CP & CIN Social Work - South,Employees,Temporary / Agency - by Accounts Payable,ATTENTI LTD,EC2R,12/05/2023,"2,950.00"
84381233,Social Care,"Children, Families and Community Health Services",CP & CIN Social Work - South,Employees,Temporary / Agency - by Accounts Payable,ATTENTI LTD,EC2R,03/05/2023,"1,652.00"
84371233,Social Care,"Children, Families and Community Health Services",CP & CIN Social Work - South,Employees,Temporary / Agency - by Accounts Payable,ATTENTI LTD,EC2R,03/05/2023,"2,360.00"
84341233,Social Care,"Children, Families and Community Health Services",CP & CIN Social Work - South,Employees,Temporary / Agency - by Accounts Payable,ATTENTI LTD,EC2R,03/05/2023,"1,888.00"
87929233,Senior Management Team,"Children, Families and Community Health Services",Senior Management Team - Staffing,Employees,Temporary / Agency - by Accounts Payable,ATTENTI LTD,EC2R,24/05/2023,"1,947.00"
87903233,Senior Management Team,"Children, Families and Community Health Services",Senior Management Team - Staffing,Employees,Temporary / Agency - by Accounts Payable,ATTENTI LTD,EC2R,24/05/2023,"4,130.00"
84331233,Senior Management Team,"Children, Families and Community Health Services",Senior Management Team - Staffing,Employees,Temporary / Agency - by Accounts Payable,ATTENTI LTD,EC2R,03/05/2023,"3,245.00"
87900262,Social Care,"Children, Families and Community Health Services",CP & CIN Social Work - South,Employees,Temporary / Agency - by Accounts Payable,ATTENTI LTD,EC2R,24/05/2023,"2,360.00"
86914233,Social Care,"Children, Families and Community Health Services",CP & CIN Social Work - South,Employees,Temporary / Agency - by Accounts Payable,ATTENTI LTD,EC2R,17/05/2023,"1,888.00"
86721233,Social Care,"Children, Families and Community Health Services",CP & CIN Social Work - South,Employees,Temporary / Agency - by Accounts Payable,ATTENTI LTD,EC2R,17/05/2023,"1,888.00"
84335233,Social Care,"Children, Families and Community Health Services",CP & CIN Social Work - South,Employees,Temporary / Agency - by Accounts Payable,ATTENTI LTD,EC2R,03/05/2023,472
88843233,Social Care,"Children, Families and Community Health Services",CP & CIN Social Work - South,Employees,Temporary / Agency - by Accounts Payable,ATTENTI LTD,EC2R,31/05/2023,"2,950.00"
87933233,Social Care,"Children, Families and Community Health Services",CP & CIN Social Work - South,Employees,Temporary / Agency - by Accounts Payable,ATTENTI LTD,EC2R,24/05/2023,"1,357.00"
86915233,Social Care,"Children, Families and Community Health Services",CP & CIN Social Work - South,Employees,Temporary / Agency - by Accounts Payable,ATTENTI LTD,EC2R,17/05/2023,"1,298.00"
86606233,Social Care,"Children, Families and Community Health Services",CP & CIN Social Work - South,Employees,Temporary / Agency - by Accounts Payable,ATTENTI LTD,EC2R,17/05/2023,885
86712233,Social Care,"Children, Families and Community Health Services",CP & CIN Social Work - South,Employees,Temporary / Agency - by Accounts Payable,ATTENTI LTD,EC2R,17/05/2023,"1,888.00"
86784233,Social Care,"Children, Families and Community Health Services",CP & CIN Social Work - South,Employees,Temporary / Agency - by Accounts Payable,ATTENTI LTD,EC2R,17/05/2023,"2,360.00"
86783233,Social Care,"Children, Families and Community Health Services",CP & CIN Social Work - South,Employees,Temporary / Agency - by Accounts Payable,ATTENTI LTD,EC2R,17/05/2023,"2,183.00"
84447233,Social Care,"Children, Families and Community Health Services",CP & CIN Social Work - South,Employees,Temporary / Agency - by Accounts Payable,ATTENTI LTD,EC2R,03/05/2023,"2,360.00"
84358233,Social Care,"Children, Families and Community Health Services",CP & CIN Social Work - South,Employees,Temporary / Agency - by Accounts Payable,ATTENTI LTD,EC2R,03/05/2023,"2,360.00"
84370233,Social Care,"Children, Families and Community Health Services",CP & CIN Social Work - South,Employees,Temporary / Agency - by Accounts Payable,ATTENTI LTD,EC2R,03/05/2023,"2,360.00"
84340233,Social Care,"Children, Families and Community Health Services",CP & CIN Social Work - South,Employees,Temporary / Agency - by Accounts Payable,ATTENTI LTD,EC2R,03/05/2023,"2,183.00"
84330233,Social Care,"Children, Families and Community Health Services",CP & CIN Social Work - South,Employees,Temporary / Agency - by Accounts Payable,ATTENTI LTD,EC2R,03/05/2023,"2,183.00"
87930233,Senior Management Team,"Children, Families and Community Health Services",Senior Management Team - Staffing,Employees,Temporary / Agency - by Accounts Payable,ATTENTI LTD,EC2R,24/05/2023,"1,298.00"
87891233,Senior Management Team,"Children, Families and Community Health Services",Senior Management Team - Staffing,Employees,Temporary / Agency - by Accounts Payable,ATTENTI LTD,EC2R,24/05/2023,"2,832.00"
84107234,Senior Management Team,"Children, Families and Community Health Services",Senior Management Team - Staffing,Employees,Temporary / Agency - by Accounts Payable,ATTENTI LTD,EC2R,03/05/2023,"4,130.00"
88846233,Social Care,"Children, Families and Community Health Services",CP & CIN Social Work - South,Employees,Temporary / Agency - by Accounts Payable,ATTENTI LTD,EC2R,31/05/2023,"2,183.00"
86929234,Social Care,"Children, Families and Community Health Services",CP & CIN Social Work - South,Employees,Temporary / Agency - by Accounts Payable,ATTENTI LTD,EC2R,17/05/2023,"2,183.00"
86851234,Social Care,"Children, Families and Community Health Services",CP & CIN Social Work - South,Employees,Temporary / Agency - by Accounts Payable,ATTENTI LTD,EC2R,17/05/2023,"2,950.00"
86724233,Social Care,"Children, Families and Community Health Services",CP & CIN Social Work - South,Employees,Temporary / Agency - by Accounts Payable,ATTENTI LTD,EC2R,17/05/2023,"2,360.00"
86781233,Social Care,"Children, Families and Community Health Services",CP & CIN Social Work - South,Employees,Temporary / Agency - by Accounts Payable,ATTENTI LTD,EC2R,17/05/2023,"2,360.00"
85797233,Social Care,"Children, Families and Community Health Services",CP & CIN Social Work - South,Employees,Temporary / Agency - by Accounts Payable,ATTENTI LTD,EC2R,12/05/2023,"2,183.00"
85816233,Social Care,"Children, Families and Community Health Services",CP & CIN Social Work - South,Employees,Temporary / Agency - by Accounts Payable,ATTENTI LTD,EC2R,12/05/2023,"2,950.00"
84379233,Social Care,"Children, Families and Community Health Services",CP & CIN Social Work - South,Employees,Temporary / Agency - by Accounts Payable,ATTENTI LTD,EC2R,03/05/2023,"4,130.00"
84375233,Social Care,"Children, Families and Community Health Services",CP & CIN Social Work - South,Employees,Temporary / Agency - by Accounts Payable,ATTENTI LTD,EC2R,03/05/2023,"1,770.00"
87249234,"Volutary Sector, Equipment and Carers",Adults,Carers Short Term Breaks - Adults,3rd Party Payments,Carers,REDACTED PERSONAL DATA,SN26,19/05/2023,500
88211233,Care Management & Safeguarding,Adults,Community Safety Partnership,3rd Party Payments,Contract Payments,AUBERGINE 262 LTD,LU7 ,26/05/2023,"1,029.00"
Corporate Card Transaction,Streetsmart,Streetsmart,Lydiard House and Park Improvements,Capital,Contractor Payments,Audio Installations,,19/05/2023,"1,138.12"
88485683,Physical Support,Adults,Physical Support 65 and over,Transfer Payments,Personal Budget - Direct Payments - Domiciliary Care,REDACTED PERSONAL DATA,SP11,31/05/2023,"4,204.35"
84063726,Physical Support,Adults,Physical Support 65 and over,Transfer Payments,Personal Budget - Direct Payments - Domiciliary Care,REDACTED PERSONAL DATA,SP11,03/05/2023,"4,204.35"
87329313,Physical Support,Adults,Physical Support 65 and over,Income,Client Contribution - Nursing,AURA CARE LIVING CIRENCESTER LTD,GL7 ,19/05/2023,25.27
87329313,Physical Support,Adults,Physical Support 65 and over,Income,Client Contribution - Nursing,AURA CARE LIVING CIRENCESTER LTD,GL7 ,19/05/2023,-24.01
87329313,Physical Support,Adults,Physical Support 65 and over,Income,Client Contribution - Nursing,AURA CARE LIVING CIRENCESTER LTD,GL7 ,19/05/2023,-834
87329313,Physical Support,Adults,Physical Support 65 and over,3rd Party Payments,Nursing Care,AURA CARE LIVING CIRENCESTER LTD,GL7 ,19/05/2023,"-8,292.86"
87329313,Physical Support,Adults,Physical Support 65 and over,Income,Client Contribution - Nursing,AURA CARE LIVING CIRENCESTER LTD,GL7 ,19/05/2023,-396.4
87329313,Care Management & Safeguarding,Adults,Intermediate Care Team,3rd Party Payments,Residential Care,AURA CARE LIVING CIRENCESTER LTD,GL7 ,19/05/2023,"3,800.00"
87329313,Physical Support,Adults,Physical Support 65 and over,Income,Client Contribution - Nursing,AURA CARE LIVING CIRENCESTER LTD,GL7 ,19/05/2023,19.46
87329313,Physical Support,Adults,Physical Support 65 and over,3rd Party Payments,Nursing Care,AURA CARE LIVING CIRENCESTER LTD,GL7 ,19/05/2023,"8,292.86"
87329313,Physical Support,Adults,Physical Support 65 and over,Income,Client Contribution - Nursing,AURA CARE LIVING CIRENCESTER LTD,GL7 ,19/05/2023,642.18
87329313,Physical Support,Adults,Physical Support 65 and over,Income,Client Contribution - Nursing,AURA CARE LIVING CIRENCESTER LTD,GL7 ,19/05/2023,-341.55
87329313,Physical Support,Adults,Physical Support 65 and over,Income,Client Contribution - Nursing,AURA CARE LIVING CIRENCESTER LTD,GL7 ,19/05/2023,-735.64
87329313,Physical Support,Adults,Physical Support 65 and over,Income,Client Contribution - Nursing,AURA CARE LIVING CIRENCESTER LTD,GL7 ,19/05/2023,-691.2
87329313,Physical Support,Adults,Physical Support 65 and over,Income,Client Contribution - Nursing,AURA CARE LIVING CIRENCESTER LTD,GL7 ,19/05/2023,"-1,061.49"
87329313,Mental Health,Adults,Mental Health 18-64,3rd Party Payments,Residential Care,AURA CARE LIVING CIRENCESTER LTD,GL7 ,19/05/2023,"6,720.00"
87329313,Mental Health,Adults,Mental Health 18-64,3rd Party Payments,Residential Care,AURA CARE LIVING CIRENCESTER LTD,GL7 ,19/05/2023,"4,600.00"
87329313,Physical Support,Adults,Physical Support 65 and over,Income,Client Contribution - Nursing,AURA CARE LIVING CIRENCESTER LTD,GL7 ,19/05/2023,18.06
87329313,Physical Support,Adults,Physical Support 65 and over,Income,Client Contribution - Nursing,AURA CARE LIVING CIRENCESTER LTD,GL7 ,19/05/2023,-840.73
87329313,Physical Support,Adults,Physical Support 65 and over,3rd Party Payments,Nursing Care,AURA CARE LIVING CIRENCESTER LTD,GL7 ,19/05/2023,"5,400.00"
87329313,Physical Support,Adults,Physical Support 65 and over,Income,Client Contribution - Nursing,AURA CARE LIVING CIRENCESTER LTD,GL7 ,19/05/2023,234.76
87329313,Mental Health,Adults,Mental Health 18-64,3rd Party Payments,Nursing Care,AURA CARE LIVING CIRENCESTER LTD,GL7 ,19/05/2023,"5,400.00"
87329313,Mental Health,Adults,Mental Health 65 and over,3rd Party Payments,Residential Care,AURA CARE LIVING CIRENCESTER LTD,GL7 ,19/05/2023,"5,600.00"
87329313,Physical Support,Adults,Physical Support 65 and over,Income,Client Contribution - Nursing,AURA CARE LIVING CIRENCESTER LTD,GL7 ,19/05/2023,-312.11
87329313,Physical Support,Adults,Physical Support 65 and over,3rd Party Payments,Nursing Care,AURA CARE LIVING CIRENCESTER LTD,GL7 ,19/05/2023,"4,400.00"
87329313,Physical Support,Adults,Physical Support 65 and over,Income,Client Contribution - Nursing,AURA CARE LIVING CIRENCESTER LTD,GL7 ,19/05/2023,808.73
87329313,Physical Support,Adults,Physical Support 65 and over,Income,Client Contribution - Nursing,AURA CARE LIVING CIRENCESTER LTD,GL7 ,19/05/2023,-26.27
87329313,Physical Support,Adults,Physical Support 65 and over,Income,Client Contribution - Nursing,AURA CARE LIVING CIRENCESTER LTD,GL7 ,19/05/2023,252.98
87329295,Learning Disabilities,Adults,Learning Disability 65 and over,3rd Party Payments,Residential Care,AUTONOMY LIFE LIMITED,SN12,19/05/2023,"9,460.00"
87329295,Learning Disabilities,Adults,Learning Disability 65 and over,Income,Client Contribution - Residential,AUTONOMY LIFE LIMITED,SN12,19/05/2023,-528.8
88379233,Traded Services,"Education, Inclusion and Skills",Plas Pencelli Outdoor Education Centre,Premises Costs,Gas,AVANTI GAS LTD,S43 ,26/05/2023,"2,167.08"
87113233,Social Care,"Children, Families and Community Health Services",Unaccompanied Asylum Seeking Children (UASC),3rd Party Payments,Semi Independent,AVISANT CONSULTING LTD,EC1V,19/05/2023,"1,607.14"
83822233,Town Centre,"Economy, Growth and Place",Towns Fund,Supplies and Services,Fees,AVISON YOUNG (UK) LTD,B1 2,03/05/2023,"34,760.00"
84064233,Care Management & Safeguarding,Adults,Mental Health Non-Pool,3rd Party Payments,Contracts - Social Care,AVON & WILTSHIRE MENTAL HEALTH PARTNERSHIP NHS TRUST,BA1 ,03/05/2023,"7,604.50"
83683233,Care Management & Safeguarding,Adults,Mental Health Non-Pool,Employees,Temporary / Agency - by Accounts Payable,AVON & WILTSHIRE MENTAL HEALTH PARTNERSHIP NHS TRUST,BA1 ,03/05/2023,"9,783.00"
83688233,Care Management & Safeguarding,Adults,Mental Health Non-Pool,Employees,Temporary / Agency - by Accounts Payable,AVON & WILTSHIRE MENTAL HEALTH PARTNERSHIP NHS TRUST,BA1 ,03/05/2023,"3,654.00"
83690233,Care Management & Safeguarding,Adults,Mental Health Non-Pool,Employees,Temporary / Agency - by Accounts Payable,AVON & WILTSHIRE MENTAL HEALTH PARTNERSHIP NHS TRUST,BA1 ,03/05/2023,"5,117.00"
83689234,Care Management & Safeguarding,Adults,Mental Health Non-Pool,Employees,Temporary / Agency - by Accounts Payable,AVON & WILTSHIRE MENTAL HEALTH PARTNERSHIP NHS TRUST,BA1 ,03/05/2023,"1,935.00"
87328243,Learning Disabilities,Adults,Learning Disability 18 - 64,3rd Party Payments,Residential Care,AVON AUTISTIC FOUNDATION LTD,BS11,19/05/2023,"7,100.28"
87328243,Learning Disabilities,Adults,Learning Disability 18 - 64,Income,Client Contribution - Residential,AVON AUTISTIC FOUNDATION LTD,BS11,19/05/2023,-414.2
87328242,Learning Disabilities,Adults,Learning Disability 18 - 64,3rd Party Payments,Residential Care,AVON AUTISTIC FOUNDATION LTD,BS11,19/05/2023,"5,075.96"
87328242,Learning Disabilities,Adults,Learning Disability 18 - 64,Income,Client Contribution - Residential,AVON AUTISTIC FOUNDATION LTD,BS11,19/05/2023,-438.8
87139296,Homelessness and Travellers,Housing Services,Leased Private Managed Accommodation,Transfer Payments,Payment of Costs,AVONPARK PROPERTIES LTD,SN3 ,24/05/2023,615
88377233,Homelessness and Travellers,Housing Services,Leased Private Managed Accommodation,Transfer Payments,Payment of Costs,AVONPARK PROPERTIES LTD,SN3 ,26/05/2023,"1,600.00"
87139391,Homelessness and Travellers,Housing Services,Leased Private Managed Accommodation,Transfer Payments,Payment of Costs,AVONPARK PROPERTIES LTD,SN3 ,24/05/2023,550
87139297,Homelessness and Travellers,Housing Services,Leased Private Managed Accommodation,Transfer Payments,Payment of Costs,AVONPARK PROPERTIES LTD,SN3 ,24/05/2023,800
84616233,Social Care,"Children, Families and Community Health Services",Looked After Children Service,Transport Costs,Client Costs of Taxis,B&H CARS (WORCESTER) LTD,WR4 ,05/05/2023,"1,200.00"
88868233,Town Centre,"Economy, Growth and Place",Carriage Works Phase 3,Capital,Professional Fees,BAILEY PARTNERSHIP (CONSULTANTS) LLP,PL1 ,31/05/2023,"2,300.00"
85266233,Town Centre,"Economy, Growth and Place",Carriage Works Phase 3,Capital,Professional Fees,BAILEY PARTNERSHIP (CONSULTANTS) LLP,PL1 ,10/05/2023,"2,300.00"
87339233,Streetsmart,Streetsmart,Lydiard House & Hotel Improvements,Capital,Contractor Payments,BAILEY PARTNERSHIP (CONSULTANTS) LLP,PL1 ,19/05/2023,"12,401.00"
87767233,Streetsmart,Streetsmart,Lydiard House & Hotel Improvements,Capital,Contractor Payments,BAILEY PARTNERSHIP (CONSULTANTS) LLP,PL1 ,24/05/2023,"12,400.85"
87788233,Town Centre,"Economy, Growth and Place","No 7, 9 & 11 Carriage works @ Railway Village",Capital,Consultants,BAILEY PARTNERSHIP (CONSULTANTS) LLP,PL1 ,24/05/2023,"3,000.00"
87940233,Streetsmart,Streetsmart,Waste - Disposal,Supplies and Services,Materials,BALER OPTIONS LTD,DE55,24/05/2023,"9,440.00"
87474233,Senior Management Team,"Children, Families and Community Health Services",Senior Management Team - Non Staffing,Supplies and Services,Consultants,REDACTED PERSONAL DATA,BS1 ,24/05/2023,625
88162233,Senior Management Team,"Children, Families and Community Health Services",Senior Management Team - Non Staffing,Supplies and Services,Consultants,REDACTED PERSONAL DATA,BS1 ,26/05/2023,"3,125.00"
88154233,Senior Management Team,"Children, Families and Community Health Services",Senior Management Team - Non Staffing,Supplies and Services,Consultants,REDACTED PERSONAL DATA,BS1 ,26/05/2023,"3,125.00"
84360233,Senior Management Team,"Children, Families and Community Health Services",Senior Management Team - Non Staffing,Supplies and Services,Consultants,REDACTED PERSONAL DATA,BS1 ,03/05/2023,"3,125.00"
85773233,Senior Management Team,"Children, Families and Community Health Services",Senior Management Team - Non Staffing,Supplies and Services,Consultants,REDACTED PERSONAL DATA,BS1 ,12/05/2023,"3,125.00"
88581233,Senior Management Team,"Children, Families and Community Health Services",Senior Management Team - Non Staffing,Supplies and Services,Consultants,REDACTED PERSONAL DATA,BS1 ,31/05/2023,"3,125.00"
86057233,Senior Management Team,"Children, Families and Community Health Services",Senior Management Team - Non Staffing,Supplies and Services,Consultants,REDACTED PERSONAL DATA,BS1 ,12/05/2023,"2,500.00"
87160233,Learning Disabilities,Adults,Learning Disability 18 - 64,Supplies and Services,Services,BARANS REMOVALS LTD,TW2 ,19/05/2023,550
84063719,Physical Support,Adults,Physical Support 65 and over,Transfer Payments,Personal Budget - Direct Payments - Domiciliary Care,REDACTED PERSONAL DATA,2969,03/05/2023,864.26
88485676,Physical Support,Adults,Physical Support 65 and over,Transfer Payments,Personal Budget - Direct Payments - Domiciliary Care,REDACTED PERSONAL DATA,2969,31/05/2023,864.26
87329291,Memory & Cognition,Adults,Support for Memory and Cognition 65 and over,3rd Party Payments,Nursing Care,BARCHESTER HEALTHCARE HOMES,GL7 ,19/05/2023,"6,271.84"
84417236,School Transport,"Education, Inclusion and Skills",Mainstream School Transport,Transport Costs,Home to School Transport,BARNES COACHES LTD,SN3 ,03/05/2023,"4,980.00"
87019234,Senior Management Team,"Children, Families and Community Health Services",Senior Management Team - Non Staffing,Supplies and Services,Consultants,BATTENHALL CONSULTING LIMITED,WR14,17/05/2023,"3,000.00"
87019234,Senior Management Team,"Children, Families and Community Health Services",Senior Management Team - Non Staffing,Supplies and Services,Consultants,BATTENHALL CONSULTING LIMITED,WR14,17/05/2023,43.2
85908233,Streetsmart,Streetsmart,Waterside Fleet Workshops,Supplies and Services,Materials,BBL BATTERIES,BS2 ,12/05/2023,300
85908233,Streetsmart,Streetsmart,Waterside Fleet Workshops,Supplies and Services,Materials,BBL BATTERIES,BS2 ,12/05/2023,350
84230233,Supported Housing,Special Services,Supported Housing Management,Supplies and Services,Equipment,BED FACTORY SWINDON T/A TBF (UK) LTD,SN3 ,03/05/2023,"2,028.00"
86997248,Schools - Primary,DSG Skills and Attainment,Primary School Budgets,3rd Party Payments,Mainstream Delegated Funding,BEECHCROFT INFANT SCHOOL,SN2 ,17/05/2023,"96,892.00"
87007248,DSG Other Funding,DSG Skills and Attainment,DFE Additional Grants,3rd Party Payments,Payment of Pupil Premium to school,BEECHCROFT INFANT SCHOOL,SN2 ,17/05/2023,"8,389.00"
86823233,High Needs Block,DSG Skills and Attainment,SEN Resourcing Assessment Panel,3rd Party Payments,Top up funding - Maintained providers Pre 16,BEECHCROFT INFANT SCHOOL,SN2 ,17/05/2023,"1,082.67"
85514240,DSG Other Funding,DSG Skills and Attainment,DFE Additional Grants,Supplies and Services,Payments to Educational Bodies,BEECHCROFT INFANT SCHOOL,SN2 ,10/05/2023,"16,384.00"
88031233,DSG Other Funding,DSG Skills and Attainment,LAC pupil premium,Supplies and Services,Services,BEECHCROFT INFANT SCHOOL,SN2 ,31/05/2023,600
85494233,DSG Other Funding,DSG Skills and Attainment,DFE Additional Grants,Supplies and Services,Payments to Educational Bodies,BEECHCROFT INFANT SCHOOL,SN2 ,10/05/2023,"7,375.00"
85517248,DSG Other Funding,DSG Skills and Attainment,DFE Additional Grants,Supplies and Services,Payments to Educational Bodies,BEECHCROFT INFANT SCHOOL,SN2 ,10/05/2023,"2,392.50"
87329253,Learning Disabilities,Adults,Learning Disability 18 - 64,3rd Party Payments,Residential Care,BEECHWOOD COURT LTD,CF10,19/05/2023,"26,739.16"
87329253,Learning Disabilities,Adults,Learning Disability 18 - 64,3rd Party Payments,Residential Care,BEECHWOOD COURT LTD,CF10,19/05/2023,"18,598.72"
87329253,Learning Disabilities,Adults,Learning Disability 18 - 64,Income,Client Contribution - Residential,BEECHWOOD COURT LTD,CF10,19/05/2023,-322.56
87855233,Parking & Bus lanes,Highway Operations and Car Parking,Car Parking,Supplies and Services,Equipment,BEMROSE BOOTH PARAGON LTD,HU7 ,24/05/2023,"1,102.88"
87163245,Social Care,"Children, Families and Community Health Services",Children's Resource and Home Finding Team,3rd Party Payments,Residential Care,BENJAMIN UK LIMITED,HP23,19/05/2023,"17,692.01"
87163248,Social Care,"Children, Families and Community Health Services",Children's Resource and Home Finding Team,3rd Party Payments,Residential Care,BENJAMIN UK LIMITED,HP23,19/05/2023,"17,121.30"
87163246,Social Care,"Children, Families and Community Health Services",Children's Resource and Home Finding Team,3rd Party Payments,Residential Care,BENJAMIN UK LIMITED,HP23,19/05/2023,"15,979.88"
87082235,Social Care,"Children, Families and Community Health Services",Children's Resource and Home Finding Team,3rd Party Payments,Residential Care,BENJAMIN UK LIMITED,HP23,19/05/2023,"17,692.01"
87082236,Social Care,"Children, Families and Community Health Services",Children's Resource and Home Finding Team,3rd Party Payments,Residential Care,BENJAMIN UK LIMITED,HP23,19/05/2023,"17,121.30"
87082234,Social Care,"Children, Families and Community Health Services",Children's Resource and Home Finding Team,3rd Party Payments,Residential Care,BENJAMIN UK LIMITED,HP23,19/05/2023,"17,121.30"
87163247,Social Care,"Children, Families and Community Health Services",Children's Resource and Home Finding Team,3rd Party Payments,Residential Care,BENJAMIN UK LIMITED,HP23,19/05/2023,"17,692.01"
87163249,Social Care,"Children, Families and Community Health Services",Children's Resource and Home Finding Team,3rd Party Payments,Residential Care,BENJAMIN UK LIMITED,HP23,19/05/2023,"17,692.01"
87082237,Social Care,"Children, Families and Community Health Services",Children's Resource and Home Finding Team,3rd Party Payments,Residential Care,BENJAMIN UK LIMITED,HP23,19/05/2023,"17,692.01"
87396233,Highways & Transport,Highways & Transport,Drainage,Supplies and Services,Repairs & Maintenance,BERNARD GEOMATICS LTD,SN2 ,19/05/2023,"3,219.00"
85771233,Local Transport Plan Funded,Strategic Planning and Highways,Local Safety Schemes,Capital,Contractor Payments,BERNARD GEOMATICS LTD,SN2 ,12/05/2023,"3,218.00"
86772234,Disabled Children,"Children, Families and Community Health Services",ICES Paediatric,Supplies and Services,Equipment,BES HEALTHCARE LIMITED,BS3 ,17/05/2023,557.9
88210233,NEV,"Economy, Growth and Place",Southern Connector Road,Capital,Professional Fees,BETA DISTRIBUTION (SOUTH) LTD T/A LBOX COMMUNICATIONS,TW1 ,26/05/2023,"1,348.88"
86084233,Planned Maintenance Programme,HRA Capital Financing,Exceptional Extensive,Capital,Contractor Payments,BEVAN BRITTAN,BS2 ,12/05/2023,"3,284.00"
85307233,Public Health,Public Health,Health Checks,Supplies and Services,Testing / Inspection,BHR PHARMACEUTICALS LTD,CV11,10/05/2023,666.66
88838233,Libraries,"Education, Inclusion and Skills",Library Delivery,Supplies and Services,Repairs & Maintenance,BIBLIOTHECA LTD,SK8 ,31/05/2023,"3,090.00"
84395233,Libraries,"Education, Inclusion and Skills",Central,Premises Costs,Waste,BIFFA WASTE SERVICES LTD,HP12,03/05/2023,476.4
87145331,School Transport,"Education, Inclusion and Skills",Special Educational Needs Transport,Transport Costs,Home to School Transport,REDACTED PERSONAL DATA,SN2 ,26/05/2023,812.16
85517240,DSG Other Funding,DSG Skills and Attainment,DFE Additional Grants,Supplies and Services,Payments to Educational Bodies,BISHOPSTONE C E PRIMARY SCHOOL,SN6 ,10/05/2023,500
86997240,Schools - Primary,DSG Skills and Attainment,Primary School Budgets,3rd Party Payments,Mainstream Delegated Funding,BISHOPSTONE C E PRIMARY SCHOOL,SN6 ,17/05/2023,"27,037.00"
85513233,DSG Other Funding,DSG Skills and Attainment,DFE Additional Grants,Supplies and Services,Payments to Educational Bodies,BISHOPSTONE C E PRIMARY SCHOOL,SN6 ,10/05/2023,"4,558.00"
87007240,DSG Other Funding,DSG Skills and Attainment,DFE Additional Grants,3rd Party Payments,Payment of Pupil Premium to school,BISHOPSTONE C E PRIMARY SCHOOL,SN6 ,17/05/2023,"1,660.00"
85486233,DSG Other Funding,DSG Skills and Attainment,DFE Additional Grants,Supplies and Services,Payments to Educational Bodies,BISHOPSTONE C E PRIMARY SCHOOL,SN6 ,10/05/2023,"6,833.00"
85933233,Customer Strategy & Operations,"People, Culture and Organisational Resilience",Cemeteries & Crematoria,Supplies and Services,Grants to Organisations,BISHOPSTONE PARISH COUNCIL,SN1 ,12/05/2023,"1,275.00"
Corporate Card Transaction,Homelessness and Travellers,Housing Services,Bed and Breakfast Accommodation,Transfer Payments,Payment of Costs,Bkg*booking.Com Hotel,,10/05/2023,526
Corporate Card Transaction,Homelessness and Travellers,Housing Services,Bed and Breakfast Accommodation,Transfer Payments,Payment of Costs,Bkg*booking.Com Hotel,,03/05/2023,536.93
Corporate Card Transaction,Homelessness and Travellers,Housing Services,Bed and Breakfast Accommodation,Transfer Payments,Payment of Costs,Bkg*booking.Com Hotel,,03/05/2023,536.93
85898240,Streetsmart,Streetsmart,Waterside Fleet Hires,Transport Costs,Vehicle Hire / Contract,BLAKEDALE LTD,PR7 ,12/05/2023,700
88793233,Social Care,"Children, Families and Community Health Services",Children's Resource and Home Finding Team,3rd Party Payments,Independent Fostering Agency Placements,BLUE SKY,HA1 ,31/05/2023,"6,510.00"
88792233,Social Care,"Children, Families and Community Health Services",Children's Resource and Home Finding Team,3rd Party Payments,Independent Fostering Agency Placements,BLUE SKY,HA1 ,31/05/2023,992
88397241,Social Care,"Children, Families and Community Health Services",Children's Resource and Home Finding Team,3rd Party Payments,Independent Fostering Agency Placements,BLUE SKY,HA1 ,31/05/2023,"1,488.00"
86203236,Physical Support,Adults,Physical Support 65 and over,3rd Party Payments,Personal Budget - Domiciliary care,BLUEBIRD CARE (SWINDON),SN25,12/05/2023,"1,679.92"
86203237,Learning Disabilities,Adults,Learning Disability 18 - 64,3rd Party Payments,Personal Budget - Domiciliary care,BLUEBIRD CARE (SWINDON),SN25,12/05/2023,"1,173.92"
86202233,Learning Disabilities,Adults,Learning Disability 18 - 64,3rd Party Payments,Personal Budget - Domiciliary care,BLUEBIRD CARE (SWINDON),SN25,12/05/2023,688.16
86203235,Learning Disabilities,Adults,Learning Disability 18 - 64,3rd Party Payments,Personal Budget - Domiciliary care,BLUEBIRD CARE (SWINDON),SN25,12/05/2023,"1,411.74"
86198235,Learning Disabilities,Adults,Learning Disability 18 - 64,3rd Party Payments,Personal Budget - Domiciliary care,BLUEBIRD CARE (SWINDON),SN25,12/05/2023,"1,194.16"
86200233,Learning Disabilities,Adults,Learning Disability 18 - 64,3rd Party Payments,Personal Budget - Domiciliary care,BLUEBIRD CARE (SWINDON),SN25,12/05/2023,637.56
86203234,Physical Support,Adults,Physical Support 18 - 64,3rd Party Payments,Personal Budget - Domiciliary care,BLUEBIRD CARE (SWINDON),SN25,12/05/2023,"1,052.48"
88293233,Digital & Business Change,Digital & Business Change,IT Operations,Supplies and Services,MFD Charges,BNP PARIBAS LEASING SOLUTIONS,RG21,26/05/2023,882.12
87329278,Mental Health,Adults,Mental Health 65 and over,3rd Party Payments,Residential Care,BOLEALLER HOUSE LTD,EX15,19/05/2023,"4,719.32"
85530233,Physical Support,Adults,Fessey House,Supplies and Services,Food,BOOKER LIMITED,CH5 ,10/05/2023,127.18
84450234,Physical Support,Adults,Fessey House,Supplies and Services,Food,BOOKER LIMITED,CH5 ,03/05/2023,406.51
88751233,Physical Support,Adults,Fessey House,Supplies and Services,Food,BOOKER LIMITED,CH5 ,31/05/2023,181.62
86409233,Physical Support,Adults,Fessey House,Supplies and Services,Food,BOOKER LIMITED,CH5 ,15/05/2023,471.62
88751233,Physical Support,Adults,Fessey House,Supplies and Services,Food,BOOKER LIMITED,CH5 ,31/05/2023,466.86
86409233,Physical Support,Adults,Fessey House,Supplies and Services,Food,BOOKER LIMITED,CH5 ,15/05/2023,138.75
88750233,Physical Support,Adults,Fessey House,Supplies and Services,Food,BOOKER LIMITED,CH5 ,31/05/2023,457.66
88750233,Physical Support,Adults,Fessey House,Supplies and Services,Food,BOOKER LIMITED,CH5 ,31/05/2023,251.47
85530233,Physical Support,Adults,Fessey House,Supplies and Services,Food,BOOKER LIMITED,CH5 ,10/05/2023,386.17
84450234,Physical Support,Adults,Fessey House,Supplies and Services,Food,BOOKER LIMITED,CH5 ,03/05/2023,122.64
87328266,Physical Support,Adults,Physical Support 65 and over,3rd Party Payments,Nursing Care,BOTHWELLS LTD,HA6 ,19/05/2023,-640.03
87328266,Physical Support,Adults,Physical Support 65 and over,3rd Party Payments,Nursing Care,BOTHWELLS LTD,HA6 ,19/05/2023,85.14
87328266,Physical Support,Adults,Physical Support 65 and over,3rd Party Payments,Nursing Care,BOTHWELLS LTD,HA6 ,19/05/2023,"4,300.98"
87328266,Physical Support,Adults,Physical Support 65 and over,3rd Party Payments,Nursing Care,BOTHWELLS LTD,HA6 ,19/05/2023,"3,746.16"
87328266,Physical Support,Adults,Physical Support 65 and over,3rd Party Payments,Nursing Care,BOTHWELLS LTD,HA6 ,19/05/2023,"2,867.32"
87328266,Physical Support,Adults,Physical Support 65 and over,3rd Party Payments,Nursing Care,BOTHWELLS LTD,HA6 ,19/05/2023,"-3,065.19"
87328266,Physical Support,Adults,Physical Support 65 and over,3rd Party Payments,Nursing Care,BOTHWELLS LTD,HA6 ,19/05/2023,"4,156.12"
87328266,Physical Support,Adults,Physical Support 18 - 64,Income,Client Contribution - Nursing,BOTHWELLS LTD,HA6 ,19/05/2023,-425.6
87328266,Physical Support,Adults,Physical Support 65 and over,3rd Party Payments,Nursing Care,BOTHWELLS LTD,HA6 ,19/05/2023,"6,307.89"
87328266,Physical Support,Adults,Physical Support 65 and over,3rd Party Payments,Nursing Care,BOTHWELLS LTD,HA6 ,19/05/2023,"-7,642.98"
87328266,Physical Support,Adults,Physical Support 65 and over,Income,Client Contribution - Nursing,BOTHWELLS LTD,HA6 ,19/05/2023,-909.16
87328266,Physical Support,Adults,Physical Support 65 and over,Income,Client Contribution - Nursing,BOTHWELLS LTD,HA6 ,19/05/2023,-659.8
87328266,Physical Support,Adults,Physical Support 65 and over,3rd Party Payments,Nursing Care,BOTHWELLS LTD,HA6 ,19/05/2023,"2,560.12"
87328266,Physical Support,Adults,Physical Support 65 and over,3rd Party Payments,Nursing Care,BOTHWELLS LTD,HA6 ,19/05/2023,"-5,632.05"
87328266,Physical Support,Adults,Physical Support 65 and over,3rd Party Payments,Nursing Care,BOTHWELLS LTD,HA6 ,19/05/2023,"7,224.74"
87328266,Physical Support,Adults,Physical Support 65 and over,3rd Party Payments,Nursing Care,BOTHWELLS LTD,HA6 ,19/05/2023,"4,813.00"
87328266,Physical Support,Adults,Physical Support 65 and over,3rd Party Payments,Nursing Care,BOTHWELLS LTD,HA6 ,19/05/2023,"5,217.87"
87328266,Physical Support,Adults,Physical Support 65 and over,3rd Party Payments,Nursing Care,BOTHWELLS LTD,HA6 ,19/05/2023,"-1,204.12"
87328266,Physical Support,Adults,Physical Support 65 and over,Income,Client Contribution - Nursing,BOTHWELLS LTD,HA6 ,19/05/2023,-608.8
87328266,Physical Support,Adults,Physical Support 65 and over,3rd Party Payments,Nursing Care,BOTHWELLS LTD,HA6 ,19/05/2023,"-4,297.34"
87328266,Physical Support,Adults,Physical Support 65 and over,3rd Party Payments,Nursing Care,BOTHWELLS LTD,HA6 ,19/05/2023,"5,851.70"
87328266,Physical Support,Adults,Physical Support 65 and over,3rd Party Payments,Nursing Care,BOTHWELLS LTD,HA6 ,19/05/2023,"-6,551.13"
87328266,Physical Support,Adults,Physical Support 65 and over,3rd Party Payments,Nursing Care,BOTHWELLS LTD,HA6 ,19/05/2023,"3,270.76"
87328266,Physical Support,Adults,Physical Support 65 and over,3rd Party Payments,Nursing Care,BOTHWELLS LTD,HA6 ,19/05/2023,"3,733.20"
87328266,Physical Support,Adults,Physical Support 65 and over,3rd Party Payments,Nursing Care,BOTHWELLS LTD,HA6 ,19/05/2023,716.83
87328266,Physical Support,Adults,Physical Support 65 and over,3rd Party Payments,Nursing Care,BOTHWELLS LTD,HA6 ,19/05/2023,"-4,937.37"
87328266,Physical Support,Adults,Physical Support 18 - 64,3rd Party Payments,Nursing Care,BOTHWELLS LTD,HA6 ,19/05/2023,"2,560.12"
87328266,Physical Support,Adults,Physical Support 65 and over,3rd Party Payments,Nursing Care,BOTHWELLS LTD,HA6 ,19/05/2023,"1,024.04"
87328266,Physical Support,Adults,Physical Support 65 and over,3rd Party Payments,Nursing Care,BOTHWELLS LTD,HA6 ,19/05/2023,"5,529.83"
87328266,Physical Support,Adults,Physical Support 65 and over,3rd Party Payments,Nursing Care,BOTHWELLS LTD,HA6 ,19/05/2023,"2,140.66"
87328266,Physical Support,Adults,Physical Support 65 and over,Income,Client Contribution - Nursing,BOTHWELLS LTD,HA6 ,19/05/2023,-781.4
87328266,Physical Support,Adults,Physical Support 65 and over,Income,Client Contribution - Nursing,BOTHWELLS LTD,HA6 ,19/05/2023,-779
87328266,Physical Support,Adults,Physical Support 18 - 64,Income,Client Contribution - Nursing,BOTHWELLS LTD,HA6 ,19/05/2023,-414.2
87328266,Physical Support,Adults,Physical Support 65 and over,3rd Party Payments,Nursing Care,BOTHWELLS LTD,HA6 ,19/05/2023,"3,344.79"
87847233,Responsive Repairs,Repairs,Responsive Repairs,3rd Party Payments,Contract Payments,BOUNDARY SCAFFOLDING LTD,SN6 ,24/05/2023,720
87850233,Responsive Repairs,Repairs,Responsive Repairs,3rd Party Payments,Contract Payments,BOUNDARY SCAFFOLDING LTD,SN6 ,24/05/2023,"2,086.00"
88875233,Responsive Repairs,Repairs,Responsive Repairs,3rd Party Payments,Contract Payments,BOUNDARY SCAFFOLDING LTD,SN6 ,31/05/2023,"1,920.00"
83693233,Streetsmart,Streetsmart,Waste - Processing,Premises Costs,Maintenance - Buildings,BOUNDARY SCAFFOLDING LTD,SN6 ,03/05/2023,"1,320.00"
83505233,Responsive Repairs,Repairs,Responsive Repairs,3rd Party Payments,Contract Payments,BOUNDARY SCAFFOLDING LTD,SN6 ,03/05/2023,580
83510233,Responsive Repairs,Repairs,Responsive Repairs,3rd Party Payments,Contract Payments,BOUNDARY SCAFFOLDING LTD,SN6 ,03/05/2023,840
87848233,Responsive Repairs,Repairs,Responsive Repairs,3rd Party Payments,Contract Payments,BOUNDARY SCAFFOLDING LTD,SN6 ,24/05/2023,"1,440.00"
87851233,Responsive Repairs,Repairs,Responsive Repairs,3rd Party Payments,Contract Payments,BOUNDARY SCAFFOLDING LTD,SN6 ,24/05/2023,72
88874233,Responsive Repairs,Repairs,Responsive Repairs,3rd Party Payments,Contract Payments,BOUNDARY SCAFFOLDING LTD,SN6 ,31/05/2023,800
83507233,Responsive Repairs,Repairs,Responsive Repairs,3rd Party Payments,Contract Payments,BOUNDARY SCAFFOLDING LTD,SN6 ,03/05/2023,680
88872233,Responsive Repairs,Repairs,Responsive Repairs,3rd Party Payments,Contract Payments,BOUNDARY SCAFFOLDING LTD,SN6 ,31/05/2023,660
83511233,Responsive Repairs,Repairs,Responsive Repairs,3rd Party Payments,Contract Payments,BOUNDARY SCAFFOLDING LTD,SN6 ,03/05/2023,960
83508234,Responsive Repairs,Repairs,Responsive Repairs,3rd Party Payments,Contract Payments,BOUNDARY SCAFFOLDING LTD,SN6 ,03/05/2023,960
83506233,Responsive Repairs,Repairs,Responsive Repairs,3rd Party Payments,Contract Payments,BOUNDARY SCAFFOLDING LTD,SN6 ,03/05/2023,630
87851233,Responsive Repairs,Repairs,Responsive Repairs,3rd Party Payments,Contract Payments,BOUNDARY SCAFFOLDING LTD,SN6 ,24/05/2023,144
83720234,Responsive Repairs,Repairs,Responsive Repairs,3rd Party Payments,Contract Payments,BOUNDARY SCAFFOLDING LTD,SN6 ,03/05/2023,"1,120.00"
87849233,Responsive Repairs,Repairs,Responsive Repairs,3rd Party Payments,Contract Payments,BOUNDARY SCAFFOLDING LTD,SN6 ,24/05/2023,840
83509233,Responsive Repairs,Repairs,Responsive Repairs,3rd Party Payments,Contract Payments,BOUNDARY SCAFFOLDING LTD,SN6 ,03/05/2023,960
88873233,Responsive Repairs,Repairs,Responsive Repairs,3rd Party Payments,Contract Payments,BOUNDARY SCAFFOLDING LTD,SN6 ,31/05/2023,660
84052233,Streetsmart,Streetsmart,Lydiard House & Hotel Improvements,Capital,Professional Fees,BOURNE FURNITURE LIMITED,SN8 ,03/05/2023,"46,843.00"
87664233,Digital & Business Change,Digital & Business Change,IT Operations,Supplies and Services,License Costs,BOXPHISH LTD,LS1 ,24/05/2023,"2,000.00"
88314233,Property Management,Property,Property Assets,Supplies and Services,Fees,BPE SOLICITORS LLP,GL50,26/05/2023,"1,000.00"
88314233,Property Management,Property,Property Assets,Supplies and Services,Fees,BPE SOLICITORS LLP,GL50,26/05/2023,12
88032233,DSG Other Funding,DSG Skills and Attainment,LAC pupil premium,Supplies and Services,Services,BRADON FOREST SCHOOL,SN5 ,31/05/2023,600
88851233,Lydiard Park,Culture & Heritage,Lydiard : Hotel Operations,Supplies and Services,Materials,BRAKE BROS LTD,TN25,31/05/2023,"1,338.72"
88852233,Lydiard Park,Culture & Heritage,Lydiard : Hotel Operations,Supplies and Services,Food,BRAKE BROS LTD,TN25,31/05/2023,773.46
87782236,High Needs Block,DSG Skills and Attainment,SEN Resourcing Assessment Panel,3rd Party Payments,Top up funding - Maintained providers Pre 16,BRAMBLE HOUSE DAY NURSERY LTD,SN2 ,24/05/2023,900
87701233,Early Years Block,DSG Skills and Attainment,Free Nursery Education Commissioning - three & four  year olds,3rd Party Payments,Contracts - Child Care,BRAMBLE HOUSE DAY NURSERY LTD,SN2 ,24/05/2023,"2,280.00"
87082241,Social Care,"Children, Families and Community Health Services",Children's Resource and Home Finding Team,3rd Party Payments,Residential Care,BRANAS ISAF LIMITED,EN6 ,19/05/2023,"24,578.66"
88378233,Traded Services,"Education, Inclusion and Skills",Plas Pencelli Outdoor Education Centre,Supplies and Services,Fees,BRECON BEACONS NATIONAL PARK AUTHORITY,LD3 ,26/05/2023,583.33
83842233,Facilities Management,"People, Culture and Organisational Resilience",Office Accommodation,Premises Costs,Maintenance - Buildings,BRISTOL FIRE,BS37,03/05/2023,"3,476.25"
87955233,Property Management,Property,Corporate Repairs & Maintenance Programme,Premises Costs,Maintenance - Buildings,BRISTOL FIRE,BS37,24/05/2023,425
85677234,Property Management,Property,Corporate Repairs & Maintenance Programme,Premises Costs,Maintenance - Buildings,BRISTOL FIRE,BS37,10/05/2023,467.25
85661233,Planned Maintenance Programme,HRA Capital Financing,Aids & Adaptations,Capital,Contractor Payments,BRISTOL FIRE,BS37,10/05/2023,"4,887.70"
86054233,Property Service Charged Properties,Property,Service Charged - Theatre Square,Premises Costs,Maintenance - Buildings,BRISTOL FIRE,BS37,12/05/2023,809.55
85678234,Property Management,Property,Corporate Repairs & Maintenance Programme,Premises Costs,Maintenance - Buildings,BRISTOL FIRE,BS37,10/05/2023,"24,902.00"
86354233,Property Management,Property,Corporate Repairs & Maintenance Programme,Premises Costs,Maintenance - Buildings,BRISTOL FIRE,BS37,15/05/2023,895.75
86441234,Streetsmart,Streetsmart,Waterside Depot,Premises Costs,Maintenance - Buildings,BRISTOL FIRE,BS37,17/05/2023,490.61
87386233,Homelessness and Travellers,Housing Services,ASC Rental Properties,Premises Costs,Gas,BRITISH GAS TRADING LTD,SL4 ,19/05/2023,"2,145.94"
88741233,Property Estates,Property,Carriage Works,Premises Costs,Electricity,BRITISH GAS TRADING LTD,S98 ,31/05/2023,482.67
Corporate Card Transaction,Homelessness and Travellers,Housing Services,Warm Welcome Project,Supplies and Services,Equipment,British Heart Foundation,,27/04/2023,"1,274.00"
83713233,Revenues & Benefits,Revenues & Benefits,Swindon Emergency Assistance Fund,Supplies and Services,Materials,BRITISH HEART FOUNDATION,NW1 ,03/05/2023,"1,875.00"
87151233,Revenues & Benefits,Revenues & Benefits,Swindon Emergency Assistance Fund,Supplies and Services,Materials,BRITISH HEART FOUNDATION,NW1 ,19/05/2023,"1,680.00"
83918234,Lydiard Park,Culture & Heritage,Lydiard : Hotel Operations,Supplies and Services,Services,BRITISH TELECOMMUNICATIONS PLC,S98 ,03/05/2023,"1,887.00"
87732234,NEV,"Economy, Growth and Place",Package 2 - Nythe Road Junction and Piccadilly Roundabout,Capital,Contractor Payments,BRITISH TELECOMMUNICATIONS PLC,S1 3,24/05/2023,"24,089.97"
83918234,Lydiard Park,Culture & Heritage,Lydiard : Hotel Operations,Supplies and Services,Services,BRITISH TELECOMMUNICATIONS PLC,S98 ,03/05/2023,40
87809233,,,Balance Sheet,Balance Sheet & Recharge,British Telecom invoices,BRITISH TELECOMMUNICATIONS PLC,S98 ,24/05/2023,"21,536.09"
86872233,High Needs Block,DSG Skills and Attainment,SEN Resourcing Assessment Panel,3rd Party Payments,Top up funding - Academies and Free Schools Pre 16,BRUNEL EDUCATION,SN25,17/05/2023,"11,437.26"
86906233,High Needs Block,DSG Skills and Attainment,Post 16 - New Responsibilties,3rd Party Payments,Independent Service Provider- Post 16,BRUNEL EDUCATION,SN25,17/05/2023,"112,221.50"
87513233,High Needs Block,DSG Skills and Attainment,DSG Retained High Needs,Supplies and Services,Payments to Educational Bodies,REDACTED PERSONAL DATA,SN25,22/05/2023,"18,185.79"
87495234,High Needs Block,DSG Skills and Attainment,Special School Place,3rd Party Payments,HNB- Place Funding pre 16,REDACTED PERSONAL DATA,SN25,26/05/2023,"66,067.00"
86885233,High Needs Block,DSG Skills and Attainment,SEN Resourcing Assessment Panel,3rd Party Payments,Top up funding - Academies and Free Schools Pre 16,REDACTED PERSONAL DATA,SN25,17/05/2023,"29,070.81"
86895234,High Needs Block,DSG Skills and Attainment,SEN Resourcing Assessment Panel,3rd Party Payments,Top up funding - Academies and Free Schools Pre 16,REDACTED PERSONAL DATA,SN25,17/05/2023,"17,350.00"
86871234,High Needs Block,DSG Skills and Attainment,SEN Resourcing Assessment Panel,3rd Party Payments,Top up funding - Academies and Free Schools Pre 16,REDACTED PERSONAL DATA,SN25,17/05/2023,"116,696.78"
87510233,High Needs Block,DSG Skills and Attainment,DSG Retained High Needs,Supplies and Services,Payments to Educational Bodies,REDACTED PERSONAL DATA,SN25,22/05/2023,"16,569.27"
86899234,High Needs Block,DSG Skills and Attainment,SEN Resourcing Assessment Panel,3rd Party Payments,Top up funding - Academies and Free Schools Post 16,REDACTED PERSONAL DATA,SN25,17/05/2023,"49,927.43"
85425233,High Needs Block,DSG Skills and Attainment,SEN Resourcing Assessment Panel,Supplies and Services,Services,REDACTED PERSONAL DATA,SN25,10/05/2023,"12,960.00"
86891233,High Needs Block,DSG Skills and Attainment,SEN Resourcing Assessment Panel,3rd Party Payments,Top up funding - Academies and Free Schools Pre 16,REDACTED PERSONAL DATA,SN25,17/05/2023,"9,249.73"
86875234,High Needs Block,DSG Skills and Attainment,SEN Resourcing Assessment Panel,3rd Party Payments,Top up funding - Academies and Free Schools Pre 16,REDACTED PERSONAL DATA,SN25,17/05/2023,"137,531.86"
87511233,High Needs Block,DSG Skills and Attainment,DSG Retained High Needs,Supplies and Services,Payments to Educational Bodies,REDACTED PERSONAL DATA,SN25,22/05/2023,"30,915.84"
87503235,High Needs Block,DSG Skills and Attainment,DSG Retained High Needs,Supplies and Services,Payments to Educational Bodies,REDACTED PERSONAL DATA,SN25,22/05/2023,"11,155.89"
86878234,High Needs Block,DSG Skills and Attainment,SEN Resourcing Assessment Panel,3rd Party Payments,Top up funding - Academies and Free Schools Pre 16,REDACTED PERSONAL DATA,SN25,17/05/2023,"136,705.03"
86896233,High Needs Block,DSG Skills and Attainment,SEN Resourcing Assessment Panel,3rd Party Payments,Top up funding - Academies and Free Schools Pre 16,REDACTED PERSONAL DATA,SN25,17/05/2023,"21,422.08"
86859233,High Needs Block,DSG Skills and Attainment,SEN Resourcing Assessment Panel,3rd Party Payments,Top up funding - Academies and Free Schools Pre 16,REDACTED PERSONAL DATA,SN25,17/05/2023,"2,132.08"
87495233,High Needs Block,DSG Skills and Attainment,Special School Place,3rd Party Payments,HNB- Place Funding pre 16,REDACTED PERSONAL DATA,SN25,26/05/2023,"86,500.00"
86874234,High Needs Block,DSG Skills and Attainment,SEN Resourcing Assessment Panel,3rd Party Payments,Top up funding - Academies and Free Schools Pre 16,REDACTED PERSONAL DATA,SN25,17/05/2023,"80,424.41"
88049341,DSG Other Funding,DSG Skills and Attainment,LAC pupil premium,Supplies and Services,Services,REDACTED PERSONAL DATA,SN25,31/05/2023,600
87525233,High Needs Block,DSG Skills and Attainment,DSG Retained High Needs,Supplies and Services,Payments to Educational Bodies,REDACTED PERSONAL DATA,SN25,22/05/2023,"1,148.94"
87523233,High Needs Block,DSG Skills and Attainment,DSG Retained High Needs,Supplies and Services,Payments to Educational Bodies,REDACTED PERSONAL DATA,SN25,22/05/2023,"1,626.56"
87503234,High Needs Block,DSG Skills and Attainment,DSG Retained High Needs,Supplies and Services,Payments to Educational Bodies,REDACTED PERSONAL DATA,SN25,22/05/2023,"5,978.97"
87015236,High Needs Block,DSG Skills and Attainment,Advisory Teacher Services,Supplies and Services,Payments to Educational Bodies,REDACTED PERSONAL DATA,SN25,17/05/2023,"11,325.00"
87495236,High Needs Block,DSG Skills and Attainment,Special School Place,3rd Party Payments,HNB- Place Funding pre 16,REDACTED PERSONAL DATA,SN25,26/05/2023,"111,274.00"
87495235,High Needs Block,DSG Skills and Attainment,Special School Place,3rd Party Payments,HNB- Place Funding pre 16,REDACTED PERSONAL DATA,SN25,26/05/2023,"133,700.00"
86584233,Early Years Block,DSG Skills and Attainment,Free Nursery Education Commissioning - three & four  year olds,3rd Party Payments,Contracts - Child Care,REDACTED PERSONAL DATA,SN25,17/05/2023,"6,258.39"
87503233,High Needs Block,DSG Skills and Attainment,DSG Retained High Needs,Supplies and Services,Payments to Educational Bodies,REDACTED PERSONAL DATA,SN25,22/05/2023,"7,874.74"
87521234,High Needs Block,DSG Skills and Attainment,DSG Retained High Needs,Supplies and Services,Payments to Educational Bodies,REDACTED PERSONAL DATA,SN25,22/05/2023,"5,719.90"
88049344,DSG Other Funding,DSG Skills and Attainment,LAC pupil premium,Supplies and Services,Services,REDACTED PERSONAL DATA,SN25,31/05/2023,600
87509233,High Needs Block,DSG Skills and Attainment,DSG Retained High Needs,Supplies and Services,Payments to Educational Bodies,REDACTED PERSONAL DATA,SN25,22/05/2023,"21,822.94"
87503237,High Needs Block,DSG Skills and Attainment,DSG Retained High Needs,Supplies and Services,Payments to Educational Bodies,REDACTED PERSONAL DATA,SN25,22/05/2023,"6,562.29"
86956233,SEND Funds,Skills & Attainment,Education High Needs Provision,Capital,Contractor Payments,REDACTED PERSONAL DATA,SN25,17/05/2023,"10,316.73"
86873233,High Needs Block,DSG Skills and Attainment,SEN Resourcing Assessment Panel,3rd Party Payments,Top up funding - Academies and Free Schools Pre 16,REDACTED PERSONAL DATA,SN25,17/05/2023,"25,167.63"
87015235,High Needs Block,DSG Skills and Attainment,Advisory Teacher Services,Supplies and Services,Payments to Educational Bodies,REDACTED PERSONAL DATA,SN25,17/05/2023,"7,250.00"
85545233,Schools Block - Growth,DSG Skills and Attainment,Pupil Growth Trigger Funding,Supplies and Services,Services,REDACTED PERSONAL DATA,SN25,10/05/2023,"4,140.00"
86771243,NEV,"Economy, Growth and Place",Southern Connector Road,Capital,Consultants,BRUTON KNOWLES,GL2 ,17/05/2023,"2,016.80"
83852233,Supported Employment,Housing Services,EW - Timber,Supplies and Services,Materials,BSW TIMBER LIMITED,TD4 ,03/05/2023,"7,634.23"
87778233,Highways & Transport,Highways & Transport,Traffic Management & Road Safety,3rd Party Payments,Contract Payments,BUCHANAN COMPUTING,W6 7,24/05/2023,"23,903.00"
87076233,NEV,"Economy, Growth and Place",Southern Connector Road,Capital,Contractor Payments,BUCKINGHAM GROUP CONTRACTING LIMITED,MK18,17/05/2023,"309,021.28"
83853233,NEV,"Economy, Growth and Place",Southern Connector Road,Capital,Contractor Payments,BUCKINGHAM GROUP CONTRACTING LIMITED,MK18,03/05/2023,"1,212,563.11"
87803233,Neighbourhood Wardens,Special Services,Neighbourhood Wardens,Supplies and Services,Hire / Rental,BUNZL CLEANING & HYGIENE SUPPLIES,SL3 ,24/05/2023,"1,067.82"
86340233,Human Resources and Organisational Development,"People, Culture and Organisational Resilience",HR System,Employees,Temporary / Agency - by Accounts Payable,BURMAN HR,DT1 ,15/05/2023,450
84461233,Human Resources and Organisational Development,"People, Culture and Organisational Resilience",HR System,Employees,Temporary / Agency - by Accounts Payable,BURMAN HR,DT1 ,03/05/2023,"2,858.10"
88424233,Human Resources and Organisational Development,"People, Culture and Organisational Resilience",HR System,Employees,Temporary / Agency - by Accounts Payable,BURMAN HR,DT1 ,31/05/2023,450
86482233,Early Years Block,DSG Skills and Attainment,Free Nursery Education Commissioning - two year olds,3rd Party Payments,Contracts - Child Care,"BUSY BEES, BROOME MANOR",SN3 ,17/05/2023,718.53
86483233,Early Years Block,DSG Skills and Attainment,Free Nursery Education Commissioning - three & four  year olds,3rd Party Payments,Contracts - Child Care,"BUSY BEES, BROOME MANOR",SN3 ,17/05/2023,"15,379.89"
87782237,High Needs Block,DSG Skills and Attainment,SEN Resourcing Assessment Panel,3rd Party Payments,Top up funding - Maintained providers Pre 16,"BUSY BEES, BROOME MANOR",SN3 ,24/05/2023,624
86484233,Early Years Block,DSG Skills and Attainment,Free Nursery Education Commissioning - three & four  year olds,3rd Party Payments,Contracts - Child Care,"BUSY BEES, PEATMOOR",SN5 ,17/05/2023,"15,025.07"
86485233,Early Years Block,DSG Skills and Attainment,Free Nursery Education Commissioning - two year olds,3rd Party Payments,Contracts - Child Care,"BUSY BEES, PEATMOOR",SN5 ,17/05/2023,718.53
87782238,High Needs Block,DSG Skills and Attainment,SEN Resourcing Assessment Panel,3rd Party Payments,Top up funding - Maintained providers Pre 16,"BUSY BEES, PEATMOOR",SN5 ,24/05/2023,624
86481233,Early Years Block,DSG Skills and Attainment,Free Nursery Education Commissioning - two year olds,3rd Party Payments,Contracts - Child Care,"BUSY BEES, ST ANDREWS RIDGE",SN25,17/05/2023,718.53
86480233,Early Years Block,DSG Skills and Attainment,Free Nursery Education Commissioning - three & four  year olds,3rd Party Payments,Contracts - Child Care,"BUSY BEES, ST ANDREWS RIDGE",SN25,17/05/2023,"21,056.93"
84484235,Planned Maintenance Programme,HRA Capital Financing,Aids & Adaptations,Capital,Contractor Payments,C.A.P. SECURITY LTD,BS15,05/05/2023,"5,974.34"
87329233,Learning Disabilities,Adults,Learning Disability 18 - 64,3rd Party Payments,Residential Care,C.H.O.I.C.E LTD,RG12,19/05/2023,"-23,142.86"
87329238,Learning Disabilities,Adults,Learning Disability 18 - 64,Income,Client Contribution - Residential,C.H.O.I.C.E LTD,RG12,19/05/2023,13.96
87329238,Learning Disabilities,Adults,Learning Disability 18 - 64,Income,Client Contribution - Residential,C.H.O.I.C.E LTD,RG12,19/05/2023,-754.07
87329234,Learning Disabilities,Adults,Learning Disability 18 - 64,Income,Client Contribution - Residential,C.H.O.I.C.E LTD,RG12,19/05/2023,-423
87329238,Learning Disabilities,Adults,Learning Disability 65 and over,3rd Party Payments,Residential Care,C.H.O.I.C.E LTD,RG12,19/05/2023,"-10,192.74"
87329238,Learning Disabilities,Adults,Learning Disability 65 and over,3rd Party Payments,Residential Care,C.H.O.I.C.E LTD,RG12,19/05/2023,"9,797.76"
87329237,Learning Disabilities,Adults,Learning Disability 65 and over,3rd Party Payments,Residential Care,C.H.O.I.C.E LTD,RG12,19/05/2023,"9,224.00"
87329238,Learning Disabilities,Adults,Learning Disability 18 - 64,3rd Party Payments,Residential Care,C.H.O.I.C.E LTD,RG12,19/05/2023,"-16,710.14"
87329238,Learning Disabilities,Adults,Learning Disability 65 and over,3rd Party Payments,Residential Care,C.H.O.I.C.E LTD,RG12,19/05/2023,"-2,187.00"
87329238,Learning Disabilities,Adults,Learning Disability 65 and over,3rd Party Payments,Residential Care,C.H.O.I.C.E LTD,RG12,19/05/2023,"11,121.60"
87329237,Learning Disabilities,Adults,Learning Disability 65 and over,Income,Client Contribution - Residential,C.H.O.I.C.E LTD,RG12,19/05/2023,-607.6
87329238,Learning Disabilities,Adults,Learning Disability 65 and over,Income,Client Contribution - Residential,C.H.O.I.C.E LTD,RG12,19/05/2023,-547.89
87329238,Learning Disabilities,Adults,Learning Disability 65 and over,Income,Client Contribution - Residential,C.H.O.I.C.E LTD,RG12,19/05/2023,472.15
87329238,Learning Disabilities,Adults,Learning Disability 18 - 64,3rd Party Payments,Residential Care,C.H.O.I.C.E LTD,RG12,19/05/2023,"19,068.48"
87329239,Physical Support,Adults,Physical Support 18 - 64,3rd Party Payments,Residential Care,C.H.O.I.C.E LTD,RG12,19/05/2023,"10,222.80"
87329238,Learning Disabilities,Adults,Learning Disability 65 and over,3rd Party Payments,Residential Care,C.H.O.I.C.E LTD,RG12,19/05/2023,"-7,944.00"
87329238,Learning Disabilities,Adults,Learning Disability 65 and over,3rd Party Payments,Residential Care,C.H.O.I.C.E LTD,RG12,19/05/2023,"10,380.16"
87329238,Learning Disabilities,Adults,Learning Disability 65 and over,Income,Client Contribution - Residential,C.H.O.I.C.E LTD,RG12,19/05/2023,-617.76
87329239,Learning Disabilities,Adults,Learning Disability 18 - 64,Income,Client Contribution - Residential,C.H.O.I.C.E LTD,RG12,19/05/2023,-276.6
87329238,Learning Disabilities,Adults,Learning Disability 18 - 64,Income,Client Contribution - Residential,C.H.O.I.C.E LTD,RG12,19/05/2023,-391
87329233,Learning Disabilities,Adults,Learning Disability 18 - 64,Income,Client Contribution - Residential,C.H.O.I.C.E LTD,RG12,19/05/2023,-298.2
87329234,Learning Disabilities,Adults,Learning Disability 18 - 64,3rd Party Payments,Residential Care,C.H.O.I.C.E LTD,RG12,19/05/2023,"8,992.00"
87329233,Learning Disabilities,Adults,Learning Disability 18 - 64,3rd Party Payments,Residential Care,C.H.O.I.C.E LTD,RG12,19/05/2023,"25,920.00"
87329239,Learning Disabilities,Adults,Learning Disability 18 - 64,Income,Client Contribution - Residential,C.H.O.I.C.E LTD,RG12,19/05/2023,-454.8
87329238,Learning Disabilities,Adults,Learning Disability 18 - 64,Income,Client Contribution - Residential,C.H.O.I.C.E LTD,RG12,19/05/2023,740.11
87329238,Learning Disabilities,Adults,Learning Disability 65 and over,3rd Party Payments,Residential Care,C.H.O.I.C.E LTD,RG12,19/05/2023,"2,449.44"
87329238,Learning Disabilities,Adults,Learning Disability 65 and over,3rd Party Payments,Residential Care,C.H.O.I.C.E LTD,RG12,19/05/2023,"8,897.28"
87329238,Learning Disabilities,Adults,Learning Disability 65 and over,3rd Party Payments,Residential Care,C.H.O.I.C.E LTD,RG12,19/05/2023,"16,446.24"
87329237,Learning Disabilities,Adults,Learning Disability 65 and over,Income,Client Contribution - Residential,C.H.O.I.C.E LTD,RG12,19/05/2023,-773.2
87329239,Learning Disabilities,Adults,Learning Disability 18 - 64,3rd Party Payments,Residential Care,C.H.O.I.C.E LTD,RG12,19/05/2023,"11,468.00"
87329238,Learning Disabilities,Adults,Learning Disability 65 and over,3rd Party Payments,Residential Care,C.H.O.I.C.E LTD,RG12,19/05/2023,"-9,930.00"
87329236,Learning Disabilities,Adults,Learning Disability 18 - 64,3rd Party Payments,Residential Care,C.H.O.I.C.E LTD,SO23,19/05/2023,"8,203.60"
87329239,Learning Disabilities,Adults,Learning Disability 18 - 64,3rd Party Payments,Residential Care,C.H.O.I.C.E LTD,RG12,19/05/2023,"12,384.00"
87329235,Learning Disabilities,Adults,Learning Disability 18 - 64,Income,Client Contribution - Residential,C.H.O.I.C.E LTD,RG12,19/05/2023,-415
87329238,Learning Disabilities,Adults,Learning Disability 65 and over,3rd Party Payments,Residential Care,C.H.O.I.C.E LTD,RG12,19/05/2023,"-14,684.14"
87329237,Learning Disabilities,Adults,Learning Disability 65 and over,3rd Party Payments,Residential Care,C.H.O.I.C.E LTD,RG12,19/05/2023,"9,836.00"
87329238,Learning Disabilities,Adults,Learning Disability 65 and over,Income,Client Contribution - Residential,C.H.O.I.C.E LTD,RG12,19/05/2023,-639.2
87329238,Learning Disabilities,Adults,Learning Disability 18 - 64,3rd Party Payments,Residential Care,C.H.O.I.C.E LTD,RG12,19/05/2023,-315.29
87329238,Learning Disabilities,Adults,Learning Disability 18 - 64,3rd Party Payments,Residential Care,C.H.O.I.C.E LTD,RG12,19/05/2023,"9,887.36"
87329233,Learning Disabilities,Adults,Learning Disability 18 - 64,3rd Party Payments,Residential Care,C.H.O.I.C.E LTD,RG12,19/05/2023,"13,440.00"
87329239,Physical Support,Adults,Physical Support 18 - 64,Income,Client Contribution - Residential,C.H.O.I.C.E LTD,RG12,19/05/2023,-414.2
87329235,Learning Disabilities,Adults,Learning Disability 18 - 64,3rd Party Payments,Residential Care,C.H.O.I.C.E LTD,RG12,19/05/2023,"12,920.00"
87135233,High Needs Block,DSG Skills and Attainment,Out of Borough School Fees,3rd Party Payments,OLA Special schools- Pre 16,REDACTED PERSONAL DATA,BS15,19/05/2023,"18,606.00"
88049258,DSG Other Funding,DSG Skills and Attainment,LAC pupil premium,Supplies and Services,Services,REDACTED PERSONAL DATA,BS15,31/05/2023,600
88049257,DSG Other Funding,DSG Skills and Attainment,LAC pupil premium,Supplies and Services,Services,REDACTED PERSONAL DATA,BS15,31/05/2023,600
86875233,Social Care,"Children, Families and Community Health Services",Children's Resource and Home Finding Team,3rd Party Payments,Residential Care,CALCOT SERVICES FOR CHILDREN LTD,RG7 ,17/05/2023,"29,361.34"
86874233,Social Care,"Children, Families and Community Health Services",Children's Resource and Home Finding Team,3rd Party Payments,Residential Care,CALCOT SERVICES FOR CHILDREN LTD,RG7 ,17/05/2023,"29,892.68"
88397251,Social Care,"Children, Families and Community Health Services",Children's Resource and Home Finding Team,3rd Party Payments,Independent Fostering Agency Placements,CALDECOTT FOSTERING LTD,TN25,31/05/2023,"7,146.52"
88485518,Learning Disabilities,Adults,Learning Disability 18 - 64,Transfer Payments,Personal Budget - Direct Payments - Domiciliary Care,REDACTED PERSONAL DATA,SP11,31/05/2023,"2,053.88"
84063544,Learning Disabilities,Adults,Learning Disability 18 - 64,Transfer Payments,Personal Budget - Direct Payments - Domiciliary Care,REDACTED PERSONAL DATA,SP11,03/05/2023,"2,053.88"
88485611,Learning Disabilities,Adults,Learning Disability 18 - 64,Transfer Payments,Personal Budget - Direct Payments - Domiciliary Care,REDACTED PERSONAL DATA,SP11,31/05/2023,707.37
84063648,Learning Disabilities,Adults,Learning Disability 18 - 64,Transfer Payments,Personal Budget - Direct Payments - Domiciliary Care,REDACTED PERSONAL DATA,SP11,03/05/2023,707.37
88021233,Lydiard Park,Culture & Heritage,Lydiard House & Park,Premises Costs,Gas,CALOR GAS LTD,CV34,26/05/2023,"1,112.16"
84206233,Social Care,"Children, Families and Community Health Services",Children's Resource and Home Finding Team,3rd Party Payments,Residential Care,CAMBIAN CHILDCARE LTD,EN6 ,03/05/2023,"25,427.10"
87082240,Social Care,"Children, Families and Community Health Services",Children's Resource and Home Finding Team,3rd Party Payments,Residential Care,CAMBIAN CHILDCARE LTD,EN6 ,19/05/2023,"26,274.67"
84063271,Physical Support,Adults,Physical Support 18 - 64,Transfer Payments,Personal Budget - Direct Payments - Domiciliary Care,REDACTED PERSONAL DATA,SN25,03/05/2023,940.61
88485253,Physical Support,Adults,Physical Support 18 - 64,Transfer Payments,Personal Budget - Direct Payments - Domiciliary Care,REDACTED PERSONAL DATA,SN25,31/05/2023,940.61
86439234,Void Repairs,Supervision & Management,Void Property Repairs,3rd Party Payments,Contract Payments,CANTILLON GROUP LTD,SN25,17/05/2023,"8,692.61"
83897240,Other Repairs,Repairs,Cyclical Maintenance,Supplies and Services,Testing / Inspection,CANTILLON GROUP LTD,SN25,03/05/2023,674.9
86439234,Planned Maintenance Programme,HRA Capital Financing,Kitchens,Capital,Contractor Payments,CANTILLON GROUP LTD,SN25,17/05/2023,"3,145.82"
86439234,Planned Maintenance Programme,HRA Capital Financing,Kitchens,Capital,Contractor Payments,CANTILLON GROUP LTD,SN25,17/05/2023,"7,992.88"
86439234,Void Repairs,Supervision & Management,Void Property Repairs,3rd Party Payments,Contract Payments,CANTILLON GROUP LTD,SN25,17/05/2023,"8,211.23"
84484233,Other Repairs,Repairs,Cyclical Maintenance,Supplies and Services,Testing / Inspection,CANTILLON GROUP LTD,SN25,05/05/2023,424.6
86439234,Void Repairs,Supervision & Management,Void Property Repairs,3rd Party Payments,Contract Payments,CANTILLON GROUP LTD,SN25,17/05/2023,"13,343.08"
86439234,Void Repairs,Supervision & Management,Void Property Repairs,3rd Party Payments,Contract Payments,CANTILLON GROUP LTD,SN25,17/05/2023,"2,053.55"
86439234,Void Repairs,Supervision & Management,Void Property Repairs,3rd Party Payments,Contract Payments,CANTILLON GROUP LTD,SN25,17/05/2023,"20,131.63"
86439234,Void Repairs,Supervision & Management,Void Property Repairs,3rd Party Payments,Contract Payments,CANTILLON GROUP LTD,SN25,17/05/2023,"-50,000.00"
83897237,Other Repairs,Repairs,Cyclical Maintenance,Supplies and Services,Testing / Inspection,CANTILLON GROUP LTD,SN25,03/05/2023,440.83
86439234,Void Repairs,Supervision & Management,Void Property Repairs,3rd Party Payments,Contract Payments,CANTILLON GROUP LTD,SN25,17/05/2023,"10,483.92"
86439234,Void Repairs,Supervision & Management,Void Property Repairs,3rd Party Payments,Contract Payments,CANTILLON GROUP LTD,SN25,17/05/2023,"50,000.00"
86439234,Void Repairs,Supervision & Management,Void Property Repairs,3rd Party Payments,Contract Payments,CANTILLON GROUP LTD,SN25,17/05/2023,"5,166.27"
86439234,Planned Maintenance Programme,HRA Capital Financing,Central Heating,Capital,Contractor Payments,CANTILLON GROUP LTD,SN25,17/05/2023,"6,666.98"
86439234,Void Repairs,Supervision & Management,Void Property Repairs,3rd Party Payments,Contract Payments,CANTILLON GROUP LTD,SN25,17/05/2023,"8,790.98"
86439234,Void Repairs,Supervision & Management,Void Property Repairs,3rd Party Payments,Contract Payments,CANTILLON GROUP LTD,SN25,17/05/2023,"2,545.73"
86439234,Planned Maintenance Programme,HRA Capital Financing,Bathrooms,Capital,Contractor Payments,CANTILLON GROUP LTD,SN25,17/05/2023,"2,202.76"
86755233,Business Development,Supervision & Management,ICT & Administration,Supplies and Services,Equipment,CAPITA BUSINESS SERVICES LTD,DL1 ,17/05/2023,"2,300.00"
83862233,Property Management,Property,Corporate Repairs & Maintenance Programme,Premises Costs,Maintenance - Buildings,CAPITA WORKFORCE MANAGEMENT LTD,DL1 ,03/05/2023,"1,160.00"
84484238,Streetsmart,Streetsmart,Waterside Depot Improvements,Capital,Contractor Payments,CAPITA WORKFORCE MANAGEMENT LTD,DL1 ,05/05/2023,"12,385.00"
88397248,Social Care,"Children, Families and Community Health Services",Children's Resource and Home Finding Team,3rd Party Payments,Independent Fostering Agency Placements,CAPSTONE FOSTER CARE (SW) LTD,TQ12,31/05/2023,"3,766.19"
88397247,Social Care,"Children, Families and Community Health Services",Children's Resource and Home Finding Team,3rd Party Payments,Independent Fostering Agency Placements,CAPSTONE FOSTER CARE (SW) LTD,TQ12,31/05/2023,"3,728.53"
85972233,Social Care,"Children, Families and Community Health Services",Children's Resource and Home Finding Team,3rd Party Payments,Independent Fostering Agency Placements,CAPSTONE FOSTER CARE (SW) LTD,TQ12,12/05/2023,"3,608.25"
88397246,Social Care,"Children, Families and Community Health Services",Children's Resource and Home Finding Team,3rd Party Payments,Independent Fostering Agency Placements,CAPSTONE FOSTER CARE (SW) LTD,TQ12,31/05/2023,"7,881.75"
85315233,Streetsmart,Streetsmart,Waterside Fleet Workshops,Supplies and Services,Materials,CAR AND TRUCK SERVICES (SWINDON) LTD,SN1 ,10/05/2023,847.48
85315233,Streetsmart,Streetsmart,Waterside Fleet Workshops,Supplies and Services,Materials,CAR AND TRUCK SERVICES (SWINDON) LTD,SN1 ,10/05/2023,20
84741233,Disabled Children,"Children, Families and Community Health Services",ICES Paediatric,Supplies and Services,Equipment,CARE & INDEPENDENCE SYSTEMS LTD,OX26,05/05/2023,500.8
86713233,Disabled Children,"Children, Families and Community Health Services",ICES Paediatric,Supplies and Services,Equipment,CARE & INDEPENDENCE SYSTEMS LTD,OX26,17/05/2023,571.1
84740233,Disabled Children,"Children, Families and Community Health Services",ICES Paediatric,Supplies and Services,Equipment,CARE & INDEPENDENCE SYSTEMS LTD,OX26,05/05/2023,430.5
88053235,Disabled Children,"Children, Families and Community Health Services",ICES Paediatric,Supplies and Services,Equipment,CARE & INDEPENDENCE SYSTEMS LTD,OX26,26/05/2023,500.8
86714233,Disabled Children,"Children, Families and Community Health Services",ICES Paediatric,Supplies and Services,Equipment,CARE & INDEPENDENCE SYSTEMS LTD,OX26,17/05/2023,516
87329312,Learning Disabilities,Adults,Learning Disability 18 - 64,3rd Party Payments,Supported Lodgings (Childrens)/Supported Living (Adults),CAREFORYOU LTD,N13 ,19/05/2023,"4,882.00"
83051233,Public Health,Public Health,Health Checks,3rd Party Payments,Contract Payments,CARFAX HEALTH ENTERPRISE CIC,SN5 ,03/05/2023,"2,129.00"
85309233,Disabled Children,"Children, Families and Community Health Services",DCT Daytime Short Breaks,3rd Party Payments,Respite Care,CARING FOR COMMUNITIES AND PEOPLE (CCP),GL50,10/05/2023,"1,231.60"
87720235,Social Care,"Children, Families and Community Health Services",Placement - Care Leaver Team,3rd Party Payments,Semi Independent,CARING FOR COMMUNITIES AND PEOPLE (CCP),GL50,24/05/2023,"2,580.00"
87720240,Social Care,"Children, Families and Community Health Services",Unaccompanied Asylum Seeking Children (UASC),3rd Party Payments,Semi Independent,CARING FOR COMMUNITIES AND PEOPLE (CCP),GL50,24/05/2023,"2,580.00"
87720238,Social Care,"Children, Families and Community Health Services",Placement - Care Leaver Team,3rd Party Payments,Semi Independent,CARING FOR COMMUNITIES AND PEOPLE (CCP),GL50,24/05/2023,"2,580.00"
87720234,Social Care,"Children, Families and Community Health Services",Placement - Care Leaver Team,3rd Party Payments,Semi Independent,CARING FOR COMMUNITIES AND PEOPLE (CCP),GL50,24/05/2023,"2,580.00"
87720236,Social Care,"Children, Families and Community Health Services",Placement - Care Leaver Team,3rd Party Payments,Semi Independent,CARING FOR COMMUNITIES AND PEOPLE (CCP),GL50,24/05/2023,"3,600.00"
87720241,Social Care,"Children, Families and Community Health Services",Children's Resource and Home Finding Team,3rd Party Payments,Semi Independent,CARING FOR COMMUNITIES AND PEOPLE (CCP),GL50,24/05/2023,"18,836.00"
87720233,Social Care,"Children, Families and Community Health Services",Children's Resource and Home Finding Team,3rd Party Payments,Semi Independent,CARING FOR COMMUNITIES AND PEOPLE (CCP),GL50,24/05/2023,"6,900.00"
87720237,Social Care,"Children, Families and Community Health Services",Unaccompanied Asylum Seeking Children (UASC),3rd Party Payments,Semi Independent,CARING FOR COMMUNITIES AND PEOPLE (CCP),GL50,24/05/2023,"3,600.00"
87978233,Physical Support,Adults,Physical Support 65 and over,3rd Party Payments,Personal Budget - Domiciliary care,CARING HEART CARERS LIMITED,SN25,24/05/2023,"1,010.92"
86133233,Physical Support,Adults,Physical Support 18 - 64,3rd Party Payments,Personal Budget - Domiciliary care,CARING HEART CARERS LIMITED,SN25,12/05/2023,"1,210.54"
87979233,Physical Support,Adults,Physical Support 65 and over,3rd Party Payments,Personal Budget - Domiciliary care,CARING HEART CARERS LIMITED,SN25,24/05/2023,396.56
86132233,Physical Support,Adults,Physical Support 65 and over,3rd Party Payments,Personal Budget - Domiciliary care,CARING HEART CARERS LIMITED,SN25,12/05/2023,"1,030.56"
87978233,Physical Support,Adults,Physical Support 18 - 64,3rd Party Payments,Personal Budget - Domiciliary care,CARING HEART CARERS LIMITED,SN25,24/05/2023,62.88
87979233,Physical Support,Adults,Physical Support 65 and over,3rd Party Payments,Personal Budget - Domiciliary care,CARING HEART CARERS LIMITED,SN25,24/05/2023,251.64
86132233,Physical Support,Adults,Physical Support 65 and over,3rd Party Payments,Personal Budget - Domiciliary care,CARING HEART CARERS LIMITED,SN25,12/05/2023,58.48
87979233,Physical Support,Adults,Physical Support 65 and over,3rd Party Payments,Personal Budget - Domiciliary care,CARING HEART CARERS LIMITED,SN25,24/05/2023,803.32
86133233,Physical Support,Adults,Physical Support 18 - 64,3rd Party Payments,Personal Budget - Domiciliary care,CARING HEART CARERS LIMITED,SN25,12/05/2023,75.3
85622233,Lydiard Park,Culture & Heritage,Lydiard : Hotel Operations,Supplies and Services,Repairs & Maintenance,CARLTON SERVICES (UK) LTD,SN3 ,10/05/2023,485
88485311,Learning Disabilities,Adults,Learning Disability 18 - 64,Transfer Payments,Personal Budget - Direct Payments - Domiciliary Care,REDACTED PERSONAL DATA,SN2 ,31/05/2023,"2,640.28"
84063334,Learning Disabilities,Adults,Learning Disability 18 - 64,Transfer Payments,Personal Budget - Direct Payments - Domiciliary Care,REDACTED PERSONAL DATA,SN2 ,03/05/2023,"2,640.28"
84063594,Physical Support,Adults,Physical Support 65 and over,3rd Party Payments,Carers,REDACTED PERSONAL DATA,SP11,03/05/2023,591.27
88485561,Physical Support,Adults,Physical Support 65 and over,3rd Party Payments,Carers,REDACTED PERSONAL DATA,SP11,31/05/2023,591.27
86796233,High Needs Block,DSG Skills and Attainment,SEN Resourcing Assessment Panel,Supplies and Services,Services,REDACTED PERSONAL DATA,SN3 ,17/05/2023,"3,474.41"
88485563,Learning Disabilities,Adults,Learning Disability 18 - 64,Transfer Payments,Personal Budget - Direct Payments - Domiciliary Care,REDACTED PERSONAL DATA,SN2 ,31/05/2023,"1,572.42"
84063596,Learning Disabilities,Adults,Learning Disability 18 - 64,Transfer Payments,Personal Budget - Direct Payments - Domiciliary Care,REDACTED PERSONAL DATA,SN2 ,03/05/2023,"1,572.42"
84063597,Learning Disabilities,Adults,Learning Disability 18 - 64,Transfer Payments,Personal Budget - Direct Payments - Other,REDACTED PERSONAL DATA,SN2 ,03/05/2023,"2,840.89"
88485564,Learning Disabilities,Adults,Learning Disability 18 - 64,Transfer Payments,Personal Budget - Direct Payments - Other,REDACTED PERSONAL DATA,SN2 ,31/05/2023,"2,840.89"
86563233,Early Years Block,DSG Skills and Attainment,Free Nursery Education Commissioning - three & four  year olds,3rd Party Payments,Contracts - Child Care,REDACTED PERSONAL DATA,SN3 ,17/05/2023,757.48
83723233,Responsive Repairs,Repairs,Responsive Repairs,3rd Party Payments,Contract Payments,CARPET WAREHOUSE SWINDON LTD,SN2 ,03/05/2023,"1,050.00"
85671233,Responsive Repairs,Repairs,Responsive Repairs,3rd Party Payments,Contract Payments,CARPET WAREHOUSE SWINDON LTD,SN2 ,10/05/2023,792.2
87900241,Responsive Repairs,Repairs,Responsive Repairs,3rd Party Payments,Contract Payments,CARPET WAREHOUSE SWINDON LTD,SN2 ,24/05/2023,999.8
86024234,Responsive Repairs,Repairs,Responsive Repairs,3rd Party Payments,Contract Payments,CARPET WAREHOUSE SWINDON LTD,SN2 ,12/05/2023,802.4
88238233,Responsive Repairs,Repairs,Responsive Repairs,Supplies and Services,Materials,CARPET WAREHOUSE SWINDON LTD,SN2 ,26/05/2023,600
87900238,Responsive Repairs,Repairs,Responsive Repairs,3rd Party Payments,Contract Payments,CARPET WAREHOUSE SWINDON LTD,SN2 ,24/05/2023,"1,008.50"
88887233,Responsive Repairs,Repairs,Responsive Repairs,3rd Party Payments,Contract Payments,CARPET WAREHOUSE SWINDON LTD,SN2 ,31/05/2023,920.93
85672234,Responsive Repairs,Repairs,Responsive Repairs,3rd Party Payments,Contract Payments,CARPET WAREHOUSE SWINDON LTD,SN2 ,10/05/2023,"1,042.39"
88237234,Responsive Repairs,Repairs,Responsive Repairs,3rd Party Payments,Contract Payments,CARPET WAREHOUSE SWINDON LTD,SN2 ,26/05/2023,"1,396.30"
85674233,Responsive Repairs,Repairs,Responsive Repairs,3rd Party Payments,Contract Payments,CARPET WAREHOUSE SWINDON LTD,SN2 ,10/05/2023,772.24
88888234,Responsive Repairs,Repairs,Responsive Repairs,3rd Party Payments,Contract Payments,CARPET WAREHOUSE SWINDON LTD,SN2 ,31/05/2023,"1,140.02"
85673233,Responsive Repairs,Repairs,Responsive Repairs,3rd Party Payments,Contract Payments,CARPET WAREHOUSE SWINDON LTD,SN2 ,10/05/2023,846.25
87310235,Responsive Repairs,Repairs,Responsive Repairs,3rd Party Payments,Contract Payments,CARPET WAREHOUSE SWINDON LTD,SN2 ,19/05/2023,774.48
83724233,Responsive Repairs,Repairs,Responsive Repairs,3rd Party Payments,Contract Payments,CARPET WAREHOUSE SWINDON LTD,SN2 ,03/05/2023,"1,018.91"
87900242,Responsive Repairs,Repairs,Responsive Repairs,3rd Party Payments,Contract Payments,CARPET WAREHOUSE SWINDON LTD,SN2 ,24/05/2023,993.39
85670234,Responsive Repairs,Repairs,Responsive Repairs,3rd Party Payments,Contract Payments,CARPET WAREHOUSE SWINDON LTD,SN2 ,10/05/2023,786.25
86025233,Responsive Repairs,Repairs,Responsive Repairs,3rd Party Payments,Contract Payments,CARPET WAREHOUSE SWINDON LTD,SN2 ,12/05/2023,941.67
85256233,Other Repairs,Repairs,Unallocated job costs from OPEN system,Premises Costs,Maintenance - Buildings,CARTER PUMPS LTD,SN10,10/05/2023,"1,070.00"
88485330,Learning Disabilities,Adults,Learning Disability 18 - 64,Transfer Payments,Personal Budget - Direct Payments - Domiciliary Care,REDACTED PERSONAL DATA,SN6 ,31/05/2023,"2,744.96"
84063352,Learning Disabilities,Adults,Learning Disability 18 - 64,Transfer Payments,Personal Budget - Direct Payments - Domiciliary Care,REDACTED PERSONAL DATA,SN6 ,03/05/2023,"2,744.96"
87009233,Traded Services,"Education, Inclusion and Skills",Plas Pencelli Outdoor Education Centre,Supplies and Services,Materials,CASTELL HOWELL FOODS LIMITED,SA14,17/05/2023,873.55
87444234,Traded Services,"Education, Inclusion and Skills",Plas Pencelli Outdoor Education Centre,Supplies and Services,Materials,CASTELL HOWELL FOODS LIMITED,SA14,22/05/2023,"1,545.00"
87444234,Traded Services,"Education, Inclusion and Skills",Plas Pencelli Outdoor Education Centre,Supplies and Services,Materials,CASTELL HOWELL FOODS LIMITED,SA14,22/05/2023,429.18
87009233,Traded Services,"Education, Inclusion and Skills",Plas Pencelli Outdoor Education Centre,Supplies and Services,Materials,CASTELL HOWELL FOODS LIMITED,SA14,17/05/2023,"1,713.65"
85444233,Traded Services,"Education, Inclusion and Skills",Plas Pencelli Outdoor Education Centre,Supplies and Services,Materials,CASTELL HOWELL FOODS LIMITED,SA14,10/05/2023,629.37
85444233,Traded Services,"Education, Inclusion and Skills",Plas Pencelli Outdoor Education Centre,Supplies and Services,Materials,CASTELL HOWELL FOODS LIMITED,SA14,10/05/2023,"2,146.31"
83696233,Traded Services,"Education, Inclusion and Skills",Plas Pencelli Outdoor Education Centre,Supplies and Services,Materials,CASTELL HOWELL FOODS LIMITED,SA14,03/05/2023,"1,623.73"
83696233,Traded Services,"Education, Inclusion and Skills",Plas Pencelli Outdoor Education Centre,Supplies and Services,Materials,CASTELL HOWELL FOODS LIMITED,SA14,03/05/2023,640.72
87740233,Treasury,Corporate Finance,Private Finance Initiatives (PFI),Supplies and Services,Services,CASTLE GATE LEGAL & COMMERCIAL LTD,NG12,24/05/2023,"2,000.00"
85595233,Treasury,Corporate Finance,Private Finance Initiatives (PFI),Supplies and Services,Services,CASTLE GATE LEGAL & COMMERCIAL LTD,NG12,10/05/2023,"2,018.88"
87328253,Learning Disabilities,Adults,Learning Disability 18 - 64,3rd Party Payments,Supported Lodgings (Childrens)/Supported Living (Adults),CATHEDRAL HOMES,GL1 ,19/05/2023,"2,559.42"
87328253,Learning Disabilities,Adults,Learning Disability 18 - 64,3rd Party Payments,Supported Lodgings (Childrens)/Supported Living (Adults),CATHEDRAL HOMES,GL1 ,19/05/2023,"4,837.50"
87328253,Learning Disabilities,Adults,Learning Disability 18 - 64,3rd Party Payments,Supported Lodgings (Childrens)/Supported Living (Adults),CATHEDRAL HOMES,GL1 ,19/05/2023,"-4,527.90"
87328253,Learning Disabilities,Adults,Learning Disability 18 - 64,3rd Party Payments,Supported Lodgings (Childrens)/Supported Living (Adults),CATHEDRAL HOMES,GL1 ,19/05/2023,-45.13
87328253,Learning Disabilities,Adults,Learning Disability 18 - 64,Income,Client Contribution - Personal Budget - Fairer Charging,CATHEDRAL HOMES,GL1 ,19/05/2023,276.63
87328253,Learning Disabilities,Adults,Learning Disability 18 - 64,3rd Party Payments,Supported Lodgings (Childrens)/Supported Living (Adults),CATHEDRAL HOMES,GL1 ,19/05/2023,675
87328253,Learning Disabilities,Adults,Learning Disability 18 - 64,Income,Client Contribution - Personal Budget - Fairer Charging,CATHEDRAL HOMES,GL1 ,19/05/2023,11.77
87328253,Learning Disabilities,Adults,Learning Disability 18 - 64,Income,Client Contribution - Supported Living,CATHEDRAL HOMES,GL1 ,19/05/2023,-414.2
87328253,Learning Disabilities,Adults,Learning Disability 18 - 64,3rd Party Payments,Supported Lodgings (Childrens)/Supported Living (Adults),CATHEDRAL HOMES,GL1 ,19/05/2023,-947.7
87328253,Learning Disabilities,Adults,Learning Disability 18 - 64,Income,Client Contribution - Personal Budget - Fairer Charging,CATHEDRAL HOMES,GL1 ,19/05/2023,235.43
87328253,Learning Disabilities,Adults,Learning Disability 18 - 64,3rd Party Payments,Supported Lodgings (Childrens)/Supported Living (Adults),CATHEDRAL HOMES,GL1 ,19/05/2023,"-6,265.38"
87328253,Learning Disabilities,Adults,Learning Disability 18 - 64,3rd Party Payments,Supported Lodgings (Childrens)/Supported Living (Adults),CATHEDRAL HOMES,GL1 ,19/05/2023,"-3,264.30"
87328253,Learning Disabilities,Adults,Learning Disability 18 - 64,3rd Party Payments,Supported Lodgings (Childrens)/Supported Living (Adults),CATHEDRAL HOMES,GL1 ,19/05/2023,"2,325.00"
87328253,Learning Disabilities,Adults,Learning Disability 18 - 64,Income,Client Contribution - Personal Budget - Fairer Charging,CATHEDRAL HOMES,GL1 ,19/05/2023,-45.4
87328253,Learning Disabilities,Adults,Learning Disability 18 - 64,Income,Client Contribution - Personal Budget - Fairer Charging,CATHEDRAL HOMES,GL1 ,19/05/2023,-181.6
87328253,Learning Disabilities,Adults,Learning Disability 18 - 64,3rd Party Payments,Supported Lodgings (Childrens)/Supported Living (Adults),CATHEDRAL HOMES,GL1 ,19/05/2023,"3,225.00"
87328253,Learning Disabilities,Adults,Learning Disability 18 - 64,Income,Client Contribution - Personal Budget - Fairer Charging,CATHEDRAL HOMES,GL1 ,19/05/2023,29.43
87328253,Learning Disabilities,Adults,Learning Disability 18 - 64,Income,Client Contribution - Personal Budget - Fairer Charging,CATHEDRAL HOMES,GL1 ,19/05/2023,41.2
87328253,Learning Disabilities,Adults,Learning Disability 18 - 64,3rd Party Payments,Supported Lodgings (Childrens)/Supported Living (Adults),CATHEDRAL HOMES,GL1 ,19/05/2023,"-2,395.56"
87328253,Learning Disabilities,Adults,Learning Disability 18 - 64,3rd Party Payments,Supported Lodgings (Childrens)/Supported Living (Adults),CATHEDRAL HOMES,GL1 ,19/05/2023,"1,706.28"
87328253,Learning Disabilities,Adults,Learning Disability 18 - 64,3rd Party Payments,Supported Lodgings (Childrens)/Supported Living (Adults),CATHEDRAL HOMES,GL1 ,19/05/2023,"6,693.78"
87328253,Learning Disabilities,Adults,Learning Disability 18 - 64,3rd Party Payments,Supported Lodgings (Childrens)/Supported Living (Adults),CATHEDRAL HOMES,GL1 ,19/05/2023,"3,487.50"
87328253,Learning Disabilities,Adults,Learning Disability 18 - 64,3rd Party Payments,Supported Lodgings (Childrens)/Supported Living (Adults),CATHEDRAL HOMES,GL1 ,19/05/2023,-902.57
87328253,Learning Disabilities,Adults,Learning Disability 18 - 64,Income,Client Contribution - Personal Budget - Fairer Charging,CATHEDRAL HOMES,GL1 ,19/05/2023,-259.43
87328253,Learning Disabilities,Adults,Learning Disability 18 - 64,3rd Party Payments,Supported Lodgings (Childrens)/Supported Living (Adults),CATHEDRAL HOMES,GL1 ,19/05/2023,"1,012.50"
87328253,Learning Disabilities,Adults,Learning Disability 18 - 64,Income,Client Contribution - Personal Budget - Fairer Charging,CATHEDRAL HOMES,GL1 ,19/05/2023,-235.43
87328253,Learning Disabilities,Adults,Learning Disability 18 - 64,3rd Party Payments,Supported Lodgings (Childrens)/Supported Living (Adults),CATHEDRAL HOMES,GL1 ,19/05/2023,"4,462.52"
87328253,Learning Disabilities,Adults,Learning Disability 18 - 64,Income,Client Contribution - Personal Budget - Fairer Charging,CATHEDRAL HOMES,GL1 ,19/05/2023,-41.2
84159233,Museums & Heritage,Culture & Heritage,Steam:Operations,3rd Party Payments,Contract Payments,CATHEDRAL LEASING LIMITED,B77 ,03/05/2023,"1,089.48"
86543233,Early Years Block,DSG Skills and Attainment,Free Nursery Education Commissioning - three & four  year olds,3rd Party Payments,Contracts - Child Care,REDACTED PERSONAL DATA,SN5 ,17/05/2023,573.16
86025235,Learning Disabilities,Adults,Learning Disability 18 - 64,3rd Party Payments,Supported Accommodation Scheme,REDACTED PERSONAL DATA,SN6 ,22/05/2023,"1,321.36"
86025235,Learning Disabilities,Adults,Learning Disability 18 - 64,3rd Party Payments,Supported Accommodation Scheme,REDACTED PERSONAL DATA,SN6 ,22/05/2023,"2,058.96"
84051254,Physical Support,Adults,Physical Support 65 and over,3rd Party Payments,Personal Budget - Domiciliary care,CELTIC CARE SERVICES LTD,SN15,03/05/2023,647.64
84051256,Physical Support,Adults,Physical Support 65 and over,3rd Party Payments,Personal Budget - Domiciliary care,CELTIC CARE SERVICES LTD,SN15,03/05/2023,"1,249.40"
84051256,Physical Support,Adults,Physical Support 65 and over,3rd Party Payments,Personal Budget - Domiciliary care,CELTIC CARE SERVICES LTD,SN15,03/05/2023,359.8
84051254,Physical Support,Adults,Physical Support 65 and over,3rd Party Payments,Personal Budget - Domiciliary care,CELTIC CARE SERVICES LTD,SN15,03/05/2023,"2,248.92"
84051255,Mental Health,Adults,Mental Health 65 and over,3rd Party Payments,Personal Budget - Domiciliary care,CELTIC CARE SERVICES LTD,SN15,03/05/2023,488.66
84051255,Mental Health,Adults,Mental Health 65 and over,3rd Party Payments,Personal Budget - Domiciliary care,CELTIC CARE SERVICES LTD,SN15,03/05/2023,155.02
87124234,Highways & Transport,Highways & Transport,Drainage,Supplies and Services,Repairs & Maintenance,CENTRAL ALLIANCE PRE CONSTRUCTION SERVICE LTD,WF2 ,19/05/2023,"1,805.00"
86940233,Streetsmart,Streetsmart,Waste - Processing,Supplies and Services,Repairs & Maintenance,CENTRAL CONVEYOR BELTING SERVICES LTD,RG19,17/05/2023,"3,151.98"
87024233,Property Service Charged Properties,Property,Service Charged - Theatre Square,Supplies and Services,Services,CENTRE FOR GOVERNANCE AND SCRUTINY (CFGS),E1 8,17/05/2023,"6,850.00"
83736233,Public Health,Public Health,Affordable Warmth,Supplies and Services,Service Charges,CENTRE FOR SUSTAINABLE ENERGY,BS1 ,03/05/2023,"10,000.00"
87381233,Human Resources and Organisational Development,"People, Culture and Organisational Resilience",Organisational Development,Employees,Training,CERTSURE LLP,LU5 ,19/05/2023,"10,500.00"
87736233,Lydiard Park,Culture & Heritage,Lydiard : Forest Caf�,Supplies and Services,Food,CHAPPLE & JENKINS LTD,BS15,24/05/2023,33.85
86945233,Lydiard Park,Culture & Heritage,Lydiard : Forest Caf�,Supplies and Services,Confectionary,CHAPPLE & JENKINS LTD,BS15,17/05/2023,482.87
84695233,Lydiard Park,Culture & Heritage,Lydiard : Forest Caf�,Supplies and Services,Confectionary,CHAPPLE & JENKINS LTD,BS15,05/05/2023,"1,201.10"
88715233,Streetsmart,Streetsmart,Waterside Canteen,Supplies and Services,Confectionary,CHAPPLE & JENKINS LTD,BS15,31/05/2023,958.36
86790233,Streetsmart,Streetsmart,Waterside Canteen,Supplies and Services,Confectionary,CHAPPLE & JENKINS LTD,BS15,17/05/2023,928.99
87736233,Lydiard Park,Culture & Heritage,Lydiard : Forest Caf�,Supplies and Services,Confectionary,CHAPPLE & JENKINS LTD,BS15,24/05/2023,117.08
86623233,Lydiard Park,Culture & Heritage,Lydiard : Forest Caf�,Supplies and Services,Confectionary,CHAPPLE & JENKINS LTD,BS15,17/05/2023,676.03
85581233,Lydiard Park,Culture & Heritage,Lydiard : Forest Caf�,Supplies and Services,Confectionary,CHAPPLE & JENKINS LTD,BS15,10/05/2023,639.37
85584233,Streetsmart,Streetsmart,Waterside Canteen,Supplies and Services,Confectionary,CHAPPLE & JENKINS LTD,BS15,10/05/2023,742.22
85581233,Lydiard Park,Culture & Heritage,Lydiard : Forest Caf�,Supplies and Services,Food,CHAPPLE & JENKINS LTD,BS15,10/05/2023,38.65
86945233,Lydiard Park,Culture & Heritage,Lydiard : Forest Caf�,Supplies and Services,Confectionary,CHAPPLE & JENKINS LTD,BS15,17/05/2023,34.85
86945233,Lydiard Park,Culture & Heritage,Lydiard : Forest Caf�,Supplies and Services,Food,CHAPPLE & JENKINS LTD,BS15,17/05/2023,38.84
86623233,Lydiard Park,Culture & Heritage,Lydiard : Forest Caf�,Supplies and Services,Confectionary,CHAPPLE & JENKINS LTD,BS15,17/05/2023,54.68
87736233,Lydiard Park,Culture & Heritage,Lydiard : Forest Caf�,Supplies and Services,Confectionary,CHAPPLE & JENKINS LTD,BS15,24/05/2023,484.4
86623233,Lydiard Park,Culture & Heritage,Lydiard : Forest Caf�,Supplies and Services,Food,CHAPPLE & JENKINS LTD,BS15,17/05/2023,30.71
84695233,Lydiard Park,Culture & Heritage,Lydiard : Forest Caf�,Supplies and Services,Food,CHAPPLE & JENKINS LTD,BS15,05/05/2023,133.93
84491239,Disabled Children,"Children, Families and Community Health Services",Aiming High for Disabled Children,3rd Party Payments,Cash Support,REDACTED PERSONAL DATA,SN3 ,03/05/2023,503
85259233,Other Repairs,Repairs,Unallocated job costs from OPEN system,Premises Costs,Maintenance - Buildings,CHARLES HARDING ESTATE AGENTS LIMITED,SN1 ,10/05/2023,30
84606233,Homelessness and Travellers,Housing Services,Homelessness Prevention,Transfer Payments,Payment of Costs,CHARLES HARDING LETTINGS AND PROPERTY MANAGEMENT,SN1 ,05/05/2023,"1,539.00"
87471233,Homelessness and Travellers,Housing Services,Homelessness Prevention,Transfer Payments,Payment of Costs,CHARLES HOPES HOLDINGS LIMITED,SO15,22/05/2023,"24,000.00"
88196233,Homelessness and Travellers,Housing Services,Homelessness Prevention,Transfer Payments,Payment of Costs,CHARLES HOPES HOLDINGS LIMITED,SO15,26/05/2023,"7,500.00"
87469233,Homelessness and Travellers,Housing Services,Homelessness Prevention,Transfer Payments,Payment of Costs,CHARLES HOPES HOLDINGS LIMITED,SO15,22/05/2023,"10,500.00"
88193233,Homelessness and Travellers,Housing Services,Homelessness Prevention,Transfer Payments,Payment of Costs,CHARLES HOPES HOLDINGS LIMITED,SO15,26/05/2023,750
88195233,Homelessness and Travellers,Housing Services,Homelessness Prevention,Transfer Payments,Payment of Costs,CHARLES HOPES HOLDINGS LIMITED,SO15,26/05/2023,"10,500.00"
86613233,Lydiard Park,Culture & Heritage,Lydiard : Forest Caf�,Supplies and Services,Confectionary,CHARLES SAUNDERS LTD,BS37,17/05/2023,10.3
85601233,Lydiard Park,Culture & Heritage,Lydiard : Forest Caf�,Supplies and Services,Confectionary,CHARLES SAUNDERS LTD,BS37,10/05/2023,458.42
87725233,Lydiard Park,Culture & Heritage,Lydiard : Forest Caf�,Supplies and Services,Food,CHARLES SAUNDERS LTD,BS37,24/05/2023,287.12
86613233,Lydiard Park,Culture & Heritage,Lydiard : Forest Caf�,Supplies and Services,Food,CHARLES SAUNDERS LTD,BS37,17/05/2023,579.51
87842233,Lydiard Park,Culture & Heritage,Lydiard : Coach House Caf�,Supplies and Services,Confectionary,CHARLES SAUNDERS LTD,BS37,24/05/2023,414.96
87725233,Lydiard Park,Culture & Heritage,Lydiard : Forest Caf�,Supplies and Services,Confectionary,CHARLES SAUNDERS LTD,BS37,24/05/2023,278.76
87860233,Lydiard Park,Culture & Heritage,Lydiard : Forest Caf�,Supplies and Services,Food,CHARLES SAUNDERS LTD,BS37,24/05/2023,"1,189.15"
86405234,Lydiard Park,Culture & Heritage,Lydiard : Hotel Operations,Supplies and Services,Materials,CHARLES SAUNDERS LTD,BS37,17/05/2023,119.75
86671233,Lydiard Park,Culture & Heritage,Lydiard House & Park,Supplies and Services,Materials,CHARLES SAUNDERS LTD,BS37,17/05/2023,131.99
86756233,Lydiard Park,Culture & Heritage,Lydiard : Forest Caf�,Supplies and Services,Confectionary,CHARLES SAUNDERS LTD,BS37,17/05/2023,"1,428.67"
86613233,Lydiard Park,Culture & Heritage,Lydiard : Forest Caf�,Supplies and Services,Confectionary,CHARLES SAUNDERS LTD,BS37,17/05/2023,65.26
85555233,Lydiard Park,Culture & Heritage,Lydiard : Forest Caf�,Supplies and Services,Food,CHARLES SAUNDERS LTD,BS37,10/05/2023,"1,129.87"
88653233,Lydiard Park,Culture & Heritage,Lydiard : Hotel Operations,Supplies and Services,Food,CHARLES SAUNDERS LTD,BS37,31/05/2023,130.42
88653233,Lydiard Park,Culture & Heritage,Lydiard : Hotel Operations,Supplies and Services,Food,CHARLES SAUNDERS LTD,BS37,31/05/2023,347.67
86400233,Lydiard Park,Culture & Heritage,Lydiard : Hotel Operations,Supplies and Services,Food,CHARLES SAUNDERS LTD,BS37,15/05/2023,19.39
86619233,Lydiard Park,Culture & Heritage,Lydiard : Coach House Caf�,Supplies and Services,Food,CHARLES SAUNDERS LTD,BS37,17/05/2023,96.03
87063233,Lydiard Park,Culture & Heritage,Lydiard : Coach House Caf�,Supplies and Services,Confectionary,CHARLES SAUNDERS LTD,BS37,17/05/2023,690.64
88713233,Lydiard Park,Culture & Heritage,Lydiard : Coach House Caf�,Supplies and Services,Confectionary,CHARLES SAUNDERS LTD,BS37,31/05/2023,697.54
87725233,Lydiard Park,Culture & Heritage,Lydiard : Forest Caf�,Supplies and Services,Confectionary,CHARLES SAUNDERS LTD,BS37,24/05/2023,844.72
86756233,Lydiard Park,Culture & Heritage,Lydiard : Forest Caf�,Supplies and Services,Confectionary,CHARLES SAUNDERS LTD,BS37,17/05/2023,290.4
85568233,Lydiard Park,Culture & Heritage,Lydiard : Forest Caf�,Supplies and Services,Confectionary,CHARLES SAUNDERS LTD,BS37,10/05/2023,123.58
85552233,Streetsmart,Streetsmart,Waterside Canteen,Supplies and Services,Confectionary,CHARLES SAUNDERS LTD,BS37,10/05/2023,83.6
87021235,Lydiard Park,Culture & Heritage,Lydiard : Coach House Caf�,Supplies and Services,Food,CHARLES SAUNDERS LTD,BS37,17/05/2023,426.95
87858233,Lydiard Park,Culture & Heritage,Lydiard : Coach House Caf�,Supplies and Services,Food,CHARLES SAUNDERS LTD,BS37,24/05/2023,244.18
87858233,Lydiard Park,Culture & Heritage,Lydiard : Coach House Caf�,Supplies and Services,Confectionary,CHARLES SAUNDERS LTD,BS37,24/05/2023,836.62
87842233,Lydiard Park,Culture & Heritage,Lydiard : Coach House Caf�,Supplies and Services,Confectionary,CHARLES SAUNDERS LTD,BS37,24/05/2023,152.88
87021235,Lydiard Park,Culture & Heritage,Lydiard : Coach House Caf�,Supplies and Services,Materials,CHARLES SAUNDERS LTD,BS37,17/05/2023,4.86
88713233,Lydiard Park,Culture & Heritage,Lydiard : Coach House Caf�,Supplies and Services,Food,CHARLES SAUNDERS LTD,BS37,31/05/2023,216.27
87021235,Lydiard Park,Culture & Heritage,Lydiard : Coach House Caf�,Supplies and Services,Confectionary,CHARLES SAUNDERS LTD,BS37,17/05/2023,25.99
86619233,Lydiard Park,Culture & Heritage,Lydiard : Coach House Caf�,Supplies and Services,Confectionary,CHARLES SAUNDERS LTD,BS37,17/05/2023,479.79
86671233,Lydiard Park,Culture & Heritage,Lydiard House & Park,Supplies and Services,Materials,CHARLES SAUNDERS LTD,BS37,17/05/2023,379.29
86613233,Lydiard Park,Culture & Heritage,Lydiard : Forest Caf�,Supplies and Services,Materials,CHARLES SAUNDERS LTD,BS37,17/05/2023,36.26
88653233,Lydiard Park,Culture & Heritage,Lydiard : Hotel Operations,Supplies and Services,Materials,CHARLES SAUNDERS LTD,BS37,31/05/2023,140.62
88687233,Lydiard Park,Culture & Heritage,Lydiard : Hotel Operations,Supplies and Services,Food,CHARLES SAUNDERS LTD,BS37,31/05/2023,499.38
88705234,Lydiard Park,Culture & Heritage,Lydiard : Forest Caf�,Supplies and Services,Materials,CHARLES SAUNDERS LTD,BS37,31/05/2023,22.47
87860233,Lydiard Park,Culture & Heritage,Lydiard : Forest Caf�,Supplies and Services,Confectionary,CHARLES SAUNDERS LTD,BS37,24/05/2023,"2,944.73"
86756233,Lydiard Park,Culture & Heritage,Lydiard : Forest Caf�,Supplies and Services,Food,CHARLES SAUNDERS LTD,BS37,17/05/2023,416.73
84092233,Streetsmart,Streetsmart,Waterside Canteen,Supplies and Services,Food,CHARLES SAUNDERS LTD,BS37,03/05/2023,519.29
87021235,Lydiard Park,Culture & Heritage,Lydiard : Coach House Caf�,Supplies and Services,Confectionary,CHARLES SAUNDERS LTD,BS37,17/05/2023,95.14
86969233,Lydiard Park,Culture & Heritage,Lydiard : Coach House Caf�,Supplies and Services,Confectionary,CHARLES SAUNDERS LTD,BS37,17/05/2023,388.21
85552233,Streetsmart,Streetsmart,Waterside Canteen,Supplies and Services,Food,CHARLES SAUNDERS LTD,BS37,10/05/2023,478.5
87842233,Lydiard Park,Culture & Heritage,Lydiard : Coach House Caf�,Supplies and Services,Food,CHARLES SAUNDERS LTD,BS37,24/05/2023,99.39
86969233,Lydiard Park,Culture & Heritage,Lydiard : Coach House Caf�,Supplies and Services,Food,CHARLES SAUNDERS LTD,BS37,17/05/2023,219.64
87842233,Lydiard Park,Culture & Heritage,Lydiard : Coach House Caf�,Supplies and Services,Materials,CHARLES SAUNDERS LTD,BS37,24/05/2023,6.46
87063233,Lydiard Park,Culture & Heritage,Lydiard : Coach House Caf�,Supplies and Services,Confectionary,CHARLES SAUNDERS LTD,BS37,17/05/2023,216.78
88713233,Lydiard Park,Culture & Heritage,Lydiard : Coach House Caf�,Supplies and Services,Confectionary,CHARLES SAUNDERS LTD,BS37,31/05/2023,143.28
88705234,Lydiard Park,Culture & Heritage,Lydiard : Forest Caf�,Supplies and Services,Food,CHARLES SAUNDERS LTD,BS37,31/05/2023,538.76
85601233,Lydiard Park,Culture & Heritage,Lydiard : Forest Caf�,Supplies and Services,Food,CHARLES SAUNDERS LTD,BS37,10/05/2023,61.04
85555233,Lydiard Park,Culture & Heritage,Lydiard : Forest Caf�,Supplies and Services,Food,CHARLES SAUNDERS LTD,BS37,10/05/2023,19.99
85568233,Lydiard Park,Culture & Heritage,Lydiard : Forest Caf�,Supplies and Services,Food,CHARLES SAUNDERS LTD,BS37,10/05/2023,552.27
88687233,Lydiard Park,Culture & Heritage,Lydiard : Hotel Operations,Supplies and Services,Materials,CHARLES SAUNDERS LTD,BS37,31/05/2023,28.45
86405234,Lydiard Park,Culture & Heritage,Lydiard : Hotel Operations,Supplies and Services,Food,CHARLES SAUNDERS LTD,BS37,17/05/2023,444.91
86400233,Lydiard Park,Culture & Heritage,Lydiard : Hotel Operations,Supplies and Services,Food,CHARLES SAUNDERS LTD,BS37,15/05/2023,489.82
86619233,Lydiard Park,Culture & Heritage,Lydiard : Coach House Caf�,Supplies and Services,Materials,CHARLES SAUNDERS LTD,BS37,17/05/2023,8.91
87063233,Lydiard Park,Culture & Heritage,Lydiard : Coach House Caf�,Supplies and Services,Food,CHARLES SAUNDERS LTD,BS37,17/05/2023,166.56
87858233,Lydiard Park,Culture & Heritage,Lydiard : Coach House Caf�,Supplies and Services,Confectionary,CHARLES SAUNDERS LTD,BS37,24/05/2023,122.52
84092233,Streetsmart,Streetsmart,Waterside Canteen,Supplies and Services,Confectionary,CHARLES SAUNDERS LTD,BS37,03/05/2023,82.86
87725233,Lydiard Park,Culture & Heritage,Lydiard : Forest Caf�,Supplies and Services,Materials,CHARLES SAUNDERS LTD,BS37,24/05/2023,13.12
87637233,Business Development,Supervision & Management,Personnel &Performance,Employees,Training,CHARTERED INSTITUTE OF HOUSING,CV4 ,24/05/2023,"2,250.00"
83585233,Business Development,Supervision & Management,Personnel &Performance,Employees,Training,CHARTERED INSTITUTE OF HOUSING,CV4 ,03/05/2023,"2,160.00"
87834233,Care Management & Safeguarding,Adults,Community Safety Partnership,3rd Party Payments,Contract Payments,CHARTERHOUSE VOICE & DATA LTD,EC3A,24/05/2023,"1,480.42"
88738234,Public Health,Public Health,Sexual Health & Health Protection Budget,3rd Party Payments,Contract Payments,CHELSEA & WESTMINSTER HOSPITAL NHS FOUNDATION TRUST,SW10,31/05/2023,760.75
87318233,Physical Support,Adults,Physical Support 65 and over,Income,Client Contribution - Nursing,CHERITON (SW CARE) LTD,GL52,19/05/2023,-48.46
87318233,Physical Support,Adults,Physical Support 65 and over,3rd Party Payments,Nursing Care,CHERITON (SW CARE) LTD,GL52,19/05/2023,819.23
87318233,Physical Support,Adults,Physical Support 65 and over,Income,Client Contribution - Nursing,CHERITON (SW CARE) LTD,GL52,19/05/2023,-264.47
87318233,Physical Support,Adults,Physical Support 65 and over,Income,Client Contribution - Nursing,CHERITON (SW CARE) LTD,GL52,19/05/2023,-339.24
87318233,Physical Support,Adults,Physical Support 65 and over,3rd Party Payments,Nursing Care,CHERITON (SW CARE) LTD,GL52,19/05/2023,-365.73
87318233,Physical Support,Adults,Physical Support 65 and over,Income,Client Contribution - Nursing,CHERITON (SW CARE) LTD,GL52,19/05/2023,-33.46
87318233,Physical Support,Adults,Physical Support 65 and over,Income,Client Contribution - Nursing,CHERITON (SW CARE) LTD,GL52,19/05/2023,-422.72
87318233,Physical Support,Adults,Physical Support 65 and over,3rd Party Payments,Nursing Care,CHERITON (SW CARE) LTD,GL52,19/05/2023,"1,433.66"
87318233,Physical Support,Adults,Physical Support 65 and over,Income,Client Contribution - Nursing,CHERITON (SW CARE) LTD,GL52,19/05/2023,-66.12
87318233,Physical Support,Adults,Physical Support 65 and over,3rd Party Payments,Nursing Care,CHERITON (SW CARE) LTD,GL52,19/05/2023,182.87
87318233,Physical Support,Adults,Physical Support 65 and over,3rd Party Payments,Nursing Care,CHERITON (SW CARE) LTD,GL52,19/05/2023,91.43
87318233,Physical Support,Adults,Physical Support 65 and over,3rd Party Payments,Nursing Care,CHERITON (SW CARE) LTD,GL52,19/05/2023,102.4
87318233,Physical Support,Adults,Physical Support 65 and over,Income,Client Contribution - Nursing,CHERITON (SW CARE) LTD,GL52,19/05/2023,-105.68
87675233,Disabled Children,"Children, Families and Community Health Services",DCT Daytime Short Breaks,Transfer Payments,Personal Budget - Direct Payments - Other,REDACTED PERSONAL DATA,SN1 ,24/05/2023,"1,201.00"
85302233,Landscaping & Open Space,Culture & Heritage & Art,GWCF - Trees for Climate,Capital,Contractor Payments,CHEVIOT TREES LTD,TD15,10/05/2023,"5,317.25"
86586233,Early Years Block,DSG Skills and Attainment,Free Nursery Education Commissioning - three & four  year olds,3rd Party Payments,Contracts - Child Care,CHILD BASE NURSERIES,MK16,17/05/2023,"15,871.46"
85664233,Responsive Repairs,Repairs,Responsive Repairs,3rd Party Payments,Contract Payments,CHILD SCAFFOLDING LTD,SN1 ,10/05/2023,680
87863233,Responsive Repairs,Repairs,Responsive Repairs,3rd Party Payments,Contract Payments,CHILD SCAFFOLDING LTD,SN1 ,24/05/2023,65
88820233,Responsive Repairs,Repairs,Responsive Repairs,3rd Party Payments,Contract Payments,CHILD SCAFFOLDING LTD,SN1 ,31/05/2023,420
87865233,Responsive Repairs,Repairs,Responsive Repairs,3rd Party Payments,Contract Payments,CHILD SCAFFOLDING LTD,SN1 ,24/05/2023,680
85898248,Responsive Repairs,Repairs,Responsive Repairs,3rd Party Payments,Contract Payments,CHILD SCAFFOLDING LTD,SN1 ,12/05/2023,540
85898246,Responsive Repairs,Repairs,Responsive Repairs,3rd Party Payments,Contract Payments,CHILD SCAFFOLDING LTD,SN1 ,12/05/2023,880
85898236,Responsive Repairs,Repairs,Responsive Repairs,3rd Party Payments,Contract Payments,CHILD SCAFFOLDING LTD,SN1 ,12/05/2023,480
88818233,Responsive Repairs,Repairs,Responsive Repairs,3rd Party Payments,Contract Payments,CHILD SCAFFOLDING LTD,SN1 ,31/05/2023,960
87866233,Responsive Repairs,Repairs,Responsive Repairs,3rd Party Payments,Contract Payments,CHILD SCAFFOLDING LTD,SN1 ,24/05/2023,780
87863233,Responsive Repairs,Repairs,Responsive Repairs,3rd Party Payments,Contract Payments,CHILD SCAFFOLDING LTD,SN1 ,24/05/2023,195
87862233,Responsive Repairs,Repairs,Responsive Repairs,3rd Party Payments,Contract Payments,CHILD SCAFFOLDING LTD,SN1 ,24/05/2023,620
85898239,Responsive Repairs,Repairs,Responsive Repairs,3rd Party Payments,Contract Payments,CHILD SCAFFOLDING LTD,SN1 ,12/05/2023,980
85898233,Responsive Repairs,Repairs,Responsive Repairs,3rd Party Payments,Contract Payments,CHILD SCAFFOLDING LTD,SN1 ,12/05/2023,"5,570.50"
88819233,Responsive Repairs,Repairs,Responsive Repairs,3rd Party Payments,Contract Payments,CHILD SCAFFOLDING LTD,SN1 ,31/05/2023,420
85898244,Responsive Repairs,Repairs,Responsive Repairs,3rd Party Payments,Contract Payments,CHILD SCAFFOLDING LTD,SN1 ,12/05/2023,440
85689233,Responsive Repairs,Repairs,Responsive Repairs,3rd Party Payments,Contract Payments,CHILD SCAFFOLDING LTD,SN1 ,10/05/2023,560
85898241,Responsive Repairs,Repairs,Responsive Repairs,3rd Party Payments,Contract Payments,CHILD SCAFFOLDING LTD,SN1 ,12/05/2023,580
85898250,Responsive Repairs,Repairs,Responsive Repairs,3rd Party Payments,Contract Payments,CHILD SCAFFOLDING LTD,SN1 ,12/05/2023,960
85898243,Responsive Repairs,Repairs,Responsive Repairs,3rd Party Payments,Contract Payments,CHILD SCAFFOLDING LTD,SN1 ,12/05/2023,440
84484243,Responsive Repairs,Repairs,Responsive Repairs,3rd Party Payments,Contract Payments,CHILD SCAFFOLDING LTD,SN1 ,05/05/2023,65
85898238,Responsive Repairs,Repairs,Responsive Repairs,3rd Party Payments,Contract Payments,CHILD SCAFFOLDING LTD,SN1 ,12/05/2023,880
85721233,Responsive Repairs,Repairs,Responsive Repairs,3rd Party Payments,Contract Payments,CHILD SCAFFOLDING LTD,SN1 ,10/05/2023,680
84484243,Responsive Repairs,Repairs,Responsive Repairs,3rd Party Payments,Contract Payments,CHILD SCAFFOLDING LTD,SN1 ,05/05/2023,130
87863233,Responsive Repairs,Repairs,Responsive Repairs,3rd Party Payments,Contract Payments,CHILD SCAFFOLDING LTD,SN1 ,24/05/2023,260
85663233,Responsive Repairs,Repairs,Responsive Repairs,3rd Party Payments,Contract Payments,CHILD SCAFFOLDING LTD,SN1 ,10/05/2023,"1,030.50"
85690233,Responsive Repairs,Repairs,Responsive Repairs,3rd Party Payments,Contract Payments,CHILD SCAFFOLDING LTD,SN1 ,10/05/2023,"1,200.00"
87867234,Responsive Repairs,Repairs,Responsive Repairs,3rd Party Payments,Contract Payments,CHILD SCAFFOLDING LTD,SN1 ,24/05/2023,480
87867233,Responsive Repairs,Repairs,Responsive Repairs,3rd Party Payments,Contract Payments,CHILD SCAFFOLDING LTD,SN1 ,24/05/2023,860
87864233,Responsive Repairs,Repairs,Responsive Repairs,3rd Party Payments,Contract Payments,CHILD SCAFFOLDING LTD,SN1 ,24/05/2023,460
85874233,Parking & Bus lanes,Highway Operations and Car Parking,Street Parking,Supplies and Services,Fees,CHIPSIDE LTD,SN15,12/05/2023,"1,009.40"
87846233,Parking & Bus lanes,Highway Operations and Car Parking,Street Parking,Supplies and Services,Materials,CHIPSIDE LTD,SN15,24/05/2023,292.95
87846233,Parking & Bus lanes,Highway Operations and Car Parking,Street Parking,Supplies and Services,Materials,CHIPSIDE LTD,SN15,24/05/2023,540.36
87846233,Parking & Bus lanes,Highway Operations and Car Parking,Bus Lane Enforcement,Supplies and Services,Materials,CHIPSIDE LTD,SN15,24/05/2023,"2,194.50"
87846233,Parking & Bus lanes,Highway Operations and Car Parking,Bus Lane Enforcement,Supplies and Services,Materials,CHIPSIDE LTD,SN15,24/05/2023,287.7
86487233,Early Years Block,DSG Skills and Attainment,Free Nursery Education Commissioning - two year olds,3rd Party Payments,Contracts - Child Care,CHISELDON PRIMARY SCHOOL,SN4 ,17/05/2023,862.23
85487233,DSG Other Funding,DSG Skills and Attainment,DFE Additional Grants,Supplies and Services,Payments to Educational Bodies,CHISELDON PRIMARY SCHOOL,SN4 ,10/05/2023,"7,262.00"
87007241,DSG Other Funding,DSG Skills and Attainment,DFE Additional Grants,3rd Party Payments,Payment of Pupil Premium to school,CHISELDON PRIMARY SCHOOL,SN4 ,17/05/2023,"5,632.00"
85514233,DSG Other Funding,DSG Skills and Attainment,DFE Additional Grants,Supplies and Services,Payments to Educational Bodies,CHISELDON PRIMARY SCHOOL,SN4 ,10/05/2023,"12,721.00"
85517241,DSG Other Funding,DSG Skills and Attainment,DFE Additional Grants,Supplies and Services,Payments to Educational Bodies,CHISELDON PRIMARY SCHOOL,SN4 ,10/05/2023,"1,051.25"
86488233,Early Years Block,DSG Skills and Attainment,Free Nursery Education Commissioning - three & four  year olds,3rd Party Payments,Contracts - Child Care,CHISELDON PRIMARY SCHOOL,SN4 ,17/05/2023,"4,028.39"
86997241,Schools - Primary,DSG Skills and Attainment,Primary School Budgets,3rd Party Payments,Mainstream Delegated Funding,CHISELDON PRIMARY SCHOOL,SN4 ,17/05/2023,"71,288.00"
87328267,Learning Disabilities,Adults,Learning Disability 65 and over,3rd Party Payments,Residential Care,CHOSEN CARE LTD,GL3 ,19/05/2023,"7,297.20"
87328267,Learning Disabilities,Adults,Learning Disability 65 and over,Income,Client Contribution - Residential,CHOSEN CARE LTD,GL3 ,19/05/2023,-779.2
87328267,Learning Disabilities,Adults,Learning Disability 18 - 64,Income,Client Contribution - Residential,CHOSEN CARE LTD,GL3 ,19/05/2023,-319
87328267,Learning Disabilities,Adults,Learning Disability 18 - 64,Income,Client Contribution - Residential,CHOSEN CARE LTD,GL3 ,19/05/2023,-359
87328267,Learning Disabilities,Adults,Learning Disability 18 - 64,3rd Party Payments,Residential Care,CHOSEN CARE LTD,GL3 ,19/05/2023,"7,137.76"
87328267,Learning Disabilities,Adults,Learning Disability 18 - 64,3rd Party Payments,Residential Care,CHOSEN CARE LTD,GL3 ,19/05/2023,"7,145.08"
88485419,Physical Support,Adults,Physical Support 18 - 64,Transfer Payments,Personal Budget - Direct Payments - Domiciliary Care,REDACTED PERSONAL DATA,SN25,31/05/2023,874.61
84063445,Physical Support,Adults,Physical Support 18 - 64,Transfer Payments,Personal Budget - Direct Payments - Domiciliary Care,REDACTED PERSONAL DATA,SN25,03/05/2023,874.61
85111263,Social Care,"Children, Families and Community Health Services",Placement Adoption Service,3rd Party Payments,Adoption Allowances,REDACTED PERSONAL DATA,SN6 ,05/05/2023,"1,055.64"
85111262,Social Care,"Children, Families and Community Health Services",Placement Adoption Service,3rd Party Payments,Adoption Allowances,REDACTED PERSONAL DATA,SN6 ,05/05/2023,699.84
87442356,Social Care,"Children, Families and Community Health Services",Placement Adoption Service,3rd Party Payments,Adoption Allowances,REDACTED PERSONAL DATA,SN6 ,22/05/2023,699.84
87442357,Social Care,"Children, Families and Community Health Services",Placement Adoption Service,3rd Party Payments,Adoption Allowances,REDACTED PERSONAL DATA,SN6 ,22/05/2023,"1,055.64"
84971233,Sheltered Accomodation,Special Services,Sheltered Housing Management General,Supplies and Services,Repairs & Maintenance,CHUBB FIRE & SECURITY T/A CHUBB COMMUNITY CARE,BB1 ,05/05/2023,"2,046.50"
87329257,Physical Support,Adults,Physical Support 18 - 64,3rd Party Payments,Nursing Care,CHURCH VIEW,SN3 ,19/05/2023,"10,756.09"
87329257,Physical Support,Adults,Physical Support 65 and over,3rd Party Payments,Nursing Care,CHURCH VIEW,SN3 ,19/05/2023,"4,813.00"
87329257,Physical Support,Adults,Physical Support 65 and over,3rd Party Payments,Nursing Care,CHURCH VIEW,SN3 ,19/05/2023,"5,800.00"
87329257,Physical Support,Adults,Physical Support 65 and over,3rd Party Payments,Nursing Care,CHURCH VIEW,SN3 ,19/05/2023,"2,867.32"
87329257,Physical Support,Adults,Physical Support 65 and over,Income,Client Contribution - Nursing,CHURCH VIEW,SN3 ,19/05/2023,"-1,191.38"
87329257,Physical Support,Adults,Physical Support 65 and over,Income,Client Contribution - Nursing,CHURCH VIEW,SN3 ,19/05/2023,-825.45
87329257,Physical Support,Adults,Physical Support 18 - 64,3rd Party Payments,Nursing Care,CHURCH VIEW,SN3 ,19/05/2023,"5,529.83"
87329257,Physical Support,Adults,Physical Support 65 and over,Income,Client Contribution - Nursing,CHURCH VIEW,SN3 ,19/05/2023,"1,122.02"
87329257,Physical Support,Adults,Physical Support 65 and over,Income,Client Contribution - Nursing,CHURCH VIEW,SN3 ,19/05/2023,-620.28
87329257,Physical Support,Adults,Physical Support 18 - 64,Income,Client Contribution - Nursing,CHURCH VIEW,SN3 ,19/05/2023,-552.52
87329257,Physical Support,Adults,Physical Support 65 and over,3rd Party Payments,Nursing Care,CHURCH VIEW,SN3 ,19/05/2023,"-10,756.09"
87329257,Physical Support,Adults,Physical Support 65 and over,3rd Party Payments,Nursing Care,CHURCH VIEW,SN3 ,19/05/2023,"5,863.96"
87329257,Physical Support,Adults,Physical Support 65 and over,3rd Party Payments,Nursing Care,CHURCH VIEW,SN3 ,19/05/2023,-640.03
87329257,Physical Support,Adults,Physical Support 65 and over,3rd Party Payments,Nursing Care,CHURCH VIEW,SN3 ,19/05/2023,"11,309.07"
87329257,Physical Support,Adults,Physical Support 65 and over,Income,Client Contribution - Nursing,CHURCH VIEW,SN3 ,19/05/2023,-491.76
87329257,Physical Support,Adults,Physical Support 65 and over,3rd Party Payments,Nursing Care,CHURCH VIEW,SN3 ,19/05/2023,"9,324.96"
87329257,Physical Support,Adults,Physical Support 65 and over,3rd Party Payments,Nursing Care,CHURCH VIEW,SN3 ,19/05/2023,"2,668.72"
87329257,Physical Support,Adults,Physical Support 65 and over,Income,Client Contribution - Nursing,CHURCH VIEW,SN3 ,19/05/2023,-741.88
87329257,Physical Support,Adults,Physical Support 65 and over,Income,Client Contribution - Nursing,CHURCH VIEW,SN3 ,19/05/2023,-984.92
87329257,Physical Support,Adults,Physical Support 18 - 64,3rd Party Payments,Nursing Care,CHURCH VIEW,SN3 ,19/05/2023,3.47
87329257,Physical Support,Adults,Physical Support 18 - 64,3rd Party Payments,Nursing Care,CHURCH VIEW,SN3 ,19/05/2023,"2,668.72"
87329257,Physical Support,Adults,Physical Support 65 and over,3rd Party Payments,Nursing Care,CHURCH VIEW,SN3 ,19/05/2023,"6,694.84"
87329257,Physical Support,Adults,Physical Support 65 and over,3rd Party Payments,Nursing Care,CHURCH VIEW,SN3 ,19/05/2023,"-10,097.38"
87329257,Physical Support,Adults,Physical Support 65 and over,3rd Party Payments,Nursing Care,CHURCH VIEW,SN3 ,19/05/2023,"-4,937.37"
87329257,Physical Support,Adults,Physical Support 65 and over,3rd Party Payments,Nursing Care,CHURCH VIEW,SN3 ,19/05/2023,"5,529.83"
87329257,Physical Support,Adults,Physical Support 65 and over,Income,Client Contribution - Nursing,CHURCH VIEW,SN3 ,19/05/2023,-763.24
87329257,Physical Support,Adults,Physical Support 65 and over,Income,Client Contribution - Nursing,CHURCH VIEW,SN3 ,19/05/2023,-709.76
87329257,Physical Support,Adults,Physical Support 65 and over,Income,Client Contribution - Nursing,CHURCH VIEW,SN3 ,19/05/2023,-606.52
87329257,Physical Support,Adults,Physical Support 18 - 64,3rd Party Payments,Nursing Care,CHURCH VIEW,SN3 ,19/05/2023,"2,867.32"
87329257,Physical Support,Adults,Physical Support 65 and over,3rd Party Payments,Nursing Care,CHURCH VIEW,SN3 ,19/05/2023,716.83
87329257,Physical Support,Adults,Physical Support 65 and over,3rd Party Payments,Nursing Care,CHURCH VIEW,SN3 ,19/05/2023,"5,816.00"
87329257,Physical Support,Adults,Physical Support 65 and over,3rd Party Payments,Nursing Care,CHURCH VIEW,SN3 ,19/05/2023,"2,560.12"
87329257,Physical Support,Adults,Physical Support 65 and over,Income,Client Contribution - Nursing,CHURCH VIEW,SN3 ,19/05/2023,801.28
87329257,Physical Support,Adults,Physical Support 65 and over,Income,Client Contribution - Nursing,CHURCH VIEW,SN3 ,19/05/2023,-800.96
87329257,Physical Support,Adults,Physical Support 65 and over,Income,Client Contribution - Nursing,CHURCH VIEW,SN3 ,19/05/2023,-999.64
87329257,Physical Support,Adults,Physical Support 65 and over,Income,Client Contribution - Nursing,CHURCH VIEW,SN3 ,19/05/2023,-610
87329257,Physical Support,Adults,Physical Support 65 and over,Income,Client Contribution - Nursing,CHURCH VIEW,SN3 ,19/05/2023,-535.88
87329257,Physical Support,Adults,Physical Support 65 and over,Income,Client Contribution - Nursing,CHURCH VIEW,SN3 ,19/05/2023,-930.44
87329257,Physical Support,Adults,Physical Support 65 and over,Income,Client Contribution - Nursing,CHURCH VIEW,SN3 ,19/05/2023,"-1,288.96"
87329257,Physical Support,Adults,Physical Support 65 and over,Income,Client Contribution - Nursing,CHURCH VIEW,SN3 ,19/05/2023,-979.88
87329257,Physical Support,Adults,Physical Support 65 and over,3rd Party Payments,Nursing Care,CHURCH VIEW,SN3 ,19/05/2023,"4,200.00"
87329257,Physical Support,Adults,Physical Support 65 and over,3rd Party Payments,Nursing Care,CHURCH VIEW,SN3 ,19/05/2023,"-4,297.34"
87329283,Learning Disabilities,Adults,Learning Disability 18 - 64,3rd Party Payments,Residential Care,CIDERSTONE HOUSE,SN25,19/05/2023,"12,163.20"
87329283,Learning Disabilities,Adults,Learning Disability 18 - 64,3rd Party Payments,Residential Care,CIDERSTONE HOUSE,SN25,19/05/2023,"11,782.40"
87329283,Learning Disabilities,Adults,Learning Disability 18 - 64,3rd Party Payments,Residential Care,CIDERSTONE HOUSE,SN25,19/05/2023,"-20,288.57"
87329283,Learning Disabilities,Adults,Learning Disability 18 - 64,Income,Client Contribution - Residential,CIDERSTONE HOUSE,SN25,19/05/2023,-423
87329283,Learning Disabilities,Adults,Learning Disability 18 - 64,Income,Client Contribution - Residential,CIDERSTONE HOUSE,SN25,19/05/2023,-414.2
87329283,Learning Disabilities,Adults,Learning Disability 18 - 64,Income,Client Contribution - Residential,CIDERSTONE HOUSE,SN25,19/05/2023,-438.8
87329283,Learning Disabilities,Adults,Learning Disability 18 - 64,Income,Client Contribution - Residential,CIDERSTONE HOUSE,SN25,19/05/2023,-677.6
87329283,Learning Disabilities,Adults,Learning Disability 18 - 64,Income,Client Contribution - Residential,CIDERSTONE HOUSE,SN25,19/05/2023,-425.6
87329283,Learning Disabilities,Adults,Learning Disability 18 - 64,3rd Party Payments,Residential Care,CIDERSTONE HOUSE,SN25,19/05/2023,"-20,944.29"
87329283,Learning Disabilities,Adults,Learning Disability 18 - 64,3rd Party Payments,Residential Care,CIDERSTONE HOUSE,SN25,19/05/2023,"22,723.20"
87329283,Learning Disabilities,Adults,Learning Disability 18 - 64,3rd Party Payments,Residential Care,CIDERSTONE HOUSE,SN25,19/05/2023,"23,457.60"
86909233,High Needs Block,DSG Skills and Attainment,Post 16 - New Responsibilties,3rd Party Payments,FE Colleges,CIRENCESTER COLLEGE,GL7 ,17/05/2023,"3,255.08"
88038233,DSG Other Funding,DSG Skills and Attainment,LAC pupil premium,Supplies and Services,Services,CIRENCESTER DEER PARK SCHOOL LIMITED,GL7 ,31/05/2023,600
86905233,High Needs Block,DSG Skills and Attainment,Out of Borough School Fees,3rd Party Payments,Other Local Authority Mainstream Schools- Pre 16,CIRENCESTER KINGSHILL SCHOOL,GL7 ,17/05/2023,609.58
86904234,High Needs Block,DSG Skills and Attainment,Out of Borough School Fees,3rd Party Payments,Other Local Authority Mainstream Schools- Pre 16,CIRENCESTER KINGSHILL SCHOOL,GL7 ,17/05/2023,609.58
87139242,Homelessness and Travellers,Housing Services,Leased Private Managed Accommodation,Transfer Payments,Payment of Costs,REDACTED PERSONAL DATA,SN5 ,24/05/2023,575
83885233,Local Transport Plan Funded,Strategic Planning and Highways,Footway Maintenance,Capital,Contractor Payments,CITYFIBRE LIMITED,WC2E,03/05/2023,"4,841.16"
85473233,Elections & Democracy,Elections and Democracy,Local Elections,Supplies and Services,Materials,CIVICA ELECTION SERVICES LIMITED,N8 0,10/05/2023,"13,014.76"
83689235,Elections & Democracy,Elections and Democracy,Register of Electors,Supplies and Services,Post,CIVICA ELECTION SERVICES LIMITED,N8 0,03/05/2023,681.9
86965233,Elections & Democracy,Elections and Democracy,Register of Electors,Supplies and Services,Materials,CIVICA ELECTION SERVICES LIMITED,N8 0,17/05/2023,"2,591.43"
83689235,Elections & Democracy,Elections and Democracy,Register of Electors,Supplies and Services,Materials,CIVICA ELECTION SERVICES LIMITED,N8 0,03/05/2023,305.62
85473233,Elections & Democracy,Elections and Democracy,Local Elections,Supplies and Services,Materials,CIVICA ELECTION SERVICES LIMITED,N8 0,10/05/2023,"2,509.62"
86965233,Elections & Democracy,Elections and Democracy,Register of Electors,Supplies and Services,Post,CIVICA ELECTION SERVICES LIMITED,N8 0,17/05/2023,"12,190.07"
84694233,Planning & Regulatory,Strategic Planning,Economy & Development Management,Employees,Temporary / Agency - by Accounts Payable,REDACTED PERSONAL DATA,BS37,05/05/2023,"10,015.20"
84487237,Disabled Children,"Children, Families and Community Health Services",DCT Daytime Short Breaks,Transfer Payments,Personal Budget - Direct Payments - Other,REDACTED PERSONAL DATA,SN3 ,03/05/2023,"2,653.50"
86697233,Disabled Children,"Children, Families and Community Health Services",DCT Daytime Short Breaks,Transfer Payments,Personal Budget - Direct Payments - Other,REDACTED PERSONAL DATA,SN3 ,17/05/2023,"10,933.00"
86493233,Early Years Block,DSG Skills and Attainment,Free Nursery Education Commissioning - three & four  year olds,3rd Party Payments,Contracts - Child Care,REDACTED PERSONAL DATA,SN2 ,17/05/2023,523.92
85629233,Social Care,"Children, Families and Community Health Services",Placement Fostering Service,Supplies and Services,Service Charges,CLARK WARD ASSOCIATES LTD,SN1 ,10/05/2023,580
84763233,NEV,"Economy, Growth and Place",Southern Connector Road,Capital,Professional Fees,CLARKE WILLMOTT LLP,BS1 ,05/05/2023,470.8
85471233,NEV,"Economy, Growth and Place",Package 2 - Nythe Road Junction and Piccadilly Roundabout,Capital,Contractor Payments,CLEAR CHANNEL UK LTD,GU22,10/05/2023,"6,042.60"
86996233,Responsive Repairs,Repairs,Responsive Repairs,3rd Party Payments,Contract Payments,CLOSOMAT LIMITED,M33 ,17/05/2023,"4,309.00"
88254233,Responsive Repairs,Repairs,Responsive Repairs,3rd Party Payments,Contract Payments,CLOSOMAT LIMITED,M33 ,26/05/2023,515
88253233,Responsive Repairs,Repairs,Responsive Repairs,3rd Party Payments,Contract Payments,CLOSOMAT LIMITED,M33 ,26/05/2023,515
87329249,Physical Support,Adults,Physical Support 65 and over,3rd Party Payments,Residential Care,COATE WATER CARE CO LTD,SN3 ,19/05/2023,"7,188.48"
87329249,Physical Support,Adults,Physical Support 65 and over,3rd Party Payments,Residential Care,COATE WATER CARE CO LTD,SN3 ,19/05/2023,"1,906.23"
87329249,Physical Support,Adults,Physical Support 65 and over,3rd Party Payments,Residential Care,COATE WATER CARE CO LTD,SN3 ,19/05/2023,"2,867.32"
87329249,Physical Support,Adults,Physical Support 65 and over,3rd Party Payments,Residential Care,COATE WATER CARE CO LTD,SN3 ,19/05/2023,"1,433.66"
87329249,Physical Support,Adults,Physical Support 65 and over,3rd Party Payments,Residential Care,COATE WATER CARE CO LTD,SN3 ,19/05/2023,127.99
87329249,Physical Support,Adults,Physical Support 65 and over,3rd Party Payments,Residential Care,COATE WATER CARE CO LTD,SN3 ,19/05/2023,"-4,479.64"
87329249,Physical Support,Adults,Physical Support 65 and over,Income,Client Contribution - Residential,COATE WATER CARE CO LTD,SN3 ,19/05/2023,"-1,395.32"
87329249,Physical Support,Adults,Physical Support 65 and over,Income,Client Contribution - Residential,COATE WATER CARE CO LTD,SN3 ,19/05/2023,-448.43
87329249,Physical Support,Adults,Physical Support 65 and over,3rd Party Payments,Residential Care,COATE WATER CARE CO LTD,SN3 ,19/05/2023,"6,000.00"
87329249,Physical Support,Adults,Physical Support 65 and over,3rd Party Payments,Residential Care,COATE WATER CARE CO LTD,SN3 ,19/05/2023,"5,764.42"
87329249,Physical Support,Adults,Physical Support 65 and over,3rd Party Payments,Residential Care,COATE WATER CARE CO LTD,SN3 ,19/05/2023,"2,560.12"
87329249,Care Management & Safeguarding,Adults,Intermediate Care Team,3rd Party Payments,Residential Care,COATE WATER CARE CO LTD,SN3 ,19/05/2023,91.43
87329249,Physical Support,Adults,Physical Support 65 and over,Income,Client Contribution - Residential,COATE WATER CARE CO LTD,SN3 ,19/05/2023,-760.96
87329249,Physical Support,Adults,Physical Support 65 and over,3rd Party Payments,Residential Care,COATE WATER CARE CO LTD,SN3 ,19/05/2023,"4,479.64"
87329249,Physical Support,Adults,Physical Support 65 and over,3rd Party Payments,Residential Care,COATE WATER CARE CO LTD,SN3 ,19/05/2023,"3,686.55"
87329249,Physical Support,Adults,Physical Support 65 and over,3rd Party Payments,Residential Care,COATE WATER CARE CO LTD,SN3 ,19/05/2023,"-2,969.72"
87329249,Physical Support,Adults,Physical Support 65 and over,3rd Party Payments,Residential Care,COATE WATER CARE CO LTD,SN3 ,19/05/2023,"5,017.18"
87329249,Physical Support,Adults,Physical Support 65 and over,3rd Party Payments,Residential Care,COATE WATER CARE CO LTD,SN3 ,19/05/2023,"2,988.96"
87329249,Physical Support,Adults,Physical Support 65 and over,3rd Party Payments,Residential Care,COATE WATER CARE CO LTD,SN3 ,19/05/2023,"2,969.72"
87329249,Care Management & Safeguarding,Adults,Intermediate Care Team,3rd Party Payments,Residential Care,COATE WATER CARE CO LTD,SN3 ,19/05/2023,"-4,937.37"
87329249,Physical Support,Adults,Physical Support 65 and over,Income,Client Contribution - Residential,COATE WATER CARE CO LTD,SN3 ,19/05/2023,"-1,434.76"
87329249,Physical Support,Adults,Physical Support 65 and over,Income,Client Contribution - Residential,COATE WATER CARE CO LTD,SN3 ,19/05/2023,-627.8
87329249,Physical Support,Adults,Physical Support 65 and over,Income,Client Contribution - Residential,COATE WATER CARE CO LTD,SN3 ,19/05/2023,-732
87329249,Physical Support,Adults,Physical Support 65 and over,Income,Client Contribution - Residential,COATE WATER CARE CO LTD,SN3 ,19/05/2023,-506.2
87329249,Physical Support,Adults,Physical Support 65 and over,3rd Party Payments,Residential Care,COATE WATER CARE CO LTD,SN3 ,19/05/2023,-667.18
87329249,Physical Support,Adults,Physical Support 65 and over,Income,Client Contribution - Residential,COATE WATER CARE CO LTD,SN3 ,19/05/2023,-713.24
87329249,Physical Support,Adults,Physical Support 65 and over,3rd Party Payments,Residential Care,COATE WATER CARE CO LTD,SN3 ,19/05/2023,"-5,529.83"
87329249,Physical Support,Adults,Physical Support 65 and over,3rd Party Payments,Residential Care,COATE WATER CARE CO LTD,SN3 ,19/05/2023,"3,727.36"
87329249,Mental Health,Adults,Mental Health 65 and over,3rd Party Payments,Residential Care,COATE WATER CARE CO LTD,SN3 ,19/05/2023,"-4,937.37"
87329249,Physical Support,Adults,Physical Support 18 - 64,Income,Client Contribution - Residential,COATE WATER CARE CO LTD,SN3 ,19/05/2023,-359
87913233,Physical Support,Adults,Physical Support 65 and over,3rd Party Payments,Personal Budget - Respite Care,COATE WATER CARE CO LTD,SN3 ,24/05/2023,"1,122.44"
87329249,Physical Support,Adults,Physical Support 65 and over,Income,Client Contribution - Residential,COATE WATER CARE CO LTD,SN3 ,19/05/2023,-955.48
87329249,Physical Support,Adults,Physical Support 65 and over,3rd Party Payments,Residential Care,COATE WATER CARE CO LTD,SN3 ,19/05/2023,"-3,017.28"
87329249,Physical Support,Adults,Physical Support 65 and over,3rd Party Payments,Residential Care,COATE WATER CARE CO LTD,SN3 ,19/05/2023,716.83
87329249,Physical Support,Adults,Physical Support 65 and over,3rd Party Payments,Residential Care,COATE WATER CARE CO LTD,SN3 ,19/05/2023,"3,379.34"
87329249,Mental Health,Adults,Mental Health 65 and over,3rd Party Payments,Residential Care,COATE WATER CARE CO LTD,SN3 ,19/05/2023,"5,529.83"
87329249,Mental Health,Adults,Mental Health 65 and over,3rd Party Payments,Residential Care,COATE WATER CARE CO LTD,SN3 ,19/05/2023,344
87329249,Mental Health,Adults,Mental Health 65 and over,3rd Party Payments,Residential Care,COATE WATER CARE CO LTD,SN3 ,19/05/2023,"2,800.00"
87329249,Physical Support,Adults,Physical Support 65 and over,3rd Party Payments,Residential Care,COATE WATER CARE CO LTD,SN3 ,19/05/2023,"4,800.00"
87329249,Physical Support,Adults,Physical Support 65 and over,3rd Party Payments,Residential Care,COATE WATER CARE CO LTD,SN3 ,19/05/2023,"7,954.66"
87329249,Physical Support,Adults,Physical Support 65 and over,3rd Party Payments,Residential Care,COATE WATER CARE CO LTD,SN3 ,19/05/2023,-640.03
87329249,Physical Support,Adults,Physical Support 65 and over,3rd Party Payments,Residential Care,COATE WATER CARE CO LTD,SN3 ,19/05/2023,747.24
87913234,Physical Support,Adults,Physical Support 65 and over,3rd Party Payments,Personal Budget - Respite Care,COATE WATER CARE CO LTD,SN3 ,24/05/2023,"2,244.88"
87329249,Physical Support,Adults,Physical Support 65 and over,Income,Client Contribution - Residential,COATE WATER CARE CO LTD,SN3 ,19/05/2023,"-1,160.23"
87329249,Physical Support,Adults,Physical Support 65 and over,Income,Client Contribution - Residential,COATE WATER CARE CO LTD,SN3 ,19/05/2023,"-1,950.66"
87329249,Physical Support,Adults,Physical Support 65 and over,Income,Client Contribution - Residential,COATE WATER CARE CO LTD,SN3 ,19/05/2023,"1,429.49"
87329249,Physical Support,Adults,Physical Support 65 and over,Income,Client Contribution - Residential,COATE WATER CARE CO LTD,SN3 ,19/05/2023,-897.48
87329249,Physical Support,Adults,Physical Support 65 and over,Income,Client Contribution - Residential,COATE WATER CARE CO LTD,SN3 ,19/05/2023,-539.4
87329249,Physical Support,Adults,Physical Support 65 and over,3rd Party Payments,Residential Care,COATE WATER CARE CO LTD,SN3 ,19/05/2023,"5,529.83"
87329249,Physical Support,Adults,Physical Support 65 and over,3rd Party Payments,Residential Care,COATE WATER CARE CO LTD,SN3 ,19/05/2023,"-1,280.06"
87329249,Physical Support,Adults,Physical Support 65 and over,3rd Party Payments,Residential Care,COATE WATER CARE CO LTD,SN3 ,19/05/2023,274.3
87329249,Physical Support,Adults,Physical Support 65 and over,3rd Party Payments,Residential Care,COATE WATER CARE CO LTD,SN3 ,19/05/2023,"-4,937.37"
87329249,Physical Support,Adults,Physical Support 65 and over,3rd Party Payments,Residential Care,COATE WATER CARE CO LTD,SN3 ,19/05/2023,"-6,418.29"
87329249,Physical Support,Adults,Physical Support 65 and over,3rd Party Payments,Residential Care,COATE WATER CARE CO LTD,SN3 ,19/05/2023,"2,668.72"
87329249,Mental Health,Adults,Mental Health 65 and over,3rd Party Payments,Residential Care,COATE WATER CARE CO LTD,SN3 ,19/05/2023,"2,867.32"
87329249,Physical Support,Adults,Physical Support 65 and over,3rd Party Payments,Residential Care,COATE WATER CARE CO LTD,SN3 ,19/05/2023,"-6,385.87"
87329249,Physical Support,Adults,Physical Support 65 and over,3rd Party Payments,Residential Care,COATE WATER CARE CO LTD,SN3 ,19/05/2023,"-3,686.55"
87329249,Physical Support,Adults,Physical Support 65 and over,3rd Party Payments,Residential Care,COATE WATER CARE CO LTD,SN3 ,19/05/2023,204.81
87329249,Physical Support,Adults,Physical Support 65 and over,3rd Party Payments,Residential Care,COATE WATER CARE CO LTD,SN3 ,19/05/2023,"-5,146.82"
87329249,Physical Support,Adults,Physical Support 18 - 64,3rd Party Payments,Residential Care,COATE WATER CARE CO LTD,SN3 ,19/05/2023,"-4,937.37"
87329249,Care Management & Safeguarding,Adults,Intermediate Care Team,3rd Party Payments,Residential Care,COATE WATER CARE CO LTD,SN3 ,19/05/2023,"-3,474.45"
87329249,Physical Support,Adults,Physical Support 65 and over,Income,Client Contribution - Residential,COATE WATER CARE CO LTD,SN3 ,19/05/2023,-954
87329249,Physical Support,Adults,Physical Support 65 and over,Income,Client Contribution - Residential,COATE WATER CARE CO LTD,SN3 ,19/05/2023,-510.92
87329249,Physical Support,Adults,Physical Support 65 and over,Income,Client Contribution - Residential,COATE WATER CARE CO LTD,SN3 ,19/05/2023,"-1,328.68"
87329249,Physical Support,Adults,Physical Support 65 and over,Income,Client Contribution - Residential,COATE WATER CARE CO LTD,SN3 ,19/05/2023,-917.88
87329249,Physical Support,Adults,Physical Support 65 and over,Income,Client Contribution - Residential,COATE WATER CARE CO LTD,SN3 ,19/05/2023,-691.2
87329249,Physical Support,Adults,Physical Support 65 and over,Income,Client Contribution - Residential,COATE WATER CARE CO LTD,SN3 ,19/05/2023,-727.2
87328251,Learning Disabilities,Adults,Learning Disability 18 - 64,3rd Party Payments,Residential Care,COCKLEBURY FARMHOUSE,SN15,19/05/2023,"10,364.00"
87328251,Learning Disabilities,Adults,Learning Disability 18 - 64,Income,Client Contribution - Residential,COCKLEBURY FARMHOUSE,SN15,19/05/2023,-425.6
87297233,Streetsmart,Streetsmart,Waste - Disposal,3rd Party Payments,Contract Payments,CODFORD BIOGAS LTD,NR7 ,19/05/2023,510.6
86073233,Town Centre,"Economy, Growth and Place",Fleming Way Improvement Scheme,Capital,Contractor Payments,COLAS LTD,B37 ,12/05/2023,"395,322.16"
87263233,Highways Inspections & Maintenance,Highway Operations and Car Parking,Highway Maintenance,Supplies and Services,Materials,COLAS LTD,B37 ,19/05/2023,780
88485362,Physical Support,Adults,Physical Support 18 - 64,3rd Party Payments,Carers,REDACTED PERSONAL DATA,SP11,31/05/2023,705.16
85972236,Social Care,"Children, Families and Community Health Services",Children's Resource and Home Finding Team,3rd Party Payments,Residential Care,COLLABORATIVE CARE SERVICES LTD,SN2 ,12/05/2023,"51,557.80"
84221233,Disabled Children,"Children, Families and Community Health Services",DCT Daytime Short Breaks,3rd Party Payments,Respite Care,COLLABORATIVE CARE SERVICES LTD,SN2 ,03/05/2023,"29,448.00"
88885233,Disabled Children,"Children, Families and Community Health Services",DCT Daytime Short Breaks,3rd Party Payments,Respite Care,COLLABORATIVE CARE SERVICES LTD,SN2 ,31/05/2023,"30,312.00"
87328240,Learning Disabilities,Adults,Learning Disability 18 - 64,3rd Party Payments,Supported Lodgings (Childrens)/Supported Living (Adults),COMMUNITY ACCESS NETWORK LTD,SN25,19/05/2023,"-2,685.52"
87328240,Learning Disabilities,Adults,Learning Disability 18 - 64,3rd Party Payments,Supported Lodgings (Childrens)/Supported Living (Adults),COMMUNITY ACCESS NETWORK LTD,SN25,19/05/2023,"-2,589.61"
87328240,Learning Disabilities,Adults,Learning Disability 18 - 64,3rd Party Payments,Supported Lodgings (Childrens)/Supported Living (Adults),COMMUNITY ACCESS NETWORK LTD,SN25,19/05/2023,"1,120.00"
87328240,Learning Disabilities,Adults,Learning Disability 18 - 64,3rd Party Payments,Supported Lodgings (Childrens)/Supported Living (Adults),COMMUNITY ACCESS NETWORK LTD,SN25,19/05/2023,-1.71
87328240,Learning Disabilities,Adults,Learning Disability 18 - 64,3rd Party Payments,Supported Lodgings (Childrens)/Supported Living (Adults),COMMUNITY ACCESS NETWORK LTD,SN25,19/05/2023,"2,720.00"
87328240,Learning Disabilities,Adults,Learning Disability 18 - 64,3rd Party Payments,Supported Lodgings (Childrens)/Supported Living (Adults),COMMUNITY ACCESS NETWORK LTD,SN25,19/05/2023,-47.6
87328240,Learning Disabilities,Adults,Learning Disability 18 - 64,3rd Party Payments,Supported Lodgings (Childrens)/Supported Living (Adults),COMMUNITY ACCESS NETWORK LTD,SN25,19/05/2023,24
87328240,Learning Disabilities,Adults,Learning Disability 18 - 64,3rd Party Payments,Supported Lodgings (Childrens)/Supported Living (Adults),COMMUNITY ACCESS NETWORK LTD,SN25,19/05/2023,"-2,430.32"
87328239,Learning Disabilities,Adults,Learning Disability 65 and over,3rd Party Payments,Supported Lodgings (Childrens)/Supported Living (Adults),COMMUNITY ACCESS NETWORK LTD,SN25,19/05/2023,"1,815.20"
87328239,Learning Disabilities,Adults,Learning Disability 18 - 64,Income,Client Contribution - Residential,COMMUNITY ACCESS NETWORK LTD,SN25,19/05/2023,-293.6
87328240,Learning Disabilities,Adults,Learning Disability 18 - 64,3rd Party Payments,Supported Lodgings (Childrens)/Supported Living (Adults),COMMUNITY ACCESS NETWORK LTD,SN25,19/05/2023,"4,120.00"
87328240,Learning Disabilities,Adults,Learning Disability 18 - 64,3rd Party Payments,Supported Lodgings (Childrens)/Supported Living (Adults),COMMUNITY ACCESS NETWORK LTD,SN25,19/05/2023,-46.29
87328239,Learning Disabilities,Adults,Learning Disability 65 and over,3rd Party Payments,Supported Lodgings (Childrens)/Supported Living (Adults),COMMUNITY ACCESS NETWORK LTD,SN25,19/05/2023,907.6
87328239,Learning Disabilities,Adults,Learning Disability 65 and over,3rd Party Payments,Supported Lodgings (Childrens)/Supported Living (Adults),COMMUNITY ACCESS NETWORK LTD,SN25,19/05/2023,"-1,619.20"
87328240,Learning Disabilities,Adults,Learning Disability 18 - 64,3rd Party Payments,Supported Lodgings (Childrens)/Supported Living (Adults),COMMUNITY ACCESS NETWORK LTD,SN25,19/05/2023,1.98
87328240,Learning Disabilities,Adults,Learning Disability 18 - 64,3rd Party Payments,Supported Lodgings (Childrens)/Supported Living (Adults),COMMUNITY ACCESS NETWORK LTD,SN25,19/05/2023,27.76
87328240,Learning Disabilities,Adults,Learning Disability 18 - 64,3rd Party Payments,Supported Lodgings (Childrens)/Supported Living (Adults),COMMUNITY ACCESS NETWORK LTD,SN25,19/05/2023,"-7,362.48"
87328240,Learning Disabilities,Adults,Learning Disability 18 - 64,3rd Party Payments,Supported Lodgings (Childrens)/Supported Living (Adults),COMMUNITY ACCESS NETWORK LTD,SN25,19/05/2023,53.54
87328240,Learning Disabilities,Adults,Learning Disability 18 - 64,Income,Client Contribution - Supported Living,COMMUNITY ACCESS NETWORK LTD,SN25,19/05/2023,-10.2
87328240,Learning Disabilities,Adults,Learning Disability 18 - 64,Income,Client Contribution - Supported Living,COMMUNITY ACCESS NETWORK LTD,SN25,19/05/2023,10.2
87328240,Learning Disabilities,Adults,Learning Disability 18 - 64,3rd Party Payments,Supported Lodgings (Childrens)/Supported Living (Adults),COMMUNITY ACCESS NETWORK LTD,SN25,19/05/2023,294.29
87328240,Learning Disabilities,Adults,Learning Disability 18 - 64,3rd Party Payments,Supported Lodgings (Childrens)/Supported Living (Adults),COMMUNITY ACCESS NETWORK LTD,SN25,19/05/2023,"3,007.76"
87328240,Learning Disabilities,Adults,Learning Disability 18 - 64,3rd Party Payments,Supported Lodgings (Childrens)/Supported Living (Adults),COMMUNITY ACCESS NETWORK LTD,SN25,19/05/2023,560
87328240,Learning Disabilities,Adults,Learning Disability 18 - 64,3rd Party Payments,Supported Lodgings (Childrens)/Supported Living (Adults),COMMUNITY ACCESS NETWORK LTD,SN25,19/05/2023,-1.76
87328240,Learning Disabilities,Adults,Learning Disability 18 - 64,Income,Client Contribution - Supported Living,COMMUNITY ACCESS NETWORK LTD,SN25,19/05/2023,-275.4
87328240,Learning Disabilities,Adults,Learning Disability 18 - 64,3rd Party Payments,Supported Lodgings (Childrens)/Supported Living (Adults),COMMUNITY ACCESS NETWORK LTD,SN25,19/05/2023,"7,945.71"
87328240,Learning Disabilities,Adults,Learning Disability 18 - 64,Income,Client Contribution - Supported Living,COMMUNITY ACCESS NETWORK LTD,SN25,19/05/2023,311.1
87328240,Learning Disabilities,Adults,Learning Disability 18 - 64,Income,Client Contribution - Supported Living,COMMUNITY ACCESS NETWORK LTD,SN25,19/05/2023,-142.8
87328240,Learning Disabilities,Adults,Learning Disability 18 - 64,Income,Client Contribution - Supported Living,COMMUNITY ACCESS NETWORK LTD,SN25,19/05/2023,-35.7
87328240,Learning Disabilities,Adults,Learning Disability 18 - 64,Income,Client Contribution - Supported Living,COMMUNITY ACCESS NETWORK LTD,SN25,19/05/2023,35.7
87328240,Learning Disabilities,Adults,Learning Disability 18 - 64,3rd Party Payments,Supported Lodgings (Childrens)/Supported Living (Adults),COMMUNITY ACCESS NETWORK LTD,SN25,19/05/2023,"-1,000.72"
87328240,Learning Disabilities,Adults,Learning Disability 18 - 64,3rd Party Payments,Supported Lodgings (Childrens)/Supported Living (Adults),COMMUNITY ACCESS NETWORK LTD,SN25,19/05/2023,"1,503.88"
87328240,Learning Disabilities,Adults,Learning Disability 18 - 64,3rd Party Payments,Supported Lodgings (Childrens)/Supported Living (Adults),COMMUNITY ACCESS NETWORK LTD,SN25,19/05/2023,"1,360.00"
87328240,Learning Disabilities,Adults,Learning Disability 18 - 64,3rd Party Payments,Supported Lodgings (Childrens)/Supported Living (Adults),COMMUNITY ACCESS NETWORK LTD,SN25,19/05/2023,-95.91
87328239,Learning Disabilities,Adults,Learning Disability 18 - 64,3rd Party Payments,Residential Care,COMMUNITY ACCESS NETWORK LTD,SN25,19/05/2023,"-12,116.44"
87328239,Learning Disabilities,Adults,Learning Disability 18 - 64,3rd Party Payments,Residential Care,COMMUNITY ACCESS NETWORK LTD,SN25,19/05/2023,"13,570.43"
87328239,Learning Disabilities,Adults,Learning Disability 18 - 64,3rd Party Payments,Residential Care,COMMUNITY ACCESS NETWORK LTD,SN25,19/05/2023,"7,036.52"
87328240,Learning Disabilities,Adults,Learning Disability 18 - 64,3rd Party Payments,Supported Lodgings (Childrens)/Supported Living (Adults),COMMUNITY ACCESS NETWORK LTD,SN25,19/05/2023,-48
87328240,Learning Disabilities,Adults,Learning Disability 18 - 64,3rd Party Payments,Supported Lodgings (Childrens)/Supported Living (Adults),COMMUNITY ACCESS NETWORK LTD,SN25,19/05/2023,48
87720245,Social Care,"Children, Families and Community Health Services",Children's Resource and Home Finding Team,3rd Party Payments,Independent Fostering Agency Placements,COMMUNITY FOSTER CARE,GL1 ,24/05/2023,"3,927.30"
87720246,Social Care,"Children, Families and Community Health Services",Children's Resource and Home Finding Team,3rd Party Payments,Independent Fostering Agency Placements,COMMUNITY FOSTER CARE,GL1 ,24/05/2023,"4,974.00"
